Body Name,Date Paid,Transaction Number,Amount,Supplier Name,Supplier Type,Expense Area,Cost Centre Description,Expense Type
Cambridgeshire County Council,01-Dec-21,51301684767,507.68,Redacted Personal Data,PARENT/GUARDIAN,Home to School Transport - Special,Home to School Transport Special - Special School,Home to School - Contract
Cambridgeshire County Council,01-Dec-21,51301684697,514.11,Redacted Personal Data,PARENT/GUARDIAN,Home to School Transport - Special,Home to School Transport Special - Special School,Home to School - Contract
Cambridgeshire County Council,01-Dec-21,51301684706,515.14,Redacted Personal Data,INDIVIDUAL,Home to School Transport - Special,Home to School Transport Special - Post 16,Home to School - Contract
Cambridgeshire County Council,01-Dec-21,51301684719,519.96,Redacted Personal Data,PARENT/GUARDIAN,Home to School Transport - Special,Home to School Transport Special - Out of County,Home to School - Contract
Cambridgeshire County Council,01-Dec-21,51301684756,545.13,Redacted Personal Data,INDIVIDUAL,Home to School Transport - Special,Home to School Transport Special - Special School,Home to School - Contract
Cambridgeshire County Council,01-Dec-21,51301684736,549.00,Redacted Personal Data,PARENT/GUARDIAN,Home to School Transport - Special,Home to School Transport Special - Special School,Home to School - Contract
Cambridgeshire County Council,01-Dec-21,51301684751,574.00,Redacted Personal Data,PARENT/GUARDIAN,Home to School Transport - Special,Home to School Transport Special - Out of County,Home to School - Contract
Cambridgeshire County Council,01-Dec-21,51301684760,574.84,Redacted Personal Data,INDIVIDUAL,Home to School Transport - Special,Home to School Transport Special - Special School,Home to School - Contract
Cambridgeshire County Council,01-Dec-21,51301684671,578.45,Redacted Personal Data,INDIVIDUAL,Early Years,SEND Specialist Services - SENIF,SEN Funding
Cambridgeshire County Council,01-Dec-21,51301684816,580.32,Redacted Personal Data,PARENT/GUARDIAN,Home to School Transport - Special,Home to School Transport Special - Special School,Home to School - Contract
Cambridgeshire County Council,01-Dec-21,51301684669,580.41,STEPPING STONES DAY NURSERY ST IVES,NURSERY,Early Years,SEND Specialist Services - SENIF,SEN Funding
Cambridgeshire County Council,01-Dec-21,51301684826,587.27,Redacted Personal Data,INDIVIDUAL,Home to School Transport - Special,Home to School Transport Special - Special School,Home to School - Contract
Cambridgeshire County Council,01-Dec-21,51301684681,590.25,HADDENHAM PRE-SCHOOL,NURSERY,Early Years,SEND Specialist Services - SENIF,Care & Ed Partner Organisations
Cambridgeshire County Council,01-Dec-21,51301684677,590.25,LITTLE MUNCHKINS LTD,NURSERY,Early Years,SEND Specialist Services - SENIF,Care & Ed Partner Organisations
Cambridgeshire County Council,01-Dec-21,51301684670,590.25,CLARENCE HOUSE DAY NURSERY CHATTERIS,NURSERY,Early Years,SEND Specialist Services - SENIF,SEN Funding
Cambridgeshire County Council,01-Dec-21,51301684643,595.80,Tutor Doctor,EDUCATION,Out of School Tuition,Out of School Provision - Education and Settings,Independent School Placements
Cambridgeshire County Council,01-Dec-21,51301684741,608.00,Redacted Personal Data,PARENT/GUARDIAN,Home to School Transport - Special,Home to School Transport Special - Out of County,Home to School - Contract
Cambridgeshire County Council,01-Dec-21,51301684659,615.00,GOREFIELD PRE-SCHOOL,NURSERY,Nursery Schools,Early Years - Funded 3s/4s,Care & Ed Childcare Settings
Cambridgeshire County Council,01-Dec-21,51301684657,615.00,BRAMBLES PRE SCHOOL,NURSERY,Nursery Schools,Early Years - Funded 3s/4s,Care & Ed Childcare Settings
Cambridgeshire County Council,01-Dec-21,51301684658,615.00,EATON SOCON PRESCHOOL,NURSERY,Nursery Schools,Early Years - Funded 3s/4s,Care & Ed Childcare Settings
Cambridgeshire County Council,01-Dec-21,51301684660,615.00,PAINTBOX PLAYGROUP,NURSERY,Nursery Schools,Early Years - Funded 3s/4s,Care & Ed Childcare Settings
Cambridgeshire County Council,01-Dec-21,51301684753,621.82,Redacted Personal Data,INDIVIDUAL,Home to School Transport - Mainstream,Home to School Transport Mainstream - Secondary,Home to School - Contract
Cambridgeshire County Council,01-Dec-21,51301684768,629.00,Redacted Personal Data,INDIVIDUAL,Home to School Transport - Special,Home to School Transport Special - Post 16,Home to School - Contract
Cambridgeshire County Council,01-Dec-21,51301684844,638.40,Redacted Personal Data,INDIVIDUAL,Home to School Transport - Special,Home to School Transport Special - Special School,Home to School - Contract
Cambridgeshire County Council,01-Dec-21,51301684763,648.07,Redacted Personal Data,PARENT/GUARDIAN,Home to School Transport - Special,Home to School Transport Special - Out of County,Home to School - Contract
Cambridgeshire County Council,01-Dec-21,51301684685,649.28,LITTLE PAXTON PRE-SCHOOL,NURSERY,Early Years,SEND Specialist Services - SENIF,Care & Ed Partner Organisations
Cambridgeshire County Council,01-Dec-21,51301684914,650.00,Huntingdon Town Football Club,LOCAL CLUBS & GROUPS,PH Public Health Directorate,Public Health - COVID-19,Casual hire of facilities
Cambridgeshire County Council,01-Dec-21,51301684640,662.40,Tutor Doctor,EDUCATION,Out of School Tuition,Out of School Provision - Education and Settings,Independent School Placements
Cambridgeshire County Council,01-Dec-21,51301684708,668.80,Redacted Personal Data,PARENT/GUARDIAN,Home to School Transport - Special,Home to School Transport Special - Post 16,Home to School - Contract
Cambridgeshire County Council,01-Dec-21,51301684788,679.03,Redacted Personal Data,INDIVIDUAL,Home to School Transport - Special,Home to School Transport Special - Special School,Home to School - Contract
Cambridgeshire County Council,01-Dec-21,51301684857,694.76,Redacted Personal Data,PARENT/GUARDIAN,Home to School Transport - Special,Home to School Transport Special - Special School,Home to School - Contract
Cambridgeshire County Council,01-Dec-21,51301684665,708.30,RAMSEY DAY NURSERY,NURSERY,Early Years,SEND Specialist Services - SENIF,Payments to Other Establishments
Cambridgeshire County Council,01-Dec-21,51301684690,708.30,FOXTON PRE-SCHOOL,NURSERY,Early Years,SEND Specialist Services - SENIF,Care & Ed Partner Organisations
Cambridgeshire County Council,01-Dec-21,51301684693,708.30,Busy Bees Preschool,NURSERY,Early Years,SEND Specialist Services - SENIF,Care & Ed Partner Organisations
Cambridgeshire County Council,01-Dec-21,51301684814,720.20,Redacted Personal Data,PARENT/GUARDIAN,Home to School Transport - Special,Home to School Transport Special - Secondary,Home to School - Contract
Cambridgeshire County Council,01-Dec-21,51301684862,721.32,Redacted Personal Data,FOSTER PARENT,Home to School Transport - Special,Home to School Transport Special - Post 16,Home to School - Contract
Cambridgeshire County Council,01-Dec-21,51301684715,735.13,Redacted Personal Data,INDIVIDUAL,Home to School Transport - Special,Home to School Transport Special - Out of County,Home to School - Contract
Cambridgeshire County Council,01-Dec-21,51301684588,755.10,CAMBRIDGESHIRE HOMECARE (J&M CARE LTD),CARE ESTABLISHMENT,Community Support Service,Community Support Service ECF,Grants to Voluntary Bodies
Cambridgeshire County Council,01-Dec-21,51301684692,767.33,MOTHER GOOSE CORNER NURSERY,NURSERY,Early Years,SEND Specialist Services - SENIF,Care & Ed Partner Organisations
Cambridgeshire County Council,01-Dec-21,51301684702,818.04,Redacted Personal Data,PARENT/GUARDIAN,Home to School Transport - Special,Home to School Transport Special - Special School,Home to School - Contract
Cambridgeshire County Council,01-Dec-21,51301684673,865.70,BEACH BABIES LIMITED (WILBURTON),NURSERY,Early Years,SEND Specialist Services - SENIF,SEN Funding
Cambridgeshire County Council,01-Dec-21,51301684637,927.00,Tutor Doctor,EDUCATION,Out of School Tuition,Out of School Provision - Education and Settings,Independent School Placements
Cambridgeshire County Council,01-Dec-21,51301684808,930.31,Redacted Personal Data,PARENT/GUARDIAN,Home to School Transport - Special,Home to School Transport Special - Post 16,Home to School - Contract
Cambridgeshire County Council,01-Dec-21,51301684696,935.66,Redacted Personal Data,INDIVIDUAL,Home to School Transport - Special,Home to School Transport Special - Special School,Home to School - Contract
Cambridgeshire County Council,01-Dec-21,51301684663,944.40,ALL SAINTS PRE SCHOOL ACADEMY,NURSERY,Early Years,SEND Specialist Services - SENIF,Care & Ed Partner Organisations
Cambridgeshire County Council,01-Dec-21,51301684650,953.14,NORFOLK COUNTY COUNCIL,OTHER PUBLIC BODIES,LAC Placements,Placements - independent fostering,Agency Placements - Out of  County
Cambridgeshire County Council,01-Dec-21,51301672594,960.00,MARTIN RIX (SOUTH ANGLE FARM),TRADE SUPPLIER,Highways - Rights of Way,Highways - Rights of Way,ROW Maintenance
Cambridgeshire County Council,01-Dec-21,51301684737,"1,030.84",Redacted Personal Data,INDIVIDUAL,Home to School Transport - Special,Home to School Transport Special - Out of County,Home to School - Contract
Cambridgeshire County Council,01-Dec-21,51301684888,"1,044.00",Sensory Childcare,CARE ESTABLISHMENT,Children's Disability Direct Payments,CSC Direct Payments,Direct Payments
Cambridgeshire County Council,01-Dec-21,51301684676,"1,062.45",PENDRAGON PRE SCHOOL,NURSERY,Early Years,SEND Specialist Services - SENIF,Care & Ed Partner Organisations
Cambridgeshire County Council,01-Dec-21,51301684845,"1,121.62",Redacted Personal Data,PARENT/GUARDIAN,Home to School Transport - Special,Home to School Transport Special - Out of County,Home to School - Contract
Cambridgeshire County Council,01-Dec-21,51301684833,"1,127.98",Redacted Personal Data,INDIVIDUAL,Home to School Transport - Special,Home to School Transport Special - Post 16,Home to School - Contract
Cambridgeshire County Council,01-Dec-21,51301684667,"1,180.50",Hartford Infants Pre School,NURSERY,Early Years,SEND Specialist Services - SENIF,Care & Ed Partner Organisations
Cambridgeshire County Council,01-Dec-21,51301684610,"1,195.20",Redacted Personal Data,INDIVIDUAL,Home to School Transport - Special,Home to School Transport Special - Out of County,Home to School - Contract
Cambridgeshire County Council,01-Dec-21,51301671700,"1,232.16",Pathfinder Legal Services Limited,TRADE SUPPLIER,PH Public Health Directorate,Public Health Strategic Management,Professional Fees and Hired Services
Cambridgeshire County Council,01-Dec-21,51301684612,"1,239.00",Liverpool Victoria,COMPANY,Insurance Fund,Liability,Insurance Fund External
Cambridgeshire County Council,01-Dec-21,51301684743,"1,243.64",Redacted Personal Data,PARENT/GUARDIAN,Home to School Transport - Special,Home to School Transport Special - Special School,Home to School - Contract
Cambridgeshire County Council,01-Dec-21,51301684755,"1,347.27",Redacted Personal Data,INDIVIDUAL,Home to School Transport - Special,Home to School Transport Special - Special School,Home to School - Contract
Cambridgeshire County Council,01-Dec-21,51301684645,"1,384.00",Adoptionplus,CARE ESTABLISHMENT,Regional Adoption Agency,Regional Adoption Agency,Subscriptions
Cambridgeshire County Council,01-Dec-21,51301684639,"1,390.20",Tutor Doctor,EDUCATION,Out of School Tuition,Out of School Provision - Education and Settings,Independent School Placements
Cambridgeshire County Council,01-Dec-21,51301684691,"1,416.60",CLARENCE HOUSE PRE-SCHOOL,NURSERY,Early Years,SEND Specialist Services - SENIF,Care & Ed Partner Organisations
Cambridgeshire County Council,01-Dec-21,51301684689,"1,416.60",CLARENCE HOUSE DAY NURSERY CHATTERIS,NURSERY,Early Years,SEND Specialist Services - SENIF,Care & Ed Partner Organisations
Cambridgeshire County Council,01-Dec-21,51301684688,"1,416.60",ST JOHNS LITTLE LEARNERS,NURSERY,Early Years,SEND Specialist Services - SENIF,Care & Ed Partner Organisations
Cambridgeshire County Council,01-Dec-21,51301684644,"1,469.63",Tutor Doctor,EDUCATION,Out of School Tuition,Out of School Provision - Education and Settings,Independent School Placements
Cambridgeshire County Council,01-Dec-21,51301684592,"1,510.20",CAMBRIDGESHIRE HOMECARE (J&M CARE LTD),CARE ESTABLISHMENT,Community Support Service,Community Support Service ECF,Grants to Voluntary Bodies
Cambridgeshire County Council,01-Dec-21,51301684695,"1,554.67",Redacted Personal Data,INDIVIDUAL,Home to School Transport - Special,Home to School Transport Special - Out of County,Home to School - Contract
Cambridgeshire County Council,01-Dec-21,51301684867,"1,650.00",BABRAHAM NURSERY,EDUCATION,EY - Workforce Development,Qualifications,Care & Ed Childcare Settings
Cambridgeshire County Council,01-Dec-21,51301684881,"1,650.00",LITTLE HANDS NURSERY SCHOOL (LINTON & BARTLOW),NURSERY,EY - Workforce Development,Qualifications,Care & Ed Childcare Settings
Cambridgeshire County Council,01-Dec-21,51301684882,"1,650.00",LITTLE HANDS NURSERY SCHOOL (BOURN),NURSERY,EY - Workforce Development,Qualifications,Care & Ed Childcare Settings
Cambridgeshire County Council,01-Dec-21,51301684877,"1,650.00",BEACH BABIES LIMITED (LANDBEACH),NURSERY,EY - Workforce Development,Qualifications,Care & Ed Childcare Settings
Cambridgeshire County Council,01-Dec-21,51301684883,"1,650.00",MILLINGTON ROAD NURSERY SCHOOL,NURSERY,EY - Workforce Development,Qualifications,Care & Ed Childcare Settings
Cambridgeshire County Council,01-Dec-21,51301684880,"1,650.00",LADYBIRD PRE-SCHOOL,NURSERY,EY - Workforce Development,Qualifications,Care & Ed Childcare Settings
Cambridgeshire County Council,01-Dec-21,51301684869,"1,650.00",BRAMPTON DAY NURSERY,NURSERY,EY - Workforce Development,Qualifications,Care & Ed Childcare Settings
Cambridgeshire County Council,01-Dec-21,51301684875,"1,650.00",ACE Day Nursery,CHARITY,EY - Workforce Development,Qualifications,Care & Ed Childcare Settings
Cambridgeshire County Council,01-Dec-21,51301684866,"1,650.00",ALL SAINTS PRE SCHOOL ACADEMY,NURSERY,EY - Workforce Development,Qualifications,Care & Ed Childcare Settings
Cambridgeshire County Council,01-Dec-21,51301684885,"1,650.00",VANTAGE PARK DAY NURSERY,EDUCATION,EY - Workforce Development,Qualifications,Care & Ed Childcare Settings
Cambridgeshire County Council,01-Dec-21,51301684884,"1,650.00",UNDER FIVES ROUNDABOUT,NURSERY,EY - Workforce Development,Qualifications,Care & Ed Childcare Settings
Cambridgeshire County Council,01-Dec-21,51301684879,"1,650.00",BUCKDEN DAY NURSERY,NURSERY,EY - Workforce Development,Qualifications,Care & Ed Childcare Settings
Cambridgeshire County Council,01-Dec-21,51301684870,"1,650.00",WISBECH DAY NURSERY AND OUT OF SCHOOL CLUB,NURSERY,EY - Workforce Development,Qualifications,Care & Ed Childcare Settings
Cambridgeshire County Council,01-Dec-21,51301684868,"1,650.00",BUNNYBROOKES @ BRIGHT HORIZONS,NURSERY,EY - Workforce Development,Qualifications,Care & Ed Childcare Settings
Cambridgeshire County Council,01-Dec-21,51301684876,"1,650.00",CALDECOTE PLAYGROUP,NURSERY,EY - Workforce Development,Qualifications,Care & Ed Childcare Settings
Cambridgeshire County Council,01-Dec-21,51301684878,"1,650.00",BEACH BABIES LIMITED (WILBURTON),NURSERY,EY - Workforce Development,Qualifications,Care & Ed Childcare Settings
Cambridgeshire County Council,01-Dec-21,51301684896,"2,100.00",CARTER JONAS LLP,TRADE SUPPLIER,Housing Schemes,Housing Schemes,Construction - External Professional Fees
Cambridgeshire County Council,01-Dec-21,51301672663,"2,100.00",Permanent Futures Ltd,COMPANY,Business Intelligence,Business Intelligence Service,Recruitment Costs
Cambridgeshire County Council,01-Dec-21,51301675128,"2,136.18",VIRGIN MEDIA LTD,COMPANY,CPSN Replacement,CPSN Replacement,IT Hardware
Cambridgeshire County Council,01-Dec-21,51301684634,"2,152.80",Tutor Doctor,EDUCATION,Out of School Tuition,Out of School Provision - Education and Settings,Independent School Placements
Cambridgeshire County Council,01-Dec-21,51301672122,"2,232.00",MARTIN RIX (SOUTH ANGLE FARM),TRADE SUPPLIER,County Farms,County Farms,Specialist Works and Repairs
Cambridgeshire County Council,01-Dec-21,51301684656,"2,288.57",NORFOLK COUNTY COUNCIL,OTHER PUBLIC BODIES,LAC Placements,Placements - independent fostering,Agency Placements - Out of  County
Cambridgeshire County Council,01-Dec-21,51301684654,"2,288.57",NORFOLK COUNTY COUNCIL,OTHER PUBLIC BODIES,LAC Placements,Placements - independent fostering,Agency Placements - Out of  County
Cambridgeshire County Council,01-Dec-21,51301684653,"2,364.86",NORFOLK COUNTY COUNCIL,OTHER PUBLIC BODIES,LAC Placements,Placements - independent fostering,Agency Placements - Out of  County
Cambridgeshire County Council,01-Dec-21,51301684655,"2,364.86",NORFOLK COUNTY COUNCIL,OTHER PUBLIC BODIES,LAC Placements,Placements - independent fostering,Agency Placements - Out of  County
Cambridgeshire County Council,01-Dec-21,51301672662,"2,370.00",Permanent Futures Ltd,COMPANY,Business Systems,IT Stragety - Educations Systems,IT Software
Cambridgeshire County Council,01-Dec-21,51301684828,"2,405.23",Redacted Personal Data,INDIVIDUAL,Home to School Transport - Special,Home to School Transport Special - Special School,Home to School - Contract
Cambridgeshire County Council,01-Dec-21,51301684649,"2,462.29",NORFOLK COUNTY COUNCIL,OTHER PUBLIC BODIES,LAC Placements,Placements - independent fostering,Agency Placements - Out of  County
Cambridgeshire County Council,01-Dec-21,51301684638,"2,649.60",Tutor Doctor,EDUCATION,Out of School Tuition,Out of School Provision - Education and Settings,Independent School Placements
Cambridgeshire County Council,01-Dec-21,51301684635,"2,925.60",Tutor Doctor,EDUCATION,Out of School Tuition,Out of School Provision - Education and Settings,Independent School Placements
Cambridgeshire County Council,01-Dec-21,51301684595,"3,800.00",STAR CABS LTD,TRADE SUPPLIER,Disability Clubs,CamPlay Holiday Clubs,Car mileage and allowances - other
Cambridgeshire County Council,01-Dec-21,51301677442,"3,900.00",Victoria Commercial Furniture,TRADE SUPPLIER,Grafham Water,Grafham Water Centre,Furniture
Cambridgeshire County Council,01-Dec-21,51301677166,"3,910.92",G4S SECURE SOLUTIONS (UK) LTD,TRADE SUPPLIER,Shire Hall Relocation,Shire Hall Relocation,Buildings - Mechanical and Electrical
Cambridgeshire County Council,01-Dec-21,51301684936,"5,344.45",SARAH LEE & CO,TRADE SUPPLIER,GCP-Eastern Access,GCP - Eastern Access,Construction - External Professional Fees
Cambridgeshire County Council,01-Dec-21,51301684894,"5,754.28",Redacted Personal Data,INDIVIDUAL,Children's Disability Direct Payments,CSC Direct Payments,Direct Payments
Cambridgeshire County Council,01-Dec-21,51301684631,"7,396.82",Top Notch Tutors,EDUCATION,Out of School Tuition,Out of School Provision - Education and Settings,Independent School Placements
Cambridgeshire County Council,01-Dec-21,51301684602,"10,950.00",GRANT THORNTON UK LLP,TRADE SUPPLIER,Waste Disposal incl PFI,Waste PFI,External Legal Fees
Cambridgeshire County Council,01-Dec-21,51301677384,"12,000.00",Enterprise Car Club,COMPANY,Travel Plan,Smart Journeys,Advertising / Publicity (non Recruitment)
Cambridgeshire County Council,01-Dec-21,51301684892,"12,243.18",Cambridge Academic Partnership,EDUCATION,Cambridgeshire Skills - Ely Library,Cambridgeshire Skills - Ely - Learning,Grants
Cambridgeshire County Council,01-Dec-21,51301684661,"14,322.00",SEMI INDEPENDENT HOUSE,CARE ESTABLISHMENT,LAC Placements,Placements - residential homes,Agency Placements - In County
Cambridgeshire County Council,01-Dec-21,51301684893,"18,211.00",Redacted Personal Data,INDIVIDUAL,Children's Disability Direct Payments,CSC Direct Payments,Direct Payments
Cambridgeshire County Council,01-Dec-21,51301683522,"23,876.59",Pathfinder Legal Services Limited,TRADE SUPPLIER,Legal Proceedings,Legal Proceedings,External Legal Fees
Cambridgeshire County Council,01-Dec-21,51301677464,"112,504.84",NHS CAMBRIDGESHIRE&PETERBOROUGH CCG,CARE ESTABLISHMENT,PH Contraception,SH Contraception -  Prescribing Costs (F10),Professional Fees and Hired Services
Cambridgeshire County Council,02-Dec-21,51301684483,"-22,826.53",SOUTH CAMBRIDGESHIRE DISTRICT COUNCIL,OTHER PUBLIC BODIES,Corporate Offices,Sawston Community Centre,Business rates
Cambridgeshire County Council,02-Dec-21,51301685013,"-6,283.20",Grove Social Care Ltd,CARE ESTABLISHMENT,LAC Placements,Placements - supported accommodation,Agency Placements - In County
Cambridgeshire County Council,02-Dec-21,51301553439,"-4,280.06",CARETECH COMMUNITY SERVICES LTD (161 WOOTTON RD),CARE ESTABLISHMENT,Adolescent Team South,Adolescent Team South,Childrens Lodgings
Cambridgeshire County Council,02-Dec-21,51301685028,511.00,CAMBRIDGE CITY COUNCIL,OTHER PUBLIC BODIES,Corporate Offices,Cherry Hinton Library,Business rates
Cambridgeshire County Council,02-Dec-21,51301685131,544.00,Ely Cab,COMPANY,LD - East Locality - Cost of Care,LD - East Cambs - Care,Social Care Transport
Cambridgeshire County Council,02-Dec-21,51301685059,549.00,EAST CAMBRIDGESHIRE DISTRICT COUNCIL,OTHER PUBLIC BODIES,Corporate Offices,Littleport Children's Centre,Business rates
Cambridgeshire County Council,02-Dec-21,51301674809,576.00,Tuition EXTRA (Kent) LIMITED,EDUCATION,Out of School Tuition,Out of School Provision - Education and Settings,Independent School Placements
Cambridgeshire County Council,02-Dec-21,51301685259,579.60,Kids R Us @ Fulbourn,NURSERY,Nursery Schools,Early Years - Funded 3s/4s,Care & Ed Childcare Settings
Cambridgeshire County Council,02-Dec-21,51301672975,580.00,Redacted Personal Data,INDIVIDUAL,Early Years Specialist Support,Procurement - TA Therapy in Schools,Independent School Placements
Cambridgeshire County Council,02-Dec-21,51301685128,595.00,CAMCAB LTD,TRADE SUPPLIER,LD - Young Adults Team,LD - Young Adults - Care,Social Care Transport
Cambridgeshire County Council,02-Dec-21,51301685089,599.00,SOUTH CAMBRIDGESHIRE DISTRICT COUNCIL,OTHER PUBLIC BODIES,Corporate Offices,Cottenham Library,Business rates
Cambridgeshire County Council,02-Dec-21,51301673707,599.12,AVAILL HEALTHCARE,CARE ESTABLISHMENT,IHPS - South Accommodation Services,IHPS Jasmine House,Agency Staff
Cambridgeshire County Council,02-Dec-21,51301685023,611.00,CAMBRIDGE CITY COUNCIL,OTHER PUBLIC BODIES,Corporate Offices,42 Castle St,Business rates
Cambridgeshire County Council,02-Dec-21,51301685094,611.00,SOUTH CAMBRIDGESHIRE DISTRICT COUNCIL,OTHER PUBLIC BODIES,Corporate Offices,Bassingbourn Childrens Centre,Business rates
Cambridgeshire County Council,02-Dec-21,51301685130,616.00,BEV'S TAXIS,TRADE SUPPLIER,LD - Fenland Locality - Cost of Care,LD - Fenland  - Care,Social Care Transport
Cambridgeshire County Council,02-Dec-21,51301685078,624.00,SOUTH CAMBRIDGESHIRE DISTRICT COUNCIL,OTHER PUBLIC BODIES,Corporate Offices,Willingham Library,Business rates
Cambridgeshire County Council,02-Dec-21,51301672669,625.28,LITTLE WILBRAHAM AND SIX MILE BOTTOM PARISH COUNCIL,OTHER PUBLIC BODIES,Highways Maintenance,Highways Maintenance - Works,Village Maintenance
Cambridgeshire County Council,02-Dec-21,51301685133,648.00,ST TRANSPORT SOLUTIONS LTD,TRADE SUPPLIER,LD - Young Adults Team,LD - Young Adults - Care,Social Care Transport
Cambridgeshire County Council,02-Dec-21,51301673644,650.00,Gatwick Flyers (2008) Trampoline Club,COMPANY,Education Safety & Wellbeing PE & Sports,Education Health Safety and Wellbeing: PE & Sport Advisor,Professional Fees and Hired Services
Cambridgeshire County Council,02-Dec-21,51301672667,652.37,MELDRETH PARISH COUNCIL,OTHER PUBLIC BODIES,Highways Maintenance,Highways Maintenance - Works,Village Maintenance
Cambridgeshire County Council,02-Dec-21,51301685129,657.60,Sam Private Hire,COMPANY,LD - Young Adults Team,LD - Young Adults - Care,Social Care Transport
Cambridgeshire County Council,02-Dec-21,51301685060,661.00,EAST CAMBRIDGESHIRE DISTRICT COUNCIL,OTHER PUBLIC BODIES,Corporate Offices,Soham Children's Centre,Business rates
Cambridgeshire County Council,02-Dec-21,51301685037,742.00,CAMBRIDGE CITY COUNCIL,OTHER PUBLIC BODIES,Corporate Offices,33 Haviland Way CB4 2RE,Business rates
Cambridgeshire County Council,02-Dec-21,51301685024,749.00,CAMBRIDGE CITY COUNCIL,OTHER PUBLIC BODIES,Corporate Offices,Rock Road Library,Business rates
Cambridgeshire County Council,02-Dec-21,51301685049,798.00,EAST CAMBRIDGESHIRE DISTRICT COUNCIL,OTHER PUBLIC BODIES,Burwell House,Burwell House Residential Centre,Business rates
Cambridgeshire County Council,02-Dec-21,51301685026,798.00,CAMBRIDGE CITY COUNCIL,OTHER PUBLIC BODIES,Corporate Offices,Arbury Court Library,Business rates
Cambridgeshire County Council,02-Dec-21,51301684683,826.35,MANEA PRE SCHOOL,NURSERY,Early Years,SEND Specialist Services - SENIF,Care & Ed Partner Organisations
Cambridgeshire County Council,02-Dec-21,51301685097,848.00,SOUTH CAMBRIDGESHIRE DISTRICT COUNCIL,OTHER PUBLIC BODIES,Corporate Offices,Papworth Library,Business rates
Cambridgeshire County Council,02-Dec-21,51301685083,886.00,SOUTH CAMBRIDGESHIRE DISTRICT COUNCIL,OTHER PUBLIC BODIES,Park & Ride Parking,Waterbeach Park & Ride,Business rates
Cambridgeshire County Council,02-Dec-21,51301685063,923.00,EAST CAMBRIDGESHIRE DISTRICT COUNCIL,OTHER PUBLIC BODIES,Corporate Offices,Soham Library,Business rates
Cambridgeshire County Council,02-Dec-21,51301685036,923.00,CAMBRIDGE CITY COUNCIL,OTHER PUBLIC BODIES,Corporate Offices,Milton Road Library,Business rates
Cambridgeshire County Council,02-Dec-21,51301684968,977.90,Diagrama Foundation,COMPANY,Regional Adoption Agency,Regional Adoption Agency,Professional Fees and Hired Services
Cambridgeshire County Council,02-Dec-21,51301684967,985.60,Diagrama Foundation,COMPANY,Regional Adoption Agency,Regional Adoption Agency,Professional Fees and Hired Services
Cambridgeshire County Council,02-Dec-21,51301685067,"1,035.00",SOUTH CAMBRIDGESHIRE DISTRICT COUNCIL,OTHER PUBLIC BODIES,Waste Disposal incl PFI,Thriplow HWRC,Business rates
Cambridgeshire County Council,02-Dec-21,51301685042,"1,035.00",EAST CAMBRIDGESHIRE DISTRICT COUNCIL,OTHER PUBLIC BODIES,Corporate Offices,Burwell Library,Business rates
Cambridgeshire County Council,02-Dec-21,51301685193,"1,044.66",RED2GREEN,CARE ESTABLISHMENT,SEND High Needs Top Up,SEND Specialist Services-High needs top-up-Post 16,Independent School Placements
Cambridgeshire County Council,02-Dec-21,51301685079,"1,048.00",SOUTH CAMBRIDGESHIRE DISTRICT COUNCIL,OTHER PUBLIC BODIES,Corporate Offices,Bar Hill Library,Business rates
Cambridgeshire County Council,02-Dec-21,51301685117,"1,050.00",Smart Cars UK,COMPANY,LD - Young Adults Team,LD - Young Adults - Care,Social Care Transport
Cambridgeshire County Council,02-Dec-21,51301684991,"1,079.00",Together Tree,TRADE SUPPLIER,Regional Adoption Agency,Adoption Support Fund,Professional Fees and Hired Services
Cambridgeshire County Council,02-Dec-21,51301675325,"1,080.00",Pathfinder Legal Services Limited,TRADE SUPPLIER,Legal Proceedings,Legal Proceedings,External Legal Fees
Cambridgeshire County Council,02-Dec-21,51301685010,"1,085.00",Jolene Chisholm,EDUCATION,"General Prevention, Traveller Health",Travellers Project,Professional Fees and Hired Services
Cambridgeshire County Council,02-Dec-21,51301685035,"1,123.00",CAMBRIDGE CITY COUNCIL,OTHER PUBLIC BODIES,Park & Ride Parking,Guided Busway,Business rates
Cambridgeshire County Council,02-Dec-21,51301685056,"1,148.00",EAST CAMBRIDGESHIRE DISTRICT COUNCIL,OTHER PUBLIC BODIES,Corporate Offices,Bottisham Locality and Children's Centre,Business rates
Cambridgeshire County Council,02-Dec-21,51301685091,"1,160.00",SOUTH CAMBRIDGESHIRE DISTRICT COUNCIL,OTHER PUBLIC BODIES,Corporate Offices,Great Shelford Library,Business rates
Cambridgeshire County Council,02-Dec-21,51301685077,"1,160.00",SOUTH CAMBRIDGESHIRE DISTRICT COUNCIL,OTHER PUBLIC BODIES,Corporate Offices,Whittlesford Highways Depot,Business rates
Cambridgeshire County Council,02-Dec-21,51301685134,"1,166.40",ST TRANSPORT SOLUTIONS LTD,TRADE SUPPLIER,LAC Transport,LAC Transport - Home to School,Social Care Transport
Cambridgeshire County Council,02-Dec-21,51301685082,"1,185.00",SOUTH CAMBRIDGESHIRE DISTRICT COUNCIL,OTHER PUBLIC BODIES,Waste Disposal incl PFI,Milton HWRC,Business rates
Cambridgeshire County Council,02-Dec-21,51301685120,"1,190.40",Central Taxis Peterborough,COMPANY,LAC Transport,LAC Transport - Home to School,Social Care Transport
Cambridgeshire County Council,02-Dec-21,51301673704,"1,195.31",AVAILL HEALTHCARE,CARE ESTABLISHMENT,IHPS - South Accommodation Services,40 & 44 Russell Street,Agency Staff
Cambridgeshire County Council,02-Dec-21,51301685085,"1,347.00",SOUTH CAMBRIDGESHIRE DISTRICT COUNCIL,OTHER PUBLIC BODIES,Capital Receipts Expenses,Capital Receipts Expenses,Business rates
Cambridgeshire County Council,02-Dec-21,51301685086,"1,435.00",SOUTH CAMBRIDGESHIRE DISTRICT COUNCIL,OTHER PUBLIC BODIES,Corporate Offices,Whittlesford Highways Depot,Business rates
Cambridgeshire County Council,02-Dec-21,51301685076,"1,485.00",SOUTH CAMBRIDGESHIRE DISTRICT COUNCIL,OTHER PUBLIC BODIES,Corporate Offices,"Comberton Road, Toft",Business rates
Cambridgeshire County Council,02-Dec-21,51301685194,"1,539.60",RED2GREEN,CARE ESTABLISHMENT,SEND High Needs Top Up,SEND Specialist Services-High needs top-up-Post 16,Independent School Placements
Cambridgeshire County Council,02-Dec-21,51301685196,"1,554.54",RED2GREEN,CARE ESTABLISHMENT,SEND High Needs Top Up,SEND Specialist Services-High needs top-up-Post 16,Independent School Placements
Cambridgeshire County Council,02-Dec-21,51301685143,"1,575.00",Redacted Personal Data,INDIVIDUAL,SEND High Needs Top Up,"SEND Specialist Services,High Needs Top Up,Other institutions",Independent School Placements
Cambridgeshire County Council,02-Dec-21,51301685058,"1,584.00",EAST CAMBRIDGESHIRE DISTRICT COUNCIL,OTHER PUBLIC BODIES,Corporate Offices,Witchford Highways Depot,Business rates
Cambridgeshire County Council,02-Dec-21,51301685195,"1,609.90",RED2GREEN,CARE ESTABLISHMENT,SEND High Needs Top Up,SEND Specialist Services-High needs top-up-Post 16,Independent School Placements
Cambridgeshire County Council,02-Dec-21,51301685204,"1,678.68",RED2GREEN,CARE ESTABLISHMENT,SEND High Needs Top Up,SEND Specialist Services-High needs top-up-Post 16,Independent School Placements
Cambridgeshire County Council,02-Dec-21,51301685119,"1,689.60",Central Taxis Peterborough,COMPANY,LAC Transport,LAC Transport - Home to School,Social Care Transport
Cambridgeshire County Council,02-Dec-21,51301669324,"1,959.76",VIRGIN MEDIA LTD,COMPANY,ICT Service,ICT Service Sales,Materials for resale
Cambridgeshire County Council,02-Dec-21,51301672962,"1,962.00",ROLAND FLETCHER,SOLETRADER,Highways - Rights of Way,Highways - Rights of Way,Highways - Bridges
Cambridgeshire County Council,02-Dec-21,51301685145,"2,000.00",Redacted Personal Data,FOSTER PARENT,Fostering,FCP allowances,Adoption Allowances
Cambridgeshire County Council,02-Dec-21,51301669370,"2,050.80",Go Education LTD,COMPANY,Cambridgeshire Skills - March CC,Cambridgeshire Skills - March Community Centre - Learning,Educational Materials
Cambridgeshire County Council,02-Dec-21,51301685084,"2,202.00",SOUTH CAMBRIDGESHIRE DISTRICT COUNCIL,OTHER PUBLIC BODIES,Corporate Offices,Gamlingay First (Former School),Business rates
Cambridgeshire County Council,02-Dec-21,51301684959,"2,300.40",GD GREEN,SOLETRADER,County Farms,County Farms,County Farms Maintenance
Cambridgeshire County Council,02-Dec-21,51301685126,"2,304.00",NASA CARS,TRADE SUPPLIER,LAC Transport,LAC Transport - Home to School,Social Care Transport
Cambridgeshire County Council,02-Dec-21,51301685137,"2,304.00",SOUTH CAMBRIDGESHIRE DISTRICT COUNCIL,OTHER PUBLIC BODIES,Histon Additional Places,Histon Additional Places,Construction - External Professional Fees
Cambridgeshire County Council,02-Dec-21,51301685121,"2,380.42",Central Taxis Peterborough,COMPANY,LAC Transport,LAC Transport - Home to School,Social Care Transport
Cambridgeshire County Council,02-Dec-21,51301685041,"2,383.00",EAST CAMBRIDGESHIRE DISTRICT COUNCIL,OTHER PUBLIC BODIES,Waste Disposal incl PFI,Witchford HWRC,Business rates
Cambridgeshire County Council,02-Dec-21,51301685092,"2,458.00",SOUTH CAMBRIDGESHIRE DISTRICT COUNCIL,OTHER PUBLIC BODIES,Corporate Offices,Sackville House (Cambourne),Business rates
Cambridgeshire County Council,02-Dec-21,51301685011,"2,469.60",Grove Social Care Ltd,CARE ESTABLISHMENT,LAC Placements,Placements - supported accommodation,Agency Placements - In County
Cambridgeshire County Council,02-Dec-21,51301672323,"2,520.00",Panoramic Associates,COMPANY,PH COMF,PH - Contain Outbreak Management Fund,Agency Staff
Cambridgeshire County Council,02-Dec-21,51301685074,"2,842.00",SOUTH CAMBRIDGESHIRE DISTRICT COUNCIL,OTHER PUBLIC BODIES,Corporate Offices,Sackville House (Cambourne),Business rates
Cambridgeshire County Council,02-Dec-21,51301674587,"2,850.00",Pam Page Psychology Services Ltd,COMPANY,SEND Specialist Services - Education Psychology,SEND Specialist Services - Education Psychology,Professional Fees and Hired Services
Cambridgeshire County Council,02-Dec-21,51301669949,"2,856.00",Isle Interactive Limited,EDUCATION,ICT Service,ICT Service Business Support,Advertising / Publicity (non Recruitment)
Cambridgeshire County Council,02-Dec-21,51301685006,"3,000.00",Pathway CTM Limited,COMPANY,SEND Specialist Services,Additional Needs Team 14-25,Staff Training & Development
Cambridgeshire County Council,02-Dec-21,51301685029,"3,021.00",CAMBRIDGE CITY COUNCIL,OTHER PUBLIC BODIES,Corporate Offices,Roger Ascham Library,Business rates
Cambridgeshire County Council,02-Dec-21,51301685206,"3,150.54",RED2GREEN,CARE ESTABLISHMENT,SEND High Needs Top Up,SEND Specialist Services-High needs top-up-Post 16,Independent School Placements
Cambridgeshire County Council,02-Dec-21,51301685122,"3,264.00",Central Taxis Peterborough,COMPANY,LAC Transport,LAC Transport  - Contact Visits,Social Care Transport
Cambridgeshire County Council,02-Dec-21,51301685202,"3,346.68",RED2GREEN,CARE ESTABLISHMENT,SEND High Needs Top Up,SEND Specialist Services-High needs top-up-Post 16,Independent School Placements
Cambridgeshire County Council,02-Dec-21,51301685135,"3,348.00",ST TRANSPORT SOLUTIONS LTD,TRADE SUPPLIER,LD - Young Adults Team,LD - Young Adults - Care,Social Care Transport
Cambridgeshire County Council,02-Dec-21,51301685116,"3,383.00",Hunts Taxis Ltd,COMPANY,LD - Fenland Locality - Cost of Care,LD - Fenland  - Care,Social Care Transport
Cambridgeshire County Council,02-Dec-21,51301685062,"3,430.00",EAST CAMBRIDGESHIRE DISTRICT COUNCIL,OTHER PUBLIC BODIES,County Farms,"Triangle Solar Farm, Soham",Business rates
Cambridgeshire County Council,02-Dec-21,51301685069,"4,122.00",SOUTH CAMBRIDGESHIRE DISTRICT COUNCIL,OTHER PUBLIC BODIES,Corporate Offices,Sackville House (Cambourne),Business rates
Cambridgeshire County Council,02-Dec-21,51301685124,"4,284.00",NASA CARS,TRADE SUPPLIER,LD - Young Adults Team,LD - Young Adults - Care,Social Care Transport
Cambridgeshire County Council,02-Dec-21,51301685043,"4,378.00",EAST CAMBRIDGESHIRE DISTRICT COUNCIL,OTHER PUBLIC BODIES,Corporate Offices,Noble House,Business rates
Cambridgeshire County Council,02-Dec-21,51301685105,"4,420.00",KRAZYDAYZ PRIVATE DAY NURSERY,NURSERY,Early Years,Opportunity Area,Grants
Cambridgeshire County Council,02-Dec-21,51301685025,"4,480.00",CAMBRIDGE CITY COUNCIL,OTHER PUBLIC BODIES,Corporate Offices,Signet Court,Business rates
Cambridgeshire County Council,02-Dec-21,51301685012,"4,905.60",Grove Social Care Ltd,CARE ESTABLISHMENT,LAC Placements,Placements - supported accommodation,Agency Placements - In County
Cambridgeshire County Council,02-Dec-21,51301685065,"4,914.00",CANDLE (COMMUNICATION AND LEARNING ENTERPRISES LTD),TRADE SUPPLIER,Early Years Specialist Support,Procurement - TA Therapy in Schools,Independent School Placements
Cambridgeshire County Council,02-Dec-21,51301684969,"5,334.00",Jigsaw Adoption Ltd,CARE ESTABLISHMENT,Regional Adoption Agency,Regional Adoption Agency,Professional Fees and Hired Services
Cambridgeshire County Council,02-Dec-21,51301685046,"5,530.00",EAST CAMBRIDGESHIRE DISTRICT COUNCIL,OTHER PUBLIC BODIES,Corporate Offices,Ely Library,Business rates
Cambridgeshire County Council,02-Dec-21,51301685038,"6,093.00",CAMBRIDGE CITY COUNCIL,OTHER PUBLIC BODIES,Health & Safety,Arbury Road Site CB4 2JF,Business rates
Cambridgeshire County Council,02-Dec-21,51301685111,"6,172.66",Acorn Care & Education Ltd,EDUCATION,SEN Placements,Placements - Education,Independent School Placements
Cambridgeshire County Council,02-Dec-21,51301685018,"6,283.20",Grove Social Care Ltd,CARE ESTABLISHMENT,LAC Placements,Placements - supported accommodation,Agency Placements - In County
Cambridgeshire County Council,02-Dec-21,51301685016,"6,283.20",Grove Social Care Ltd,CARE ESTABLISHMENT,LAC Placements,Placements - supported accommodation,Agency Placements - In County
Cambridgeshire County Council,02-Dec-21,51301685017,"6,721.20",Grove Social Care Ltd,CARE ESTABLISHMENT,LAC Placements,Placements - supported accommodation,Agency Placements - In County
Cambridgeshire County Council,02-Dec-21,51301685098,"7,014.00",SOUTH CAMBRIDGESHIRE DISTRICT COUNCIL,OTHER PUBLIC BODIES,Park & Ride Parking,Newmarket Road P & R,Business rates
Cambridgeshire County Council,02-Dec-21,51301685030,"7,885.00",CAMBRIDGE CITY COUNCIL,OTHER PUBLIC BODIES,Park & Ride Parking,Madingley Road P & R,Business rates
Cambridgeshire County Council,02-Dec-21,51301685087,"8,038.00",SOUTH CAMBRIDGESHIRE DISTRICT COUNCIL,OTHER PUBLIC BODIES,Corporate Offices,"Bernard Sunley Centre, Papworth Everard",Business rates
Cambridgeshire County Council,02-Dec-21,51301685090,"8,499.00",SOUTH CAMBRIDGESHIRE DISTRICT COUNCIL,OTHER PUBLIC BODIES,Park & Ride Parking,Milton Park & Ride,Business rates
Cambridgeshire County Council,02-Dec-21,51301685031,"8,550.00",CAMBRIDGE CITY COUNCIL,OTHER PUBLIC BODIES,Park & Ride Parking,Babraham Road P & R,Business rates
Cambridgeshire County Council,02-Dec-21,51301685003,"10,970.81",ALLSTAR BUSINESS SOLUTIONS LTD,TRADE SUPPLIER,Corporate Offices,Pool Cars,Vehicle Running Costs
Cambridgeshire County Council,02-Dec-21,51301684949,"12,974.40",NPS PETERBOROUGH LTD,TRADE SUPPLIER,Investment in the CCC Asset Portfolio,Spokes - CPDC,Construction - External Professional Fees
Cambridgeshire County Council,02-Dec-21,51301685178,"12,978.00",Roadworks Information Ltd t/a one.network,TRADE SUPPLIER,IHMC and Events,IHMC and Events,Computer software - annual licence agreement
Cambridgeshire County Council,02-Dec-21,51301684976,"13,523.34",Pathfinder Legal Services Limited,TRADE SUPPLIER,Early Years Specialist Support,SEND - Tribunal,Independent School Placements
Cambridgeshire County Council,02-Dec-21,51301685061,"14,592.00",EAST CAMBRIDGESHIRE DISTRICT COUNCIL,OTHER PUBLIC BODIES,Corporate Offices,Ely Archive centre,Business rates
Cambridgeshire County Council,02-Dec-21,51301685032,"15,616.00",CAMBRIDGE CITY COUNCIL,OTHER PUBLIC BODIES,Park & Ride Parking,Trumpington Park & Ride,Business rates
Cambridgeshire County Council,02-Dec-21,51301672978,"16,440.07",CANDLE (COMMUNICATION AND LEARNING ENTERPRISES LTD),TRADE SUPPLIER,Early Years Specialist Support,Procurement - TA Therapy in Schools,Independent School Placements
Cambridgeshire County Council,02-Dec-21,51301685112,"17,395.67",Acorn Care & Education Ltd,EDUCATION,SEN Placements,Placements - Education,Independent School Placements
Cambridgeshire County Council,02-Dec-21,51301684962,"19,000.00",Pathfinder Legal Services Limited,TRADE SUPPLIER,Wisbech Town Centre Access Study,Wisbech Town Centre Access Study,Construction - External Professional Fees
Cambridgeshire County Council,02-Dec-21,51301685081,"21,504.00",SOUTH CAMBRIDGESHIRE DISTRICT COUNCIL,OTHER PUBLIC BODIES,Park & Ride Parking,Guided Busway,Business rates
Cambridgeshire County Council,02-Dec-21,51301685034,"21,760.00",CAMBRIDGE CITY COUNCIL,OTHER PUBLIC BODIES,Corporate Offices,Cambridge Central Library,Business rates
Cambridgeshire County Council,02-Dec-21,51301672109,"22,309.94",P WOODS CONSTRUCTION LTD,COMPANY,Decarbonisation Fund,Woodland Lodge Renewable Heating,"New Construction, Conversion and Renovation"
Cambridgeshire County Council,02-Dec-21,51301685022,"44,544.00",CAMBRIDGE CITY COUNCIL,OTHER PUBLIC BODIES,Corporate Offices,Shire Hall Area,Business rates
Cambridgeshire County Council,02-Dec-21,51301684560,"44,987.70",Armtrac Ltd,COMPANY,Swaffham Prior Energy Project,Swaffham Prior Energy Project,Buildings - Structure
Cambridgeshire County Council,03-Dec-21,51301685371,"-6,283.20",Grove Social Care Ltd,CARE ESTABLISHMENT,LAC Placements,Placements - supported accommodation,Agency Placements - In County
Cambridgeshire County Council,03-Dec-21,51301685612,"-1,127.10",The Gables (LD),CARE ESTABLISHMENT,LD - East Locality - Cost of Care,LD - East Cambs - Care,Residential Care
Cambridgeshire County Council,03-Dec-21,51301685612,"-1,127.10",The Gables (LD),CARE ESTABLISHMENT,LD - East Locality - Cost of Care,LD - East Cambs - Care,Residential Care
Cambridgeshire County Council,03-Dec-21,51301685612,"-1,127.10",The Gables (LD),CARE ESTABLISHMENT,LD - East Locality - Cost of Care,LD - East Cambs - Care,Residential Care
Cambridgeshire County Council,03-Dec-21,51301685612,"-1,127.10",The Gables (LD),CARE ESTABLISHMENT,LD - East Locality - Cost of Care,LD - East Cambs - Care,Residential Care
Cambridgeshire County Council,03-Dec-21,51301685612,"-1,127.10",The Gables (LD),CARE ESTABLISHMENT,LD - East Locality - Cost of Care,LD - East Cambs - Care,Residential Care
Cambridgeshire County Council,03-Dec-21,51301685612,"-1,127.10",The Gables (LD),CARE ESTABLISHMENT,LD - East Locality - Cost of Care,LD - East Cambs - Care,Residential Care
Cambridgeshire County Council,03-Dec-21,51301685612,"-1,127.10",The Gables (LD),CARE ESTABLISHMENT,LD - East Locality - Cost of Care,LD - East Cambs - Care,Residential Care
Cambridgeshire County Council,03-Dec-21,51301685612,"-1,127.10",The Gables (LD),CARE ESTABLISHMENT,LD - East Locality - Cost of Care,LD - East Cambs - Care,Residential Care
Cambridgeshire County Council,03-Dec-21,51301685612,"-1,127.10",The Gables (LD),CARE ESTABLISHMENT,LD - East Locality - Cost of Care,LD - East Cambs - Care,Residential Care
Cambridgeshire County Council,03-Dec-21,51301685612,"-1,127.10",The Gables (LD),CARE ESTABLISHMENT,LD - East Locality - Cost of Care,LD - East Cambs - Care,Residential Care
Cambridgeshire County Council,03-Dec-21,51301685502,"-1,116.45",AVICAN SUPPORT LTD,CARE ESTABLISHMENT,LD - Young Adults Team,LD - Young Adults - Care,Supported Living
Cambridgeshire County Council,03-Dec-21,51301685502,"-1,116.45",AVICAN SUPPORT LTD,CARE ESTABLISHMENT,LD - Young Adults Team,LD - Young Adults - Care,Supported Living
Cambridgeshire County Council,03-Dec-21,51301685502,"-1,116.45",AVICAN SUPPORT LTD,CARE ESTABLISHMENT,LD - Young Adults Team,LD - Young Adults - Care,Supported Living
Cambridgeshire County Council,03-Dec-21,51301685502,"-1,116.45",AVICAN SUPPORT LTD,CARE ESTABLISHMENT,LD - Young Adults Team,LD - Young Adults - Care,Supported Living
Cambridgeshire County Council,03-Dec-21,51301685502,"-1,116.45",AVICAN SUPPORT LTD,CARE ESTABLISHMENT,LD - Young Adults Team,LD - Young Adults - Care,Supported Living
Cambridgeshire County Council,03-Dec-21,51301685502,"-1,116.45",AVICAN SUPPORT LTD,CARE ESTABLISHMENT,LD - Young Adults Team,LD - Young Adults - Care,Supported Living
Cambridgeshire County Council,03-Dec-21,51301685502,"-1,116.45",AVICAN SUPPORT LTD,CARE ESTABLISHMENT,LD - Young Adults Team,LD - Young Adults - Care,Supported Living
Cambridgeshire County Council,03-Dec-21,51301685507,"-1,098.05",THERA EAST ANGLIA,CARE ESTABLISHMENT,LD - Young Adults Team,LD - Young Adults - Care,Supported Living
Cambridgeshire County Council,03-Dec-21,51301685613,"-1,012.40",BARCHESTER HEALTHCARE HOMES LTD,CARE ESTABLISHMENT,OP - East Cambs Locality - Cost of Care,East Cambs - O P Team - Care,Nursing Care
Cambridgeshire County Council,03-Dec-21,51301685613,"-1,012.40",BARCHESTER HEALTHCARE HOMES LTD,CARE ESTABLISHMENT,OP - East Cambs Locality - Cost of Care,East Cambs - O P Team - Care,Nursing Care
Cambridgeshire County Council,03-Dec-21,51301685613,"-1,012.40",BARCHESTER HEALTHCARE HOMES LTD,CARE ESTABLISHMENT,OP - East Cambs Locality - Cost of Care,East Cambs - O P Team - Care,Nursing Care
Cambridgeshire County Council,03-Dec-21,51301685613,"-1,012.40",BARCHESTER HEALTHCARE HOMES LTD,CARE ESTABLISHMENT,OP - East Cambs Locality - Cost of Care,East Cambs - O P Team - Care,Nursing Care
Cambridgeshire County Council,03-Dec-21,51301685613,"-1,012.40",BARCHESTER HEALTHCARE HOMES LTD,CARE ESTABLISHMENT,OP - East Cambs Locality - Cost of Care,East Cambs - O P Team - Care,Nursing Care
Cambridgeshire County Council,03-Dec-21,51301685613,"-1,012.40",BARCHESTER HEALTHCARE HOMES LTD,CARE ESTABLISHMENT,OP - East Cambs Locality - Cost of Care,East Cambs - O P Team - Care,Nursing Care
Cambridgeshire County Council,03-Dec-21,51301685613,"-1,012.40",BARCHESTER HEALTHCARE HOMES LTD,CARE ESTABLISHMENT,OP - East Cambs Locality - Cost of Care,East Cambs - O P Team - Care,Nursing Care
Cambridgeshire County Council,03-Dec-21,51301685613,"-1,012.40",BARCHESTER HEALTHCARE HOMES LTD,CARE ESTABLISHMENT,OP - East Cambs Locality - Cost of Care,East Cambs - O P Team - Care,Nursing Care
Cambridgeshire County Council,03-Dec-21,51301685613,"-1,012.40",BARCHESTER HEALTHCARE HOMES LTD,CARE ESTABLISHMENT,OP - East Cambs Locality - Cost of Care,East Cambs - O P Team - Care,Nursing Care
Cambridgeshire County Council,03-Dec-21,51301685613,"-1,012.40",BARCHESTER HEALTHCARE HOMES LTD,CARE ESTABLISHMENT,OP - East Cambs Locality - Cost of Care,East Cambs - O P Team - Care,Nursing Care
Cambridgeshire County Council,03-Dec-21,51301685613,"-1,012.40",BARCHESTER HEALTHCARE HOMES LTD,CARE ESTABLISHMENT,OP - East Cambs Locality - Cost of Care,East Cambs - O P Team - Care,Nursing Care
Cambridgeshire County Council,03-Dec-21,51301685613,"-1,012.40",BARCHESTER HEALTHCARE HOMES LTD,CARE ESTABLISHMENT,OP - East Cambs Locality - Cost of Care,East Cambs - O P Team - Care,Nursing Care
Cambridgeshire County Council,03-Dec-21,51301685613,"-1,012.40",BARCHESTER HEALTHCARE HOMES LTD,CARE ESTABLISHMENT,OP - East Cambs Locality - Cost of Care,East Cambs - O P Team - Care,Nursing Care
Cambridgeshire County Council,03-Dec-21,51301685613,"-1,012.40",BARCHESTER HEALTHCARE HOMES LTD,CARE ESTABLISHMENT,OP - East Cambs Locality - Cost of Care,East Cambs - O P Team - Care,Nursing Care
Cambridgeshire County Council,03-Dec-21,51301685613,"-1,012.40",BARCHESTER HEALTHCARE HOMES LTD,CARE ESTABLISHMENT,OP - East Cambs Locality - Cost of Care,East Cambs - O P Team - Care,Nursing Care
Cambridgeshire County Council,03-Dec-21,51301685613,"-1,012.40",BARCHESTER HEALTHCARE HOMES LTD,CARE ESTABLISHMENT,OP - East Cambs Locality - Cost of Care,East Cambs - O P Team - Care,Nursing Care
Cambridgeshire County Council,03-Dec-21,51301685613,"-1,012.40",BARCHESTER HEALTHCARE HOMES LTD,CARE ESTABLISHMENT,OP - East Cambs Locality - Cost of Care,East Cambs - O P Team - Care,Nursing Care
Cambridgeshire County Council,03-Dec-21,51301685613,"-1,012.40",BARCHESTER HEALTHCARE HOMES LTD,CARE ESTABLISHMENT,OP - East Cambs Locality - Cost of Care,East Cambs - O P Team - Care,Nursing Care
Cambridgeshire County Council,03-Dec-21,51301685613,"-1,012.40",BARCHESTER HEALTHCARE HOMES LTD,CARE ESTABLISHMENT,OP - East Cambs Locality - Cost of Care,East Cambs - O P Team - Care,Nursing Care
Cambridgeshire County Council,03-Dec-21,51301685613,"-1,012.40",BARCHESTER HEALTHCARE HOMES LTD,CARE ESTABLISHMENT,OP - East Cambs Locality - Cost of Care,East Cambs - O P Team - Care,Nursing Care
Cambridgeshire County Council,03-Dec-21,51301685613,"-1,012.40",BARCHESTER HEALTHCARE HOMES LTD,CARE ESTABLISHMENT,OP - East Cambs Locality - Cost of Care,East Cambs - O P Team - Care,Nursing Care
Cambridgeshire County Council,03-Dec-21,51301685613,"-1,012.40",BARCHESTER HEALTHCARE HOMES LTD,CARE ESTABLISHMENT,OP - East Cambs Locality - Cost of Care,East Cambs - O P Team - Care,Nursing Care
Cambridgeshire County Council,03-Dec-21,51301685613,"-1,012.40",BARCHESTER HEALTHCARE HOMES LTD,CARE ESTABLISHMENT,OP - East Cambs Locality - Cost of Care,East Cambs - O P Team - Care,Nursing Care
Cambridgeshire County Council,03-Dec-21,51301685613,"-1,012.40",BARCHESTER HEALTHCARE HOMES LTD,CARE ESTABLISHMENT,OP - East Cambs Locality - Cost of Care,East Cambs - O P Team - Care,Nursing Care
Cambridgeshire County Council,03-Dec-21,51301685613,"-1,012.40",BARCHESTER HEALTHCARE HOMES LTD,CARE ESTABLISHMENT,OP - East Cambs Locality - Cost of Care,East Cambs - O P Team - Care,Nursing Care
Cambridgeshire County Council,03-Dec-21,51301685613,"-1,012.40",BARCHESTER HEALTHCARE HOMES LTD,CARE ESTABLISHMENT,OP - East Cambs Locality - Cost of Care,East Cambs - O P Team - Care,Nursing Care
Cambridgeshire County Council,03-Dec-21,51301685613,"-1,012.40",BARCHESTER HEALTHCARE HOMES LTD,CARE ESTABLISHMENT,OP - East Cambs Locality - Cost of Care,East Cambs - O P Team - Care,Nursing Care
Cambridgeshire County Council,03-Dec-21,51301685613,"-1,012.40",BARCHESTER HEALTHCARE HOMES LTD,CARE ESTABLISHMENT,OP - East Cambs Locality - Cost of Care,East Cambs - O P Team - Care,Nursing Care
Cambridgeshire County Council,03-Dec-21,51301685613,"-1,012.40",BARCHESTER HEALTHCARE HOMES LTD,CARE ESTABLISHMENT,OP - East Cambs Locality - Cost of Care,East Cambs - O P Team - Care,Nursing Care
Cambridgeshire County Council,03-Dec-21,51301685613,"-1,012.40",BARCHESTER HEALTHCARE HOMES LTD,CARE ESTABLISHMENT,OP - East Cambs Locality - Cost of Care,East Cambs - O P Team - Care,Nursing Care
Cambridgeshire County Council,03-Dec-21,51301685613,"-1,012.40",BARCHESTER HEALTHCARE HOMES LTD,CARE ESTABLISHMENT,OP - East Cambs Locality - Cost of Care,East Cambs - O P Team - Care,Nursing Care
Cambridgeshire County Council,03-Dec-21,51301685613,"-1,012.40",BARCHESTER HEALTHCARE HOMES LTD,CARE ESTABLISHMENT,OP - East Cambs Locality - Cost of Care,East Cambs - O P Team - Care,Nursing Care
Cambridgeshire County Council,03-Dec-21,51301685613,"-1,012.40",BARCHESTER HEALTHCARE HOMES LTD,CARE ESTABLISHMENT,OP - East Cambs Locality - Cost of Care,East Cambs - O P Team - Care,Nursing Care
Cambridgeshire County Council,03-Dec-21,51301685607,"-1,000.00",MIDFIELD LODGE CARE CENTRE,CARE ESTABLISHMENT,OP - City & South Locality - Cost of Care,Older People - City & South - Care,Nursing Care
Cambridgeshire County Council,03-Dec-21,51301685612,-966.09,The Gables (LD),CARE ESTABLISHMENT,LD - East Locality - Cost of Care,LD - East Cambs - Care,Residential Care
Cambridgeshire County Council,03-Dec-21,51301685611,-950.00,MIDFIELD LODGE CARE CENTRE,CARE ESTABLISHMENT,OP - City & South Locality - Cost of Care,Older People - City & South - Care,Nursing Care
Cambridgeshire County Council,03-Dec-21,51301685507,-941.19,THERA EAST ANGLIA,CARE ESTABLISHMENT,LD - Young Adults Team,LD - Young Adults - Care,Supported Living
Cambridgeshire County Council,03-Dec-21,51301685607,-857.14,MIDFIELD LODGE CARE CENTRE,CARE ESTABLISHMENT,OP - City & South Locality - Cost of Care,Older People - City & South - Care,Nursing Care
Cambridgeshire County Council,03-Dec-21,51301685611,-814.29,MIDFIELD LODGE CARE CENTRE,CARE ESTABLISHMENT,OP - City & South Locality - Cost of Care,Older People - City & South - Care,Nursing Care
Cambridgeshire County Council,03-Dec-21,51301685614,-737.40,MIDFIELD LODGE CARE CENTRE,CARE ESTABLISHMENT,OP - City & South Locality - Cost of Care,Older People - City & South - Care,Nursing Care
Cambridgeshire County Council,03-Dec-21,51301685608,-724.44,MIDFIELD LODGE CARE CENTRE,CARE ESTABLISHMENT,OP - City & South Locality - Cost of Care,Older People - City & South - Care,Nursing Care
Cambridgeshire County Council,03-Dec-21,51301685610,-716.08,MIDFIELD LODGE CARE CENTRE,CARE ESTABLISHMENT,Physical Disablity - Cost of Care,Countywide PD Service - Care,Nursing Care
Cambridgeshire County Council,03-Dec-21,51301685600,-640.00,Redacted Personal Data,INDIVIDUAL,LD - Young Adults Team,LD - Young Adults - Special Needs,Direct Payments
Cambridgeshire County Council,03-Dec-21,51301685502,-637.97,AVICAN SUPPORT LTD,CARE ESTABLISHMENT,LD - Young Adults Team,LD - Young Adults - Care,Supported Living
Cambridgeshire County Council,03-Dec-21,51301685614,-632.06,MIDFIELD LODGE CARE CENTRE,CARE ESTABLISHMENT,OP - City & South Locality - Cost of Care,Older People - City & South - Care,Nursing Care
Cambridgeshire County Council,03-Dec-21,51301685608,-620.95,MIDFIELD LODGE CARE CENTRE,CARE ESTABLISHMENT,OP - City & South Locality - Cost of Care,Older People - City & South - Care,Nursing Care
Cambridgeshire County Council,03-Dec-21,51301685610,-613.78,MIDFIELD LODGE CARE CENTRE,CARE ESTABLISHMENT,Physical Disablity - Cost of Care,Countywide PD Service - Care,Nursing Care
Cambridgeshire County Council,03-Dec-21,51301685553,-602.35,Ray Care Services,CARE ESTABLISHMENT,OP - City & South Locality - Cost of Care,Older People - City & South - Care,Domiciliary Care
Cambridgeshire County Council,03-Dec-21,51301685553,-602.35,Ray Care Services,CARE ESTABLISHMENT,OP - City & South Locality - Cost of Care,Older People - City & South - Care,Domiciliary Care
Cambridgeshire County Council,03-Dec-21,51301685613,-578.51,BARCHESTER HEALTHCARE HOMES LTD,CARE ESTABLISHMENT,OP - East Cambs Locality - Cost of Care,East Cambs - O P Team - Care,Nursing Care
Cambridgeshire County Council,03-Dec-21,51301685530,-542.49,AVAILL HEALTHCARE,CARE ESTABLISHMENT,OP - City & South Locality - Cost of Care,Older People - City & South - Care,Domiciliary Care
Cambridgeshire County Council,03-Dec-21,51301685530,-542.49,AVAILL HEALTHCARE,CARE ESTABLISHMENT,OP - City & South Locality - Cost of Care,Older People - City & South - Care,Domiciliary Care
Cambridgeshire County Council,03-Dec-21,51301685530,-542.49,AVAILL HEALTHCARE,CARE ESTABLISHMENT,OP - City & South Locality - Cost of Care,Older People - City & South - Care,Domiciliary Care
Cambridgeshire County Council,03-Dec-21,51301685530,-542.49,AVAILL HEALTHCARE,CARE ESTABLISHMENT,OP - City & South Locality - Cost of Care,Older People - City & South - Care,Domiciliary Care
Cambridgeshire County Council,03-Dec-21,51301685549,-538.97,Destiny Integrated Care Ltd,CARE ESTABLISHMENT,OP - City & South Locality - Cost of Care,Older People - City & South - Care,Domiciliary Care
Cambridgeshire County Council,03-Dec-21,51301685549,-538.97,Destiny Integrated Care Ltd,CARE ESTABLISHMENT,OP - City & South Locality - Cost of Care,Older People - City & South - Care,Domiciliary Care
Cambridgeshire County Council,03-Dec-21,51301685624,514.77,THE FIRS (Barrels Care),CARE ESTABLISHMENT,OP - Fenland Locality - Cost of Care,Older People - Fenland - Care,Residential Care
Cambridgeshire County Council,03-Dec-21,51301685589,517.44,TRINITY CARESTAFF SOLUTIONS LIMITED,CARE ESTABLISHMENT,Physical Disablity - Cost of Care,Countywide PD Service - Care,Domiciliary Care
Cambridgeshire County Council,03-Dec-21,51301685539,517.44,TRINITY CARESTAFF SOLUTIONS LIMITED,CARE ESTABLISHMENT,OP - East Cambs Locality - Cost of Care,East Cambs - O P Team - Care,Domiciliary Care
Cambridgeshire County Council,03-Dec-21,51301685519,517.86,METHODIST HOMES FOR THE AGED (MHA),CARE ESTABLISHMENT,OP - East Cambs Locality - Cost of Care,East Cambs - O P Team - Care,Rehabilitation And Respite Care
Cambridgeshire County Council,03-Dec-21,51301685604,518.00,Redacted Personal Data,INDIVIDUAL,LD - Young Adults Team,LD - Young Adults - Care,Direct Payments
Cambridgeshire County Council,03-Dec-21,51301685612,519.12,The Gables (LD),CARE ESTABLISHMENT,LD - East Locality - Cost of Care,LD - East Cambs - Care,Residential Care
Cambridgeshire County Council,03-Dec-21,51301685612,519.12,The Gables (LD),CARE ESTABLISHMENT,LD - East Locality - Cost of Care,LD - East Cambs - Care,Residential Care
Cambridgeshire County Council,03-Dec-21,51301685612,519.12,The Gables (LD),CARE ESTABLISHMENT,LD - East Locality - Cost of Care,LD - East Cambs - Care,Residential Care
Cambridgeshire County Council,03-Dec-21,51301685612,519.12,The Gables (LD),CARE ESTABLISHMENT,LD - East Locality - Cost of Care,LD - East Cambs - Care,Residential Care
Cambridgeshire County Council,03-Dec-21,51301685612,519.12,The Gables (LD),CARE ESTABLISHMENT,LD - East Locality - Cost of Care,LD - East Cambs - Care,Residential Care
Cambridgeshire County Council,03-Dec-21,51301685612,519.12,The Gables (LD),CARE ESTABLISHMENT,LD - East Locality - Cost of Care,LD - East Cambs - Care,Residential Care
Cambridgeshire County Council,03-Dec-21,51301685612,519.12,The Gables (LD),CARE ESTABLISHMENT,LD - East Locality - Cost of Care,LD - East Cambs - Care,Residential Care
Cambridgeshire County Council,03-Dec-21,51301685612,519.12,The Gables (LD),CARE ESTABLISHMENT,LD - East Locality - Cost of Care,LD - East Cambs - Care,Residential Care
Cambridgeshire County Council,03-Dec-21,51301685612,519.12,The Gables (LD),CARE ESTABLISHMENT,LD - East Locality - Cost of Care,LD - East Cambs - Care,Residential Care
Cambridgeshire County Council,03-Dec-21,51301685612,519.12,The Gables (LD),CARE ESTABLISHMENT,LD - East Locality - Cost of Care,LD - East Cambs - Care,Residential Care
Cambridgeshire County Council,03-Dec-21,51301685588,523.88,BLUEBIRD CARE NEWMARKET & FENLAND,CARE ESTABLISHMENT,Physical Disablity - Cost of Care,Countywide PD Service - Care,Domiciliary Care
Cambridgeshire County Council,03-Dec-21,51301685623,525.94,WOODLANDS CARE CENTRE,CARE ESTABLISHMENT,OPMH - City & South,Older People Mental Health City & South,Nursing Care
Cambridgeshire County Council,03-Dec-21,51301685568,528.66,Total Healthcare,COMPANY,OP - Hunts Locality - Cost of Care,Hunts OP Team - Care,Domiciliary Care
Cambridgeshire County Council,03-Dec-21,51301685609,543.94,THE MANOR CHESHIRE HOME,CARE ESTABLISHMENT,LD - Hunts Locality - Cost of Care,LD - Huntingdonshire - Care,Residential Care
Cambridgeshire County Council,03-Dec-21,51301672469,552.00,Top Notch Tutors,EDUCATION,Schools Partnership Service,Virtual School LACPP Financing,Mandatory Student Awards
Cambridgeshire County Council,03-Dec-21,51301685583,555.03,Harmony Homecare Suffolk,CARE ESTABLISHMENT,OP - City & South Locality - Cost of Care,Older People - City & South - Care,Domiciliary Care
Cambridgeshire County Council,03-Dec-21,51301685583,555.03,Harmony Homecare Suffolk,CARE ESTABLISHMENT,OP - City & South Locality - Cost of Care,Older People - City & South - Care,Domiciliary Care
Cambridgeshire County Council,03-Dec-21,51301685522,557.14,THE FIRS (Barrels Care),CARE ESTABLISHMENT,OP - East Cambs Locality - Cost of Care,East Cambs - O P Team - Care,Rehabilitation And Respite Care
Cambridgeshire County Council,03-Dec-21,51301672481,560.58,TIDEY ELECTRICAL LTD,TRADE SUPPLIER,Connecting Cambridgeshire,Connecting Cambridgeshire,Professional Fees and Hired Services
Cambridgeshire County Council,03-Dec-21,51301685639,561.00,FENLAND DISTRICT COUNCIL,OTHER PUBLIC BODIES,Waste Disposal incl PFI,Whittlesey HWRC,Business rates
Cambridgeshire County Council,03-Dec-21,51301685705,566.40,ASH SCHOOL TRANSPORT,TRADE SUPPLIER,Home to School Transport - Special,Home to School Transport Special - Out of County,Home to School - Contract
Cambridgeshire County Council,03-Dec-21,51301685368,570.00,TRANSITION CARE PETERBOROUGH LTD,CARE ESTABLISHMENT,LAC Placements,Placements - supported accommodation,Agency Placements - In County
Cambridgeshire County Council,03-Dec-21,51301685370,570.00,TRANSITION CARE PETERBOROUGH LTD,CARE ESTABLISHMENT,LAC Placements,Placements - supported accommodation,Agency Placements - In County
Cambridgeshire County Council,03-Dec-21,51301685369,570.00,TRANSITION CARE PETERBOROUGH LTD,CARE ESTABLISHMENT,LAC Placements,Placements - supported accommodation,Agency Placements - In County
Cambridgeshire County Council,03-Dec-21,51301685647,574.00,FENLAND DISTRICT COUNCIL,OTHER PUBLIC BODIES,Corporate Offices,March Community Centre (C&I),Business rates
Cambridgeshire County Council,03-Dec-21,51301685615,578.57,MIDFIELD LODGE CARE CENTRE,CARE ESTABLISHMENT,OP - East Cambs Locality - Cost of Care,East Cambs - O P Team - Care,Nursing Care
Cambridgeshire County Council,03-Dec-21,51301685660,586.00,HUNTINGDONSHIRE DISTRICT COUNCIL,OTHER PUBLIC BODIES,Corporate Offices,Yaxley Library,Business rates
Cambridgeshire County Council,03-Dec-21,51301685576,592.52,PBS Care,CARE ESTABLISHMENT,OP - Hunts Locality - Cost of Care,Hunts OP Team - Care,Domiciliary Care
Cambridgeshire County Council,03-Dec-21,51301685623,594.72,WOODLANDS CARE CENTRE,CARE ESTABLISHMENT,OPMH - City & South,Older People Mental Health City & South,Nursing Care
Cambridgeshire County Council,03-Dec-21,51301685549,598.85,Destiny Integrated Care Ltd,CARE ESTABLISHMENT,OP - City & South Locality - Cost of Care,Older People - City & South - Care,Domiciliary Care
Cambridgeshire County Council,03-Dec-21,51301685549,598.85,Destiny Integrated Care Ltd,CARE ESTABLISHMENT,OP - City & South Locality - Cost of Care,Older People - City & South - Care,Domiciliary Care
Cambridgeshire County Council,03-Dec-21,51301672637,600.00,REMARK! LTD,TRADE SUPPLIER,Safeguarding Hunts and Fenland,C&F Safeguarding H&F - Interpreters,Professional Fees and Hired Services
Cambridgeshire County Council,03-Dec-21,51301685489,600.00,Ash Hall Nursing Home,CARE ESTABLISHMENT,OP - Hunts Locality - Cost of Care,Hunts OP Team - Care,Nursing Care
Cambridgeshire County Council,03-Dec-21,51301685624,600.57,THE FIRS (Barrels Care),CARE ESTABLISHMENT,OP - Fenland Locality - Cost of Care,Older People - Fenland - Care,Residential Care
Cambridgeshire County Council,03-Dec-21,51301685624,600.57,THE FIRS (Barrels Care),CARE ESTABLISHMENT,OP - Fenland Locality - Cost of Care,Older People - Fenland - Care,Residential Care
Cambridgeshire County Council,03-Dec-21,51301685624,600.57,THE FIRS (Barrels Care),CARE ESTABLISHMENT,OP - Fenland Locality - Cost of Care,Older People - Fenland - Care,Residential Care
Cambridgeshire County Council,03-Dec-21,51301685624,600.57,THE FIRS (Barrels Care),CARE ESTABLISHMENT,OP - Fenland Locality - Cost of Care,Older People - Fenland - Care,Residential Care
Cambridgeshire County Council,03-Dec-21,51301685624,600.57,THE FIRS (Barrels Care),CARE ESTABLISHMENT,OP - Fenland Locality - Cost of Care,Older People - Fenland - Care,Residential Care
Cambridgeshire County Council,03-Dec-21,51301685624,600.57,THE FIRS (Barrels Care),CARE ESTABLISHMENT,OP - Fenland Locality - Cost of Care,Older People - Fenland - Care,Residential Care
Cambridgeshire County Council,03-Dec-21,51301685624,600.57,THE FIRS (Barrels Care),CARE ESTABLISHMENT,OP - Fenland Locality - Cost of Care,Older People - Fenland - Care,Residential Care
Cambridgeshire County Council,03-Dec-21,51301685572,602.35,Ray Care Services,CARE ESTABLISHMENT,OP - City & South Locality - Cost of Care,Older People - City & South - Care,Domiciliary Care
Cambridgeshire County Council,03-Dec-21,51301685572,602.35,Ray Care Services,CARE ESTABLISHMENT,OP - City & South Locality - Cost of Care,Older People - City & South - Care,Domiciliary Care
Cambridgeshire County Council,03-Dec-21,51301685613,607.09,BARCHESTER HEALTHCARE HOMES LTD,CARE ESTABLISHMENT,OP - East Cambs Locality - Cost of Care,East Cambs - O P Team - Care,Nursing Care
Cambridgeshire County Council,03-Dec-21,51301685571,607.14,MK WORLDWIDE LTD (T/A LEAD CARE),CARE ESTABLISHMENT,OP - City & South Locality - Cost of Care,Older People - City & South - Care,Homecare
Cambridgeshire County Council,03-Dec-21,51301685735,609.60,4X LIMITED T/A STEVES TAXI & PRIVATE HIRE,TRADE SUPPLIER,Home to School Transport - Special,Home to School Transport Special - Post 16,Home to School - Contract
Cambridgeshire County Council,03-Dec-21,51301685579,616.03,PBS Care,CARE ESTABLISHMENT,OP - Hunts Locality - Cost of Care,Hunts OP Team - Care,Domiciliary Care
Cambridgeshire County Council,03-Dec-21,51301685616,642.86,HARDWICK DENE,CARE ESTABLISHMENT,OP - Hunts Locality - Cost of Care,Hunts OP Team - Care,Residential Care
Cambridgeshire County Council,03-Dec-21,51301685491,642.86,HATLEY COURT HAVEN LTD,CARE ESTABLISHMENT,OP - City & South Locality - Cost of Care,Older People - City & South - Care,Residential Care
Cambridgeshire County Council,03-Dec-21,51301685522,650.00,THE FIRS (Barrels Care),CARE ESTABLISHMENT,OP - East Cambs Locality - Cost of Care,East Cambs - O P Team - Care,Rehabilitation And Respite Care
Cambridgeshire County Council,03-Dec-21,51301685619,650.00,THE FIRS (Barrels Care),CARE ESTABLISHMENT,OP - Fenland Locality - Cost of Care,Older People - Fenland - Care,Residential Care
Cambridgeshire County Council,03-Dec-21,51301685619,650.00,THE FIRS (Barrels Care),CARE ESTABLISHMENT,OP - Fenland Locality - Cost of Care,Older People - Fenland - Care,Residential Care
Cambridgeshire County Council,03-Dec-21,51301685619,650.00,THE FIRS (Barrels Care),CARE ESTABLISHMENT,OP - Fenland Locality - Cost of Care,Older People - Fenland - Care,Residential Care
Cambridgeshire County Council,03-Dec-21,51301685619,650.00,THE FIRS (Barrels Care),CARE ESTABLISHMENT,OP - Fenland Locality - Cost of Care,Older People - Fenland - Care,Residential Care
Cambridgeshire County Council,03-Dec-21,51301685619,650.00,THE FIRS (Barrels Care),CARE ESTABLISHMENT,OP - Fenland Locality - Cost of Care,Older People - Fenland - Care,Residential Care
Cambridgeshire County Council,03-Dec-21,51301685619,650.00,THE FIRS (Barrels Care),CARE ESTABLISHMENT,OP - Fenland Locality - Cost of Care,Older People - Fenland - Care,Residential Care
Cambridgeshire County Council,03-Dec-21,51301685490,650.00,LABURNUM LODGE,CARE ESTABLISHMENT,OP - East Cambs Locality - Cost of Care,East Cambs - O P Team - Care,Residential Care
Cambridgeshire County Council,03-Dec-21,51301685490,650.00,LABURNUM LODGE,CARE ESTABLISHMENT,OP - East Cambs Locality - Cost of Care,East Cambs - O P Team - Care,Residential Care
Cambridgeshire County Council,03-Dec-21,51301685617,668.08,MIDFIELD LODGE CARE CENTRE,CARE ESTABLISHMENT,OP - City & South Locality - Cost of Care,Older People - City & South - Care,Nursing Care
Cambridgeshire County Council,03-Dec-21,51301685617,668.08,MIDFIELD LODGE CARE CENTRE,CARE ESTABLISHMENT,OP - City & South Locality - Cost of Care,Older People - City & South - Care,Nursing Care
Cambridgeshire County Council,03-Dec-21,51301685617,668.08,MIDFIELD LODGE CARE CENTRE,CARE ESTABLISHMENT,OP - City & South Locality - Cost of Care,Older People - City & South - Care,Nursing Care
Cambridgeshire County Council,03-Dec-21,51301685617,668.08,MIDFIELD LODGE CARE CENTRE,CARE ESTABLISHMENT,OP - City & South Locality - Cost of Care,Older People - City & South - Care,Nursing Care
Cambridgeshire County Council,03-Dec-21,51301685617,668.08,MIDFIELD LODGE CARE CENTRE,CARE ESTABLISHMENT,OP - City & South Locality - Cost of Care,Older People - City & South - Care,Nursing Care
Cambridgeshire County Council,03-Dec-21,51301685617,668.08,MIDFIELD LODGE CARE CENTRE,CARE ESTABLISHMENT,OP - City & South Locality - Cost of Care,Older People - City & South - Care,Nursing Care
Cambridgeshire County Council,03-Dec-21,51301685617,668.08,MIDFIELD LODGE CARE CENTRE,CARE ESTABLISHMENT,OP - City & South Locality - Cost of Care,Older People - City & South - Care,Nursing Care
Cambridgeshire County Council,03-Dec-21,51301685617,668.08,MIDFIELD LODGE CARE CENTRE,CARE ESTABLISHMENT,OP - City & South Locality - Cost of Care,Older People - City & South - Care,Nursing Care
Cambridgeshire County Council,03-Dec-21,51301685502,681.03,AVICAN SUPPORT LTD,CARE ESTABLISHMENT,LD - Young Adults Team,LD - Young Adults - Care,Supported Living
Cambridgeshire County Council,03-Dec-21,51301685651,686.00,HUNTINGDONSHIRE DISTRICT COUNCIL,OTHER PUBLIC BODIES,Corporate Offices,"Earith, Somersham and Warboys Children's Centre",Business rates
Cambridgeshire County Council,03-Dec-21,51301685489,700.00,Ash Hall Nursing Home,CARE ESTABLISHMENT,OP - Hunts Locality - Cost of Care,Hunts OP Team - Care,Nursing Care
Cambridgeshire County Council,03-Dec-21,51301685489,700.00,Ash Hall Nursing Home,CARE ESTABLISHMENT,OP - Hunts Locality - Cost of Care,Hunts OP Team - Care,Nursing Care
Cambridgeshire County Council,03-Dec-21,51301685489,700.00,Ash Hall Nursing Home,CARE ESTABLISHMENT,OP - Hunts Locality - Cost of Care,Hunts OP Team - Care,Nursing Care
Cambridgeshire County Council,03-Dec-21,51301685489,700.00,Ash Hall Nursing Home,CARE ESTABLISHMENT,OP - Hunts Locality - Cost of Care,Hunts OP Team - Care,Nursing Care
Cambridgeshire County Council,03-Dec-21,51301685489,700.00,Ash Hall Nursing Home,CARE ESTABLISHMENT,OP - Hunts Locality - Cost of Care,Hunts OP Team - Care,Nursing Care
Cambridgeshire County Council,03-Dec-21,51301685489,700.00,Ash Hall Nursing Home,CARE ESTABLISHMENT,OP - Hunts Locality - Cost of Care,Hunts OP Team - Care,Nursing Care
Cambridgeshire County Council,03-Dec-21,51301685489,700.00,Ash Hall Nursing Home,CARE ESTABLISHMENT,OP - Hunts Locality - Cost of Care,Hunts OP Team - Care,Nursing Care
Cambridgeshire County Council,03-Dec-21,51301685489,700.00,Ash Hall Nursing Home,CARE ESTABLISHMENT,OP - Hunts Locality - Cost of Care,Hunts OP Team - Care,Nursing Care
Cambridgeshire County Council,03-Dec-21,51301685489,700.00,Ash Hall Nursing Home,CARE ESTABLISHMENT,OP - Hunts Locality - Cost of Care,Hunts OP Team - Care,Nursing Care
Cambridgeshire County Council,03-Dec-21,51301685489,700.00,Ash Hall Nursing Home,CARE ESTABLISHMENT,OP - Hunts Locality - Cost of Care,Hunts OP Team - Care,Nursing Care
Cambridgeshire County Council,03-Dec-21,51301685523,700.00,HILL HOUSE RESIDENTIAL HOME,CARE ESTABLISHMENT,OP - Hunts Locality - Cost of Care,Hunts OP Team - Care,Rehabilitation And Respite Care
Cambridgeshire County Council,03-Dec-21,51301685482,700.00,THE HILLINGS LIMITED,CARE ESTABLISHMENT,OP - Hunts Locality - Cost of Care,Hunts OP Team - Care,Residential Care
Cambridgeshire County Council,03-Dec-21,51301685482,700.00,THE HILLINGS LIMITED,CARE ESTABLISHMENT,OP - Hunts Locality - Cost of Care,Hunts OP Team - Care,Residential Care
Cambridgeshire County Council,03-Dec-21,51301685635,711.00,FENLAND DISTRICT COUNCIL,OTHER PUBLIC BODIES,Waste Disposal incl PFI,March HWRC,Business rates
Cambridgeshire County Council,03-Dec-21,51301674907,723.79,CROSS KEYS HOMES LIMITED,CARE ESTABLISHMENT,Corporate IT Managed,Corporate Telephony,Mobile Phones
Cambridgeshire County Council,03-Dec-21,51301685480,725.00,METHODIST HOMES FOR THE AGED (MHA),CARE ESTABLISHMENT,OP - City & South Locality - Cost of Care,Older People - City & South - Care,Residential Care
Cambridgeshire County Council,03-Dec-21,51301685481,725.00,METHODIST HOMES FOR THE AGED (MHA),CARE ESTABLISHMENT,OP - City & South Locality - Cost of Care,Older People - City & South - Care,Residential Care
Cambridgeshire County Council,03-Dec-21,51301685481,725.00,METHODIST HOMES FOR THE AGED (MHA),CARE ESTABLISHMENT,OP - City & South Locality - Cost of Care,Older People - City & South - Care,Residential Care
Cambridgeshire County Council,03-Dec-21,51301685481,725.00,METHODIST HOMES FOR THE AGED (MHA),CARE ESTABLISHMENT,OP - City & South Locality - Cost of Care,Older People - City & South - Care,Residential Care
Cambridgeshire County Council,03-Dec-21,51301685492,725.00,METHODIST HOMES FOR THE AGED (MHA),CARE ESTABLISHMENT,OP - East Cambs Locality - Cost of Care,East Cambs - O P Team - Care,Residential Care
Cambridgeshire County Council,03-Dec-21,51301685492,725.00,METHODIST HOMES FOR THE AGED (MHA),CARE ESTABLISHMENT,OP - East Cambs Locality - Cost of Care,East Cambs - O P Team - Care,Residential Care
Cambridgeshire County Council,03-Dec-21,51301685492,725.00,METHODIST HOMES FOR THE AGED (MHA),CARE ESTABLISHMENT,OP - East Cambs Locality - Cost of Care,East Cambs - O P Team - Care,Residential Care
Cambridgeshire County Council,03-Dec-21,51301685492,725.00,METHODIST HOMES FOR THE AGED (MHA),CARE ESTABLISHMENT,OP - East Cambs Locality - Cost of Care,East Cambs - O P Team - Care,Residential Care
Cambridgeshire County Council,03-Dec-21,51301685492,725.00,METHODIST HOMES FOR THE AGED (MHA),CARE ESTABLISHMENT,OP - East Cambs Locality - Cost of Care,East Cambs - O P Team - Care,Residential Care
Cambridgeshire County Council,03-Dec-21,51301685492,725.00,METHODIST HOMES FOR THE AGED (MHA),CARE ESTABLISHMENT,OP - East Cambs Locality - Cost of Care,East Cambs - O P Team - Care,Residential Care
Cambridgeshire County Council,03-Dec-21,51301685492,725.00,METHODIST HOMES FOR THE AGED (MHA),CARE ESTABLISHMENT,OP - East Cambs Locality - Cost of Care,East Cambs - O P Team - Care,Residential Care
Cambridgeshire County Council,03-Dec-21,51301685492,725.00,METHODIST HOMES FOR THE AGED (MHA),CARE ESTABLISHMENT,OP - East Cambs Locality - Cost of Care,East Cambs - O P Team - Care,Residential Care
Cambridgeshire County Council,03-Dec-21,51301685492,725.00,METHODIST HOMES FOR THE AGED (MHA),CARE ESTABLISHMENT,OP - East Cambs Locality - Cost of Care,East Cambs - O P Team - Care,Residential Care
Cambridgeshire County Council,03-Dec-21,51301685492,725.00,METHODIST HOMES FOR THE AGED (MHA),CARE ESTABLISHMENT,OP - East Cambs Locality - Cost of Care,East Cambs - O P Team - Care,Residential Care
Cambridgeshire County Council,03-Dec-21,51301685492,725.00,METHODIST HOMES FOR THE AGED (MHA),CARE ESTABLISHMENT,OP - East Cambs Locality - Cost of Care,East Cambs - O P Team - Care,Residential Care
Cambridgeshire County Council,03-Dec-21,51301685492,725.00,METHODIST HOMES FOR THE AGED (MHA),CARE ESTABLISHMENT,OP - East Cambs Locality - Cost of Care,East Cambs - O P Team - Care,Residential Care
Cambridgeshire County Council,03-Dec-21,51301685519,725.00,METHODIST HOMES FOR THE AGED (MHA),CARE ESTABLISHMENT,OP - East Cambs Locality - Cost of Care,East Cambs - O P Team - Care,Rehabilitation And Respite Care
Cambridgeshire County Council,03-Dec-21,51301685676,736.00,HUNTINGDONSHIRE DISTRICT COUNCIL,OTHER PUBLIC BODIES,Capital Receipts Expenses,Capital Receipts Expenses,Business rates
Cambridgeshire County Council,03-Dec-21,51301685514,741.07,ALDERTON HOUSE,CARE ESTABLISHMENT,LD - Young Adults Team,LD - Young Adults - Care,Short Term Other
Cambridgeshire County Council,03-Dec-21,51301685491,750.00,HATLEY COURT HAVEN LTD,CARE ESTABLISHMENT,OP - City & South Locality - Cost of Care,Older People - City & South - Care,Residential Care
Cambridgeshire County Council,03-Dec-21,51301685491,750.00,HATLEY COURT HAVEN LTD,CARE ESTABLISHMENT,OP - City & South Locality - Cost of Care,Older People - City & South - Care,Residential Care
Cambridgeshire County Council,03-Dec-21,51301685491,750.00,HATLEY COURT HAVEN LTD,CARE ESTABLISHMENT,OP - City & South Locality - Cost of Care,Older People - City & South - Care,Residential Care
Cambridgeshire County Council,03-Dec-21,51301685491,750.00,HATLEY COURT HAVEN LTD,CARE ESTABLISHMENT,OP - City & South Locality - Cost of Care,Older People - City & South - Care,Residential Care
Cambridgeshire County Council,03-Dec-21,51301685491,750.00,HATLEY COURT HAVEN LTD,CARE ESTABLISHMENT,OP - City & South Locality - Cost of Care,Older People - City & South - Care,Residential Care
Cambridgeshire County Council,03-Dec-21,51301685491,750.00,HATLEY COURT HAVEN LTD,CARE ESTABLISHMENT,OP - City & South Locality - Cost of Care,Older People - City & South - Care,Residential Care
Cambridgeshire County Council,03-Dec-21,51301685491,750.00,HATLEY COURT HAVEN LTD,CARE ESTABLISHMENT,OP - City & South Locality - Cost of Care,Older People - City & South - Care,Residential Care
Cambridgeshire County Council,03-Dec-21,51301685491,750.00,HATLEY COURT HAVEN LTD,CARE ESTABLISHMENT,OP - City & South Locality - Cost of Care,Older People - City & South - Care,Residential Care
Cambridgeshire County Council,03-Dec-21,51301685491,750.00,HATLEY COURT HAVEN LTD,CARE ESTABLISHMENT,OP - City & South Locality - Cost of Care,Older People - City & South - Care,Residential Care
Cambridgeshire County Council,03-Dec-21,51301685491,750.00,HATLEY COURT HAVEN LTD,CARE ESTABLISHMENT,OP - City & South Locality - Cost of Care,Older People - City & South - Care,Residential Care
Cambridgeshire County Council,03-Dec-21,51301685491,750.00,HATLEY COURT HAVEN LTD,CARE ESTABLISHMENT,OP - City & South Locality - Cost of Care,Older People - City & South - Care,Residential Care
Cambridgeshire County Council,03-Dec-21,51301685491,750.00,HATLEY COURT HAVEN LTD,CARE ESTABLISHMENT,OP - City & South Locality - Cost of Care,Older People - City & South - Care,Residential Care
Cambridgeshire County Council,03-Dec-21,51301685491,750.00,HATLEY COURT HAVEN LTD,CARE ESTABLISHMENT,OP - City & South Locality - Cost of Care,Older People - City & South - Care,Residential Care
Cambridgeshire County Council,03-Dec-21,51301685491,750.00,HATLEY COURT HAVEN LTD,CARE ESTABLISHMENT,OP - City & South Locality - Cost of Care,Older People - City & South - Care,Residential Care
Cambridgeshire County Council,03-Dec-21,51301685491,750.00,HATLEY COURT HAVEN LTD,CARE ESTABLISHMENT,OP - City & South Locality - Cost of Care,Older People - City & South - Care,Residential Care
Cambridgeshire County Council,03-Dec-21,51301685491,750.00,HATLEY COURT HAVEN LTD,CARE ESTABLISHMENT,OP - City & South Locality - Cost of Care,Older People - City & South - Care,Residential Care
Cambridgeshire County Council,03-Dec-21,51301685491,750.00,HATLEY COURT HAVEN LTD,CARE ESTABLISHMENT,OP - City & South Locality - Cost of Care,Older People - City & South - Care,Residential Care
Cambridgeshire County Council,03-Dec-21,51301685491,750.00,HATLEY COURT HAVEN LTD,CARE ESTABLISHMENT,OP - City & South Locality - Cost of Care,Older People - City & South - Care,Residential Care
Cambridgeshire County Council,03-Dec-21,51301685491,750.00,HATLEY COURT HAVEN LTD,CARE ESTABLISHMENT,OP - City & South Locality - Cost of Care,Older People - City & South - Care,Residential Care
Cambridgeshire County Council,03-Dec-21,51301685491,750.00,HATLEY COURT HAVEN LTD,CARE ESTABLISHMENT,OP - City & South Locality - Cost of Care,Older People - City & South - Care,Residential Care
Cambridgeshire County Council,03-Dec-21,51301685491,750.00,HATLEY COURT HAVEN LTD,CARE ESTABLISHMENT,OP - City & South Locality - Cost of Care,Older People - City & South - Care,Residential Care
Cambridgeshire County Council,03-Dec-21,51301685491,750.00,HATLEY COURT HAVEN LTD,CARE ESTABLISHMENT,OP - City & South Locality - Cost of Care,Older People - City & South - Care,Residential Care
Cambridgeshire County Council,03-Dec-21,51301685491,750.00,HATLEY COURT HAVEN LTD,CARE ESTABLISHMENT,OP - City & South Locality - Cost of Care,Older People - City & South - Care,Residential Care
Cambridgeshire County Council,03-Dec-21,51301685616,750.00,HARDWICK DENE,CARE ESTABLISHMENT,OP - Hunts Locality - Cost of Care,Hunts OP Team - Care,Residential Care
Cambridgeshire County Council,03-Dec-21,51301685616,750.00,HARDWICK DENE,CARE ESTABLISHMENT,OP - Hunts Locality - Cost of Care,Hunts OP Team - Care,Residential Care
Cambridgeshire County Council,03-Dec-21,51301685616,750.00,HARDWICK DENE,CARE ESTABLISHMENT,OP - Hunts Locality - Cost of Care,Hunts OP Team - Care,Residential Care
Cambridgeshire County Council,03-Dec-21,51301685616,750.00,HARDWICK DENE,CARE ESTABLISHMENT,OP - Hunts Locality - Cost of Care,Hunts OP Team - Care,Residential Care
Cambridgeshire County Council,03-Dec-21,51301685616,750.00,HARDWICK DENE,CARE ESTABLISHMENT,OP - Hunts Locality - Cost of Care,Hunts OP Team - Care,Residential Care
Cambridgeshire County Council,03-Dec-21,51301685616,750.00,HARDWICK DENE,CARE ESTABLISHMENT,OP - Hunts Locality - Cost of Care,Hunts OP Team - Care,Residential Care
Cambridgeshire County Council,03-Dec-21,51301685616,750.00,HARDWICK DENE,CARE ESTABLISHMENT,OP - Hunts Locality - Cost of Care,Hunts OP Team - Care,Residential Care
Cambridgeshire County Council,03-Dec-21,51301685616,750.00,HARDWICK DENE,CARE ESTABLISHMENT,OP - Hunts Locality - Cost of Care,Hunts OP Team - Care,Residential Care
Cambridgeshire County Council,03-Dec-21,51301685616,750.00,HARDWICK DENE,CARE ESTABLISHMENT,OP - Hunts Locality - Cost of Care,Hunts OP Team - Care,Residential Care
Cambridgeshire County Council,03-Dec-21,51301685616,750.00,HARDWICK DENE,CARE ESTABLISHMENT,OP - Hunts Locality - Cost of Care,Hunts OP Team - Care,Residential Care
Cambridgeshire County Council,03-Dec-21,51301685616,750.00,HARDWICK DENE,CARE ESTABLISHMENT,OP - Hunts Locality - Cost of Care,Hunts OP Team - Care,Residential Care
Cambridgeshire County Council,03-Dec-21,51301685616,750.00,HARDWICK DENE,CARE ESTABLISHMENT,OP - Hunts Locality - Cost of Care,Hunts OP Team - Care,Residential Care
Cambridgeshire County Council,03-Dec-21,51301685616,750.00,HARDWICK DENE,CARE ESTABLISHMENT,OP - Hunts Locality - Cost of Care,Hunts OP Team - Care,Residential Care
Cambridgeshire County Council,03-Dec-21,51301685616,750.00,HARDWICK DENE,CARE ESTABLISHMENT,OP - Hunts Locality - Cost of Care,Hunts OP Team - Care,Residential Care
Cambridgeshire County Council,03-Dec-21,51301685616,750.00,HARDWICK DENE,CARE ESTABLISHMENT,OP - Hunts Locality - Cost of Care,Hunts OP Team - Care,Residential Care
Cambridgeshire County Council,03-Dec-21,51301685616,750.00,HARDWICK DENE,CARE ESTABLISHMENT,OP - Hunts Locality - Cost of Care,Hunts OP Team - Care,Residential Care
Cambridgeshire County Council,03-Dec-21,51301685616,750.00,HARDWICK DENE,CARE ESTABLISHMENT,OP - Hunts Locality - Cost of Care,Hunts OP Team - Care,Residential Care
Cambridgeshire County Council,03-Dec-21,51301685616,750.00,HARDWICK DENE,CARE ESTABLISHMENT,OP - Hunts Locality - Cost of Care,Hunts OP Team - Care,Residential Care
Cambridgeshire County Council,03-Dec-21,51301685616,750.00,HARDWICK DENE,CARE ESTABLISHMENT,OP - Hunts Locality - Cost of Care,Hunts OP Team - Care,Residential Care
Cambridgeshire County Council,03-Dec-21,51301685618,756.80,PARK HOUSE NURSING HOME,CARE ESTABLISHMENT,OPMH - Hunts & Fens,Older People Mental Health Hunts,Nursing Care
Cambridgeshire County Council,03-Dec-21,51301685636,761.00,FENLAND DISTRICT COUNCIL,OTHER PUBLIC BODIES,Waste Disposal incl PFI,Wisbech HWRC,Business rates
Cambridgeshire County Council,03-Dec-21,51301685609,761.52,THE MANOR CHESHIRE HOME,CARE ESTABLISHMENT,LD - Hunts Locality - Cost of Care,LD - Huntingdonshire - Care,Residential Care
Cambridgeshire County Council,03-Dec-21,51301685609,761.52,THE MANOR CHESHIRE HOME,CARE ESTABLISHMENT,LD - Hunts Locality - Cost of Care,LD - Huntingdonshire - Care,Residential Care
Cambridgeshire County Council,03-Dec-21,51301685609,761.52,THE MANOR CHESHIRE HOME,CARE ESTABLISHMENT,LD - Hunts Locality - Cost of Care,LD - Huntingdonshire - Care,Residential Care
Cambridgeshire County Council,03-Dec-21,51301685609,761.52,THE MANOR CHESHIRE HOME,CARE ESTABLISHMENT,LD - Hunts Locality - Cost of Care,LD - Huntingdonshire - Care,Residential Care
Cambridgeshire County Council,03-Dec-21,51301685609,761.52,THE MANOR CHESHIRE HOME,CARE ESTABLISHMENT,LD - Hunts Locality - Cost of Care,LD - Huntingdonshire - Care,Residential Care
Cambridgeshire County Council,03-Dec-21,51301685609,761.52,THE MANOR CHESHIRE HOME,CARE ESTABLISHMENT,LD - Hunts Locality - Cost of Care,LD - Huntingdonshire - Care,Residential Care
Cambridgeshire County Council,03-Dec-21,51301685609,761.52,THE MANOR CHESHIRE HOME,CARE ESTABLISHMENT,LD - Hunts Locality - Cost of Care,LD - Huntingdonshire - Care,Residential Care
Cambridgeshire County Council,03-Dec-21,51301685609,761.52,THE MANOR CHESHIRE HOME,CARE ESTABLISHMENT,LD - Hunts Locality - Cost of Care,LD - Huntingdonshire - Care,Residential Care
Cambridgeshire County Council,03-Dec-21,51301685609,761.52,THE MANOR CHESHIRE HOME,CARE ESTABLISHMENT,LD - Hunts Locality - Cost of Care,LD - Huntingdonshire - Care,Residential Care
Cambridgeshire County Council,03-Dec-21,51301685609,761.52,THE MANOR CHESHIRE HOME,CARE ESTABLISHMENT,LD - Hunts Locality - Cost of Care,LD - Huntingdonshire - Care,Residential Care
Cambridgeshire County Council,03-Dec-21,51301685609,761.52,THE MANOR CHESHIRE HOME,CARE ESTABLISHMENT,LD - Hunts Locality - Cost of Care,LD - Huntingdonshire - Care,Residential Care
Cambridgeshire County Council,03-Dec-21,51301685609,761.52,THE MANOR CHESHIRE HOME,CARE ESTABLISHMENT,LD - Hunts Locality - Cost of Care,LD - Huntingdonshire - Care,Residential Care
Cambridgeshire County Council,03-Dec-21,51301685609,761.52,THE MANOR CHESHIRE HOME,CARE ESTABLISHMENT,LD - Hunts Locality - Cost of Care,LD - Huntingdonshire - Care,Residential Care
Cambridgeshire County Council,03-Dec-21,51301685609,761.52,THE MANOR CHESHIRE HOME,CARE ESTABLISHMENT,LD - Hunts Locality - Cost of Care,LD - Huntingdonshire - Care,Residential Care
Cambridgeshire County Council,03-Dec-21,51301685609,761.52,THE MANOR CHESHIRE HOME,CARE ESTABLISHMENT,LD - Hunts Locality - Cost of Care,LD - Huntingdonshire - Care,Residential Care
Cambridgeshire County Council,03-Dec-21,51301685609,761.52,THE MANOR CHESHIRE HOME,CARE ESTABLISHMENT,LD - Hunts Locality - Cost of Care,LD - Huntingdonshire - Care,Residential Care
Cambridgeshire County Council,03-Dec-21,51301685609,761.52,THE MANOR CHESHIRE HOME,CARE ESTABLISHMENT,LD - Hunts Locality - Cost of Care,LD - Huntingdonshire - Care,Residential Care
Cambridgeshire County Council,03-Dec-21,51301685609,761.52,THE MANOR CHESHIRE HOME,CARE ESTABLISHMENT,LD - Hunts Locality - Cost of Care,LD - Huntingdonshire - Care,Residential Care
Cambridgeshire County Council,03-Dec-21,51301685609,761.52,THE MANOR CHESHIRE HOME,CARE ESTABLISHMENT,LD - Hunts Locality - Cost of Care,LD - Huntingdonshire - Care,Residential Care
Cambridgeshire County Council,03-Dec-21,51301685609,761.52,THE MANOR CHESHIRE HOME,CARE ESTABLISHMENT,LD - Hunts Locality - Cost of Care,LD - Huntingdonshire - Care,Residential Care
Cambridgeshire County Council,03-Dec-21,51301685609,761.52,THE MANOR CHESHIRE HOME,CARE ESTABLISHMENT,LD - Hunts Locality - Cost of Care,LD - Huntingdonshire - Care,Residential Care
Cambridgeshire County Council,03-Dec-21,51301685609,761.52,THE MANOR CHESHIRE HOME,CARE ESTABLISHMENT,LD - Hunts Locality - Cost of Care,LD - Huntingdonshire - Care,Residential Care
Cambridgeshire County Council,03-Dec-21,51301685609,761.52,THE MANOR CHESHIRE HOME,CARE ESTABLISHMENT,LD - Hunts Locality - Cost of Care,LD - Huntingdonshire - Care,Residential Care
Cambridgeshire County Council,03-Dec-21,51301685609,761.52,THE MANOR CHESHIRE HOME,CARE ESTABLISHMENT,LD - Hunts Locality - Cost of Care,LD - Huntingdonshire - Care,Residential Care
Cambridgeshire County Council,03-Dec-21,51301685609,761.52,THE MANOR CHESHIRE HOME,CARE ESTABLISHMENT,LD - Hunts Locality - Cost of Care,LD - Huntingdonshire - Care,Residential Care
Cambridgeshire County Council,03-Dec-21,51301685609,761.52,THE MANOR CHESHIRE HOME,CARE ESTABLISHMENT,LD - Hunts Locality - Cost of Care,LD - Huntingdonshire - Care,Residential Care
Cambridgeshire County Council,03-Dec-21,51301685609,761.52,THE MANOR CHESHIRE HOME,CARE ESTABLISHMENT,LD - Hunts Locality - Cost of Care,LD - Huntingdonshire - Care,Residential Care
Cambridgeshire County Council,03-Dec-21,51301685609,761.52,THE MANOR CHESHIRE HOME,CARE ESTABLISHMENT,LD - Hunts Locality - Cost of Care,LD - Huntingdonshire - Care,Residential Care
Cambridgeshire County Council,03-Dec-21,51301685609,761.52,THE MANOR CHESHIRE HOME,CARE ESTABLISHMENT,LD - Hunts Locality - Cost of Care,LD - Huntingdonshire - Care,Residential Care
Cambridgeshire County Council,03-Dec-21,51301685609,761.52,THE MANOR CHESHIRE HOME,CARE ESTABLISHMENT,LD - Hunts Locality - Cost of Care,LD - Huntingdonshire - Care,Residential Care
Cambridgeshire County Council,03-Dec-21,51301685609,761.52,THE MANOR CHESHIRE HOME,CARE ESTABLISHMENT,LD - Hunts Locality - Cost of Care,LD - Huntingdonshire - Care,Residential Care
Cambridgeshire County Council,03-Dec-21,51301685609,761.52,THE MANOR CHESHIRE HOME,CARE ESTABLISHMENT,LD - Hunts Locality - Cost of Care,LD - Huntingdonshire - Care,Residential Care
Cambridgeshire County Council,03-Dec-21,51301685609,761.52,THE MANOR CHESHIRE HOME,CARE ESTABLISHMENT,LD - Hunts Locality - Cost of Care,LD - Huntingdonshire - Care,Residential Care
Cambridgeshire County Council,03-Dec-21,51301685609,761.52,THE MANOR CHESHIRE HOME,CARE ESTABLISHMENT,LD - Hunts Locality - Cost of Care,LD - Huntingdonshire - Care,Residential Care
Cambridgeshire County Council,03-Dec-21,51301685609,761.52,THE MANOR CHESHIRE HOME,CARE ESTABLISHMENT,LD - Hunts Locality - Cost of Care,LD - Huntingdonshire - Care,Residential Care
Cambridgeshire County Council,03-Dec-21,51301685609,761.52,THE MANOR CHESHIRE HOME,CARE ESTABLISHMENT,LD - Hunts Locality - Cost of Care,LD - Huntingdonshire - Care,Residential Care
Cambridgeshire County Council,03-Dec-21,51301685609,761.52,THE MANOR CHESHIRE HOME,CARE ESTABLISHMENT,LD - Hunts Locality - Cost of Care,LD - Huntingdonshire - Care,Residential Care
Cambridgeshire County Council,03-Dec-21,51301685609,761.52,THE MANOR CHESHIRE HOME,CARE ESTABLISHMENT,LD - Hunts Locality - Cost of Care,LD - Huntingdonshire - Care,Residential Care
Cambridgeshire County Council,03-Dec-21,51301685609,761.52,THE MANOR CHESHIRE HOME,CARE ESTABLISHMENT,LD - Hunts Locality - Cost of Care,LD - Huntingdonshire - Care,Residential Care
Cambridgeshire County Council,03-Dec-21,51301685609,761.52,THE MANOR CHESHIRE HOME,CARE ESTABLISHMENT,LD - Hunts Locality - Cost of Care,LD - Huntingdonshire - Care,Residential Care
Cambridgeshire County Council,03-Dec-21,51301685609,761.52,THE MANOR CHESHIRE HOME,CARE ESTABLISHMENT,LD - Hunts Locality - Cost of Care,LD - Huntingdonshire - Care,Residential Care
Cambridgeshire County Council,03-Dec-21,51301685609,761.52,THE MANOR CHESHIRE HOME,CARE ESTABLISHMENT,LD - Hunts Locality - Cost of Care,LD - Huntingdonshire - Care,Residential Care
Cambridgeshire County Council,03-Dec-21,51301685609,761.52,THE MANOR CHESHIRE HOME,CARE ESTABLISHMENT,LD - Hunts Locality - Cost of Care,LD - Huntingdonshire - Care,Residential Care
Cambridgeshire County Council,03-Dec-21,51301685609,761.52,THE MANOR CHESHIRE HOME,CARE ESTABLISHMENT,LD - Hunts Locality - Cost of Care,LD - Huntingdonshire - Care,Residential Care
Cambridgeshire County Council,03-Dec-21,51301685609,761.52,THE MANOR CHESHIRE HOME,CARE ESTABLISHMENT,LD - Hunts Locality - Cost of Care,LD - Huntingdonshire - Care,Residential Care
Cambridgeshire County Council,03-Dec-21,51301685609,761.52,THE MANOR CHESHIRE HOME,CARE ESTABLISHMENT,LD - Hunts Locality - Cost of Care,LD - Huntingdonshire - Care,Residential Care
Cambridgeshire County Council,03-Dec-21,51301685609,761.52,THE MANOR CHESHIRE HOME,CARE ESTABLISHMENT,LD - Hunts Locality - Cost of Care,LD - Huntingdonshire - Care,Residential Care
Cambridgeshire County Council,03-Dec-21,51301685609,761.52,THE MANOR CHESHIRE HOME,CARE ESTABLISHMENT,LD - Hunts Locality - Cost of Care,LD - Huntingdonshire - Care,Residential Care
Cambridgeshire County Council,03-Dec-21,51301685609,761.52,THE MANOR CHESHIRE HOME,CARE ESTABLISHMENT,LD - Hunts Locality - Cost of Care,LD - Huntingdonshire - Care,Residential Care
Cambridgeshire County Council,03-Dec-21,51301685609,761.52,THE MANOR CHESHIRE HOME,CARE ESTABLISHMENT,LD - Hunts Locality - Cost of Care,LD - Huntingdonshire - Care,Residential Care
Cambridgeshire County Council,03-Dec-21,51301685609,761.52,THE MANOR CHESHIRE HOME,CARE ESTABLISHMENT,LD - Hunts Locality - Cost of Care,LD - Huntingdonshire - Care,Residential Care
Cambridgeshire County Council,03-Dec-21,51301685609,761.52,THE MANOR CHESHIRE HOME,CARE ESTABLISHMENT,LD - Hunts Locality - Cost of Care,LD - Huntingdonshire - Care,Residential Care
Cambridgeshire County Council,03-Dec-21,51301685609,761.52,THE MANOR CHESHIRE HOME,CARE ESTABLISHMENT,LD - Hunts Locality - Cost of Care,LD - Huntingdonshire - Care,Residential Care
Cambridgeshire County Council,03-Dec-21,51301685609,761.52,THE MANOR CHESHIRE HOME,CARE ESTABLISHMENT,LD - Hunts Locality - Cost of Care,LD - Huntingdonshire - Care,Residential Care
Cambridgeshire County Council,03-Dec-21,51301685609,761.52,THE MANOR CHESHIRE HOME,CARE ESTABLISHMENT,LD - Hunts Locality - Cost of Care,LD - Huntingdonshire - Care,Residential Care
Cambridgeshire County Council,03-Dec-21,51301685609,761.52,THE MANOR CHESHIRE HOME,CARE ESTABLISHMENT,LD - Hunts Locality - Cost of Care,LD - Huntingdonshire - Care,Residential Care
Cambridgeshire County Council,03-Dec-21,51301685725,768.00,NEEDHAM CARS,TRADE SUPPLIER,Home to School Transport - Special,Home to School Transport Special - Primary,Home to School - Contract
Cambridgeshire County Council,03-Dec-21,51301672467,786.12,SC Electrical Contractors,SOLETRADER,County Farms,County Farms,County Farms Maintenance unplanned
Cambridgeshire County Council,03-Dec-21,51301685694,795.00,HUNTINGDONSHIRE DISTRICT COUNCIL,OTHER PUBLIC BODIES,Corporate Offices,Eastfield House,Business rates
Cambridgeshire County Council,03-Dec-21,51301685530,799.98,AVAILL HEALTHCARE,CARE ESTABLISHMENT,OP - City & South Locality - Cost of Care,Older People - City & South - Care,Domiciliary Care
Cambridgeshire County Council,03-Dec-21,51301685530,799.98,AVAILL HEALTHCARE,CARE ESTABLISHMENT,OP - City & South Locality - Cost of Care,Older People - City & South - Care,Domiciliary Care
Cambridgeshire County Council,03-Dec-21,51301685530,799.98,AVAILL HEALTHCARE,CARE ESTABLISHMENT,OP - City & South Locality - Cost of Care,Older People - City & South - Care,Domiciliary Care
Cambridgeshire County Council,03-Dec-21,51301685530,799.98,AVAILL HEALTHCARE,CARE ESTABLISHMENT,OP - City & South Locality - Cost of Care,Older People - City & South - Care,Domiciliary Care
Cambridgeshire County Council,03-Dec-21,51301685615,810.00,MIDFIELD LODGE CARE CENTRE,CARE ESTABLISHMENT,OP - East Cambs Locality - Cost of Care,East Cambs - O P Team - Care,Nursing Care
Cambridgeshire County Council,03-Dec-21,51301685615,810.00,MIDFIELD LODGE CARE CENTRE,CARE ESTABLISHMENT,OP - East Cambs Locality - Cost of Care,East Cambs - O P Team - Care,Nursing Care
Cambridgeshire County Council,03-Dec-21,51301685493,825.00,ARIA COURT,CARE ESTABLISHMENT,OPMH - Hunts & Fens,Older People Mental Health Fenland,Residential Care
Cambridgeshire County Council,03-Dec-21,51301685493,825.00,ARIA COURT,CARE ESTABLISHMENT,OPMH - Hunts & Fens,Older People Mental Health Fenland,Residential Care
Cambridgeshire County Council,03-Dec-21,51301685493,825.00,ARIA COURT,CARE ESTABLISHMENT,OPMH - Hunts & Fens,Older People Mental Health Fenland,Residential Care
Cambridgeshire County Council,03-Dec-21,51301685493,825.00,ARIA COURT,CARE ESTABLISHMENT,OPMH - Hunts & Fens,Older People Mental Health Fenland,Residential Care
Cambridgeshire County Council,03-Dec-21,51301685493,825.00,ARIA COURT,CARE ESTABLISHMENT,OPMH - Hunts & Fens,Older People Mental Health Fenland,Residential Care
Cambridgeshire County Council,03-Dec-21,51301685493,825.00,ARIA COURT,CARE ESTABLISHMENT,OPMH - Hunts & Fens,Older People Mental Health Fenland,Residential Care
Cambridgeshire County Council,03-Dec-21,51301685493,825.00,ARIA COURT,CARE ESTABLISHMENT,OPMH - Hunts & Fens,Older People Mental Health Fenland,Residential Care
Cambridgeshire County Council,03-Dec-21,51301685594,850.00,MK WORLDWIDE LTD (T/A LEAD CARE),CARE ESTABLISHMENT,OP - Hunts Locality - Cost of Care,Hunts OP Team - Care,Homecare
Cambridgeshire County Council,03-Dec-21,51301685571,850.00,MK WORLDWIDE LTD (T/A LEAD CARE),CARE ESTABLISHMENT,OP - City & South Locality - Cost of Care,Older People - City & South - Care,Homecare
Cambridgeshire County Council,03-Dec-21,51301685571,850.00,MK WORLDWIDE LTD (T/A LEAD CARE),CARE ESTABLISHMENT,OP - City & South Locality - Cost of Care,Older People - City & South - Care,Homecare
Cambridgeshire County Council,03-Dec-21,51301685485,850.00,HATLEY COURT HAVEN LTD,CARE ESTABLISHMENT,OP - City & South Locality - Cost of Care,Older People - City & South - Care,Residential Care
Cambridgeshire County Council,03-Dec-21,51301685485,850.00,HATLEY COURT HAVEN LTD,CARE ESTABLISHMENT,OP - City & South Locality - Cost of Care,Older People - City & South - Care,Residential Care
Cambridgeshire County Council,03-Dec-21,51301685485,850.00,HATLEY COURT HAVEN LTD,CARE ESTABLISHMENT,OP - City & South Locality - Cost of Care,Older People - City & South - Care,Residential Care
Cambridgeshire County Council,03-Dec-21,51301685485,850.00,HATLEY COURT HAVEN LTD,CARE ESTABLISHMENT,OP - City & South Locality - Cost of Care,Older People - City & South - Care,Residential Care
Cambridgeshire County Council,03-Dec-21,51301685571,850.00,MK WORLDWIDE LTD (T/A LEAD CARE),CARE ESTABLISHMENT,OP - City & South Locality - Cost of Care,Older People - City & South - Care,Homecare
Cambridgeshire County Council,03-Dec-21,51301685483,850.00,THE GABLES SPECIALIST NURSING HOME,CARE ESTABLISHMENT,OP - Fenland Locality - Cost of Care,Older People - Fenland - Care,Residential Care
Cambridgeshire County Council,03-Dec-21,51301685483,850.00,THE GABLES SPECIALIST NURSING HOME,CARE ESTABLISHMENT,OP - Fenland Locality - Cost of Care,Older People - Fenland - Care,Residential Care
Cambridgeshire County Council,03-Dec-21,51301685669,861.00,HUNTINGDONSHIRE DISTRICT COUNCIL,OTHER PUBLIC BODIES,Waste Disposal incl PFI,Alconbury HWRC,Business rates
Cambridgeshire County Council,03-Dec-21,51301685748,900.00,Redacted Personal Data,INDIVIDUAL,SIS Head of Service,SIS - Intervention,Professional Fees and Hired Services
Cambridgeshire County Council,03-Dec-21,51301685737,902.40,4X LIMITED T/A STEVES TAXI & PRIVATE HIRE,TRADE SUPPLIER,Home to School Transport - Special,Home to School Transport Special - Primary,Home to School - Contract
Cambridgeshire County Council,03-Dec-21,51301685517,906.99,GUYATT HOUSE CARE LTD,CARE ESTABLISHMENT,LD - Young Adults Team,LD - Young Adults - Care,Supported Living
Cambridgeshire County Council,03-Dec-21,51301685618,908.16,PARK HOUSE NURSING HOME,CARE ESTABLISHMENT,OPMH - Hunts & Fens,Older People Mental Health Hunts,Nursing Care
Cambridgeshire County Council,03-Dec-21,51301685650,911.00,HUNTINGDONSHIRE DISTRICT COUNCIL,OTHER PUBLIC BODIES,The Hub - Covid-19 Response,The Hub - Covid-19 Response,Business rates
Cambridgeshire County Council,03-Dec-21,51301685488,912.40,ASKHAM VILLAGE COMMUNITY LTD,CARE ESTABLISHMENT,OP - Fenland Locality - Cost of Care,Older People - Fenland - Care,Nursing Care
Cambridgeshire County Council,03-Dec-21,51301685488,912.40,ASKHAM VILLAGE COMMUNITY LTD,CARE ESTABLISHMENT,OP - Fenland Locality - Cost of Care,Older People - Fenland - Care,Nursing Care
Cambridgeshire County Council,03-Dec-21,51301685488,912.40,ASKHAM VILLAGE COMMUNITY LTD,CARE ESTABLISHMENT,OP - Fenland Locality - Cost of Care,Older People - Fenland - Care,Nursing Care
Cambridgeshire County Council,03-Dec-21,51301685488,912.40,ASKHAM VILLAGE COMMUNITY LTD,CARE ESTABLISHMENT,OP - Fenland Locality - Cost of Care,Older People - Fenland - Care,Nursing Care
Cambridgeshire County Council,03-Dec-21,51301685623,920.40,WOODLANDS CARE CENTRE,CARE ESTABLISHMENT,OPMH - City & South,Older People Mental Health City & South,Nursing Care
Cambridgeshire County Council,03-Dec-21,51301685623,920.40,WOODLANDS CARE CENTRE,CARE ESTABLISHMENT,OPMH - City & South,Older People Mental Health City & South,Nursing Care
Cambridgeshire County Council,03-Dec-21,51301685623,920.40,WOODLANDS CARE CENTRE,CARE ESTABLISHMENT,OPMH - City & South,Older People Mental Health City & South,Nursing Care
Cambridgeshire County Council,03-Dec-21,51301685623,920.40,WOODLANDS CARE CENTRE,CARE ESTABLISHMENT,OPMH - City & South,Older People Mental Health City & South,Nursing Care
Cambridgeshire County Council,03-Dec-21,51301685623,920.40,WOODLANDS CARE CENTRE,CARE ESTABLISHMENT,OPMH - City & South,Older People Mental Health City & South,Nursing Care
Cambridgeshire County Council,03-Dec-21,51301685691,923.00,HUNTINGDONSHIRE DISTRICT COUNCIL,OTHER PUBLIC BODIES,Corporate Offices,Eaton Socon Children's Centre,Business rates
Cambridgeshire County Council,03-Dec-21,51301685577,932.93,Total Healthcare,COMPANY,OP - Hunts Locality - Cost of Care,Hunts OP Team - Care,Domiciliary Care
Cambridgeshire County Council,03-Dec-21,51301685577,932.93,Total Healthcare,COMPANY,OP - Hunts Locality - Cost of Care,Hunts OP Team - Care,Domiciliary Care
Cambridgeshire County Council,03-Dec-21,51301685518,941.19,THERA EAST ANGLIA,CARE ESTABLISHMENT,LD - Hunts Locality - Cost of Care,LD - Huntingdonshire - Care,Supported Living
Cambridgeshire County Council,03-Dec-21,51301685581,946.70,VOYAGE,CARE ESTABLISHMENT,LD - Head of Service,Head of LDP,Supported Living
Cambridgeshire County Council,03-Dec-21,51301685671,948.00,HUNTINGDONSHIRE DISTRICT COUNCIL,OTHER PUBLIC BODIES,Corporate Offices,Stanton House,Business rates
Cambridgeshire County Council,03-Dec-21,51301685620,950.00,ROSE LODGE,CARE ESTABLISHMENT,OP - Fenland Locality - Cost of Care,Older People - Fenland - Care,Nursing Care
Cambridgeshire County Council,03-Dec-21,51301685620,950.00,ROSE LODGE,CARE ESTABLISHMENT,OP - Fenland Locality - Cost of Care,Older People - Fenland - Care,Nursing Care
Cambridgeshire County Council,03-Dec-21,51301685620,950.00,ROSE LODGE,CARE ESTABLISHMENT,OP - Fenland Locality - Cost of Care,Older People - Fenland - Care,Nursing Care
Cambridgeshire County Council,03-Dec-21,51301685620,950.00,ROSE LODGE,CARE ESTABLISHMENT,OP - Fenland Locality - Cost of Care,Older People - Fenland - Care,Nursing Care
Cambridgeshire County Council,03-Dec-21,51301685620,950.00,ROSE LODGE,CARE ESTABLISHMENT,OP - Fenland Locality - Cost of Care,Older People - Fenland - Care,Nursing Care
Cambridgeshire County Council,03-Dec-21,51301685620,950.00,ROSE LODGE,CARE ESTABLISHMENT,OP - Fenland Locality - Cost of Care,Older People - Fenland - Care,Nursing Care
Cambridgeshire County Council,03-Dec-21,51301685620,950.00,ROSE LODGE,CARE ESTABLISHMENT,OP - Fenland Locality - Cost of Care,Older People - Fenland - Care,Nursing Care
Cambridgeshire County Council,03-Dec-21,51301685620,950.00,ROSE LODGE,CARE ESTABLISHMENT,OP - Fenland Locality - Cost of Care,Older People - Fenland - Care,Nursing Care
Cambridgeshire County Council,03-Dec-21,51301685620,950.00,ROSE LODGE,CARE ESTABLISHMENT,OP - Fenland Locality - Cost of Care,Older People - Fenland - Care,Nursing Care
Cambridgeshire County Council,03-Dec-21,51301685620,950.00,ROSE LODGE,CARE ESTABLISHMENT,OP - Fenland Locality - Cost of Care,Older People - Fenland - Care,Nursing Care
Cambridgeshire County Council,03-Dec-21,51301672120,960.00,AURORA MELDRETH & ORCHARD MANOR,EDUCATION,SEN Placements,Placements - Education,Independent School Placements
Cambridgeshire County Council,03-Dec-21,51301685738,977.24,Redacted Personal Data,PARENT/GUARDIAN,Home to School Transport - Special,Home to School Transport Special - Out of County,Home to School - Contract
Cambridgeshire County Council,03-Dec-21,51301685704,981.00,ASH SCHOOL TRANSPORT,TRADE SUPPLIER,Home to School Transport - Mainstream,Home to School Transport Mainstream - Primary,Home to School - Contract
Cambridgeshire County Council,03-Dec-21,51301685658,998.00,HUNTINGDONSHIRE DISTRICT COUNCIL,OTHER PUBLIC BODIES,Cambs Music Head of Business Development,Cambs Music Business Development,Business rates
Cambridgeshire County Council,03-Dec-21,51301685525,"1,006.62",AUGUSTA CARE LTD,CARE ESTABLISHMENT,LD - South Locality - Cost of Care,LD - South Cambs - Care,Supported Living
Cambridgeshire County Council,03-Dec-21,51301685358,"1,016.41",Pathfinder Legal Services Limited,TRADE SUPPLIER,Asset Information,Asset Information Searches,External Legal Fees
Cambridgeshire County Council,03-Dec-21,51301685517,"1,058.16",GUYATT HOUSE CARE LTD,CARE ESTABLISHMENT,LD - Young Adults Team,LD - Young Adults - Care,Supported Living
Cambridgeshire County Council,03-Dec-21,51301685517,"1,058.16",GUYATT HOUSE CARE LTD,CARE ESTABLISHMENT,LD - Young Adults Team,LD - Young Adults - Care,Supported Living
Cambridgeshire County Council,03-Dec-21,51301685517,"1,058.16",GUYATT HOUSE CARE LTD,CARE ESTABLISHMENT,LD - Young Adults Team,LD - Young Adults - Care,Supported Living
Cambridgeshire County Council,03-Dec-21,51301685706,"1,062.00",NASA CARS,TRADE SUPPLIER,Home to School Transport - Special,Home to School Transport Special - Primary,Home to School - Contract
Cambridgeshire County Council,03-Dec-21,51301685613,"1,062.40",BARCHESTER HEALTHCARE HOMES LTD,CARE ESTABLISHMENT,OP - East Cambs Locality - Cost of Care,East Cambs - O P Team - Care,Nursing Care
Cambridgeshire County Council,03-Dec-21,51301685613,"1,062.40",BARCHESTER HEALTHCARE HOMES LTD,CARE ESTABLISHMENT,OP - East Cambs Locality - Cost of Care,East Cambs - O P Team - Care,Nursing Care
Cambridgeshire County Council,03-Dec-21,51301685613,"1,062.40",BARCHESTER HEALTHCARE HOMES LTD,CARE ESTABLISHMENT,OP - East Cambs Locality - Cost of Care,East Cambs - O P Team - Care,Nursing Care
Cambridgeshire County Council,03-Dec-21,51301685613,"1,062.40",BARCHESTER HEALTHCARE HOMES LTD,CARE ESTABLISHMENT,OP - East Cambs Locality - Cost of Care,East Cambs - O P Team - Care,Nursing Care
Cambridgeshire County Council,03-Dec-21,51301685613,"1,062.40",BARCHESTER HEALTHCARE HOMES LTD,CARE ESTABLISHMENT,OP - East Cambs Locality - Cost of Care,East Cambs - O P Team - Care,Nursing Care
Cambridgeshire County Council,03-Dec-21,51301685613,"1,062.40",BARCHESTER HEALTHCARE HOMES LTD,CARE ESTABLISHMENT,OP - East Cambs Locality - Cost of Care,East Cambs - O P Team - Care,Nursing Care
Cambridgeshire County Council,03-Dec-21,51301685613,"1,062.40",BARCHESTER HEALTHCARE HOMES LTD,CARE ESTABLISHMENT,OP - East Cambs Locality - Cost of Care,East Cambs - O P Team - Care,Nursing Care
Cambridgeshire County Council,03-Dec-21,51301685613,"1,062.40",BARCHESTER HEALTHCARE HOMES LTD,CARE ESTABLISHMENT,OP - East Cambs Locality - Cost of Care,East Cambs - O P Team - Care,Nursing Care
Cambridgeshire County Council,03-Dec-21,51301685613,"1,062.40",BARCHESTER HEALTHCARE HOMES LTD,CARE ESTABLISHMENT,OP - East Cambs Locality - Cost of Care,East Cambs - O P Team - Care,Nursing Care
Cambridgeshire County Council,03-Dec-21,51301685613,"1,062.40",BARCHESTER HEALTHCARE HOMES LTD,CARE ESTABLISHMENT,OP - East Cambs Locality - Cost of Care,East Cambs - O P Team - Care,Nursing Care
Cambridgeshire County Council,03-Dec-21,51301685613,"1,062.40",BARCHESTER HEALTHCARE HOMES LTD,CARE ESTABLISHMENT,OP - East Cambs Locality - Cost of Care,East Cambs - O P Team - Care,Nursing Care
Cambridgeshire County Council,03-Dec-21,51301685613,"1,062.40",BARCHESTER HEALTHCARE HOMES LTD,CARE ESTABLISHMENT,OP - East Cambs Locality - Cost of Care,East Cambs - O P Team - Care,Nursing Care
Cambridgeshire County Council,03-Dec-21,51301685613,"1,062.40",BARCHESTER HEALTHCARE HOMES LTD,CARE ESTABLISHMENT,OP - East Cambs Locality - Cost of Care,East Cambs - O P Team - Care,Nursing Care
Cambridgeshire County Council,03-Dec-21,51301685613,"1,062.40",BARCHESTER HEALTHCARE HOMES LTD,CARE ESTABLISHMENT,OP - East Cambs Locality - Cost of Care,East Cambs - O P Team - Care,Nursing Care
Cambridgeshire County Council,03-Dec-21,51301685613,"1,062.40",BARCHESTER HEALTHCARE HOMES LTD,CARE ESTABLISHMENT,OP - East Cambs Locality - Cost of Care,East Cambs - O P Team - Care,Nursing Care
Cambridgeshire County Council,03-Dec-21,51301685613,"1,062.40",BARCHESTER HEALTHCARE HOMES LTD,CARE ESTABLISHMENT,OP - East Cambs Locality - Cost of Care,East Cambs - O P Team - Care,Nursing Care
Cambridgeshire County Council,03-Dec-21,51301685613,"1,062.40",BARCHESTER HEALTHCARE HOMES LTD,CARE ESTABLISHMENT,OP - East Cambs Locality - Cost of Care,East Cambs - O P Team - Care,Nursing Care
Cambridgeshire County Council,03-Dec-21,51301685613,"1,062.40",BARCHESTER HEALTHCARE HOMES LTD,CARE ESTABLISHMENT,OP - East Cambs Locality - Cost of Care,East Cambs - O P Team - Care,Nursing Care
Cambridgeshire County Council,03-Dec-21,51301685613,"1,062.40",BARCHESTER HEALTHCARE HOMES LTD,CARE ESTABLISHMENT,OP - East Cambs Locality - Cost of Care,East Cambs - O P Team - Care,Nursing Care
Cambridgeshire County Council,03-Dec-21,51301685613,"1,062.40",BARCHESTER HEALTHCARE HOMES LTD,CARE ESTABLISHMENT,OP - East Cambs Locality - Cost of Care,East Cambs - O P Team - Care,Nursing Care
Cambridgeshire County Council,03-Dec-21,51301685613,"1,062.40",BARCHESTER HEALTHCARE HOMES LTD,CARE ESTABLISHMENT,OP - East Cambs Locality - Cost of Care,East Cambs - O P Team - Care,Nursing Care
Cambridgeshire County Council,03-Dec-21,51301685613,"1,062.40",BARCHESTER HEALTHCARE HOMES LTD,CARE ESTABLISHMENT,OP - East Cambs Locality - Cost of Care,East Cambs - O P Team - Care,Nursing Care
Cambridgeshire County Council,03-Dec-21,51301685613,"1,062.40",BARCHESTER HEALTHCARE HOMES LTD,CARE ESTABLISHMENT,OP - East Cambs Locality - Cost of Care,East Cambs - O P Team - Care,Nursing Care
Cambridgeshire County Council,03-Dec-21,51301685613,"1,062.40",BARCHESTER HEALTHCARE HOMES LTD,CARE ESTABLISHMENT,OP - East Cambs Locality - Cost of Care,East Cambs - O P Team - Care,Nursing Care
Cambridgeshire County Council,03-Dec-21,51301685613,"1,062.40",BARCHESTER HEALTHCARE HOMES LTD,CARE ESTABLISHMENT,OP - East Cambs Locality - Cost of Care,East Cambs - O P Team - Care,Nursing Care
Cambridgeshire County Council,03-Dec-21,51301685613,"1,062.40",BARCHESTER HEALTHCARE HOMES LTD,CARE ESTABLISHMENT,OP - East Cambs Locality - Cost of Care,East Cambs - O P Team - Care,Nursing Care
Cambridgeshire County Council,03-Dec-21,51301685613,"1,062.40",BARCHESTER HEALTHCARE HOMES LTD,CARE ESTABLISHMENT,OP - East Cambs Locality - Cost of Care,East Cambs - O P Team - Care,Nursing Care
Cambridgeshire County Council,03-Dec-21,51301685613,"1,062.40",BARCHESTER HEALTHCARE HOMES LTD,CARE ESTABLISHMENT,OP - East Cambs Locality - Cost of Care,East Cambs - O P Team - Care,Nursing Care
Cambridgeshire County Council,03-Dec-21,51301685613,"1,062.40",BARCHESTER HEALTHCARE HOMES LTD,CARE ESTABLISHMENT,OP - East Cambs Locality - Cost of Care,East Cambs - O P Team - Care,Nursing Care
Cambridgeshire County Council,03-Dec-21,51301685613,"1,062.40",BARCHESTER HEALTHCARE HOMES LTD,CARE ESTABLISHMENT,OP - East Cambs Locality - Cost of Care,East Cambs - O P Team - Care,Nursing Care
Cambridgeshire County Council,03-Dec-21,51301685613,"1,062.40",BARCHESTER HEALTHCARE HOMES LTD,CARE ESTABLISHMENT,OP - East Cambs Locality - Cost of Care,East Cambs - O P Team - Care,Nursing Care
Cambridgeshire County Council,03-Dec-21,51301685613,"1,062.40",BARCHESTER HEALTHCARE HOMES LTD,CARE ESTABLISHMENT,OP - East Cambs Locality - Cost of Care,East Cambs - O P Team - Care,Nursing Care
Cambridgeshire County Council,03-Dec-21,51301685613,"1,062.40",BARCHESTER HEALTHCARE HOMES LTD,CARE ESTABLISHMENT,OP - East Cambs Locality - Cost of Care,East Cambs - O P Team - Care,Nursing Care
Cambridgeshire County Council,03-Dec-21,51301685518,"1,098.05",THERA EAST ANGLIA,CARE ESTABLISHMENT,LD - Hunts Locality - Cost of Care,LD - Huntingdonshire - Care,Supported Living
Cambridgeshire County Council,03-Dec-21,51301685581,"1,104.48",VOYAGE,CARE ESTABLISHMENT,LD - Head of Service,Head of LDP,Supported Living
Cambridgeshire County Council,03-Dec-21,51301685581,"1,104.48",VOYAGE,CARE ESTABLISHMENT,LD - Head of Service,Head of LDP,Supported Living
Cambridgeshire County Council,03-Dec-21,51301685581,"1,104.48",VOYAGE,CARE ESTABLISHMENT,LD - Head of Service,Head of LDP,Supported Living
Cambridgeshire County Council,03-Dec-21,51301685649,"1,110.00",HUNTINGDONSHIRE DISTRICT COUNCIL,OTHER PUBLIC BODIES,The Hub - Covid-19 Response,The Hub - Covid-19 Response,Business rates
Cambridgeshire County Council,03-Dec-21,51301685702,"1,113.60",ASH SCHOOL TRANSPORT,TRADE SUPPLIER,Home to School Transport - Special,Home to School Transport Special - Out of County,Home to School - Contract
Cambridgeshire County Council,03-Dec-21,51301685525,"1,174.39",AUGUSTA CARE LTD,CARE ESTABLISHMENT,LD - South Locality - Cost of Care,LD - South Cambs - Care,Supported Living
Cambridgeshire County Council,03-Dec-21,51301685525,"1,174.39",AUGUSTA CARE LTD,CARE ESTABLISHMENT,LD - South Locality - Cost of Care,LD - South Cambs - Care,Supported Living
Cambridgeshire County Council,03-Dec-21,51301685525,"1,174.39",AUGUSTA CARE LTD,CARE ESTABLISHMENT,LD - South Locality - Cost of Care,LD - South Cambs - Care,Supported Living
Cambridgeshire County Council,03-Dec-21,51301685724,"1,180.08",NEEDHAM CARS,TRADE SUPPLIER,Home to School Transport - Mainstream,Home to School Transport Mainstream - Primary,Home to School - Contract
Cambridgeshire County Council,03-Dec-21,51301685502,"1,191.81",AVICAN SUPPORT LTD,CARE ESTABLISHMENT,LD - Young Adults Team,LD - Young Adults - Care,Supported Living
Cambridgeshire County Council,03-Dec-21,51301685502,"1,191.81",AVICAN SUPPORT LTD,CARE ESTABLISHMENT,LD - Young Adults Team,LD - Young Adults - Care,Supported Living
Cambridgeshire County Council,03-Dec-21,51301685502,"1,191.81",AVICAN SUPPORT LTD,CARE ESTABLISHMENT,LD - Young Adults Team,LD - Young Adults - Care,Supported Living
Cambridgeshire County Council,03-Dec-21,51301685502,"1,191.81",AVICAN SUPPORT LTD,CARE ESTABLISHMENT,LD - Young Adults Team,LD - Young Adults - Care,Supported Living
Cambridgeshire County Council,03-Dec-21,51301685502,"1,191.81",AVICAN SUPPORT LTD,CARE ESTABLISHMENT,LD - Young Adults Team,LD - Young Adults - Care,Supported Living
Cambridgeshire County Council,03-Dec-21,51301685502,"1,191.81",AVICAN SUPPORT LTD,CARE ESTABLISHMENT,LD - Young Adults Team,LD - Young Adults - Care,Supported Living
Cambridgeshire County Council,03-Dec-21,51301685502,"1,191.81",AVICAN SUPPORT LTD,CARE ESTABLISHMENT,LD - Young Adults Team,LD - Young Adults - Care,Supported Living
Cambridgeshire County Council,03-Dec-21,51301685638,"1,198.00",FENLAND DISTRICT COUNCIL,OTHER PUBLIC BODIES,Corporate Offices,Chatteris Library,Business rates
Cambridgeshire County Council,03-Dec-21,51301672132,"1,200.00",OXFORD ARCHAEOLOGY LTD,TRADE SUPPLIER,Historic Environment,Historic Environment Team,Professional Fees and Hired Services
Cambridgeshire County Council,03-Dec-21,51301672509,"1,256.16",THE ONE GROUP,TRADE SUPPLIER,Enduring Transmission Grant,Enduring Transmission Grant,Professional Fees and Hired Services
Cambridgeshire County Council,03-Dec-21,51301685756,"1,286.76",Redacted Personal Data,INDIVIDUAL,Home to School Transport - Special,Home to School Transport Special - Post 16,Home to School - Contract
Cambridgeshire County Council,03-Dec-21,51301685721,"1,293.60",Nationwide Travel Solutions Ltd,COMPANY,Home to School Transport - Mainstream,Home to School Transport Mainstream - Secondary,Home to School - Contract
Cambridgeshire County Council,03-Dec-21,51301685717,"1,317.36",Nationwide Travel Solutions Ltd,COMPANY,Home to School Transport - Special,Home to School Transport Special - Out of County,Home to School - Contract
Cambridgeshire County Council,03-Dec-21,51301685618,"1,362.24",PARK HOUSE NURSING HOME,CARE ESTABLISHMENT,OPMH - Hunts & Fens,Older People Mental Health Hunts,Nursing Care
Cambridgeshire County Council,03-Dec-21,51301685449,"1,388.40",Redacted Personal Data,INDIVIDUAL,Children's Disability Direct Payments,CSC Direct Payments,Direct Payments
Cambridgeshire County Council,03-Dec-21,51301685545,"1,452.38",Advantage Healthcare Limited,CARE ESTABLISHMENT,OPMH - Hunts & Fens,Older People Mental Health Hunts,Domiciliary Care
Cambridgeshire County Council,03-Dec-21,51301685700,"1,468.80",ASH SCHOOL TRANSPORT,TRADE SUPPLIER,Home to School Transport - Special,Home to School Transport Special - Out of County,Home to School - Contract
Cambridgeshire County Council,03-Dec-21,51301685718,"1,478.40",Nationwide Travel Solutions Ltd,COMPANY,Home to School Transport - Special,Home to School Transport Special - Out of County,Home to School - Contract
Cambridgeshire County Council,03-Dec-21,51301685719,"1,478.40",Nationwide Travel Solutions Ltd,COMPANY,Home to School Transport - Mainstream,Home to School Transport Mainstream - Primary,Home to School - Contract
Cambridgeshire County Council,03-Dec-21,51301685670,"1,497.00",HUNTINGDONSHIRE DISTRICT COUNCIL,OTHER PUBLIC BODIES,Waste Disposal incl PFI,Bluntisham HWRC,Business rates
Cambridgeshire County Council,03-Dec-21,51301684980,"1,497.60",GD GREEN,SOLETRADER,County Farms,County Farms,County Farms Maintenance unplanned
Cambridgeshire County Council,03-Dec-21,51301685612,"1,513.22",The Gables (LD),CARE ESTABLISHMENT,LD - East Locality - Cost of Care,LD - East Cambs - Care,Residential Care
Cambridgeshire County Council,03-Dec-21,51301685634,"1,522.00",FENLAND DISTRICT COUNCIL,OTHER PUBLIC BODIES,Corporate Offices,Whittlesey Library,Business rates
Cambridgeshire County Council,03-Dec-21,51301685505,"1,644.70",AURORA ORCHARD MANOR,CARE ESTABLISHMENT,LD - Young Adults Team,LD - Young Adults - Special Needs,Supported Living
Cambridgeshire County Council,03-Dec-21,51301685514,"1,671.96",ALDERTON HOUSE,CARE ESTABLISHMENT,LD - Young Adults Team,LD - Young Adults - Care,Short Term Other
Cambridgeshire County Council,03-Dec-21,51301685308,"1,680.00",PRG T/A PANORAMIC ASSOCIATES LIMITED,TRADE SUPPLIER,SEND Specialist Services,Statutory Assessment Team - South,Professional Fees and Hired Services
Cambridgeshire County Council,03-Dec-21,51301685693,"1,697.00",HUNTINGDONSHIRE DISTRICT COUNCIL,OTHER PUBLIC BODIES,Corporate Offices,Vantage House,Business rates
Cambridgeshire County Council,03-Dec-21,51301685524,"1,710.00",Gable Healthcare Services,CARE ESTABLISHMENT,LD - Fenland Locality - Cost of Care,LD - Fenland  - Care,Supported Living
Cambridgeshire County Council,03-Dec-21,51301685612,"1,765.42",The Gables (LD),CARE ESTABLISHMENT,LD - East Locality - Cost of Care,LD - East Cambs - Care,Residential Care
Cambridgeshire County Council,03-Dec-21,51301685612,"1,765.42",The Gables (LD),CARE ESTABLISHMENT,LD - East Locality - Cost of Care,LD - East Cambs - Care,Residential Care
Cambridgeshire County Council,03-Dec-21,51301685612,"1,765.42",The Gables (LD),CARE ESTABLISHMENT,LD - East Locality - Cost of Care,LD - East Cambs - Care,Residential Care
Cambridgeshire County Council,03-Dec-21,51301685612,"1,765.42",The Gables (LD),CARE ESTABLISHMENT,LD - East Locality - Cost of Care,LD - East Cambs - Care,Residential Care
Cambridgeshire County Council,03-Dec-21,51301685612,"1,765.42",The Gables (LD),CARE ESTABLISHMENT,LD - East Locality - Cost of Care,LD - East Cambs - Care,Residential Care
Cambridgeshire County Council,03-Dec-21,51301685612,"1,765.42",The Gables (LD),CARE ESTABLISHMENT,LD - East Locality - Cost of Care,LD - East Cambs - Care,Residential Care
Cambridgeshire County Council,03-Dec-21,51301685612,"1,765.42",The Gables (LD),CARE ESTABLISHMENT,LD - East Locality - Cost of Care,LD - East Cambs - Care,Residential Care
Cambridgeshire County Council,03-Dec-21,51301685612,"1,765.42",The Gables (LD),CARE ESTABLISHMENT,LD - East Locality - Cost of Care,LD - East Cambs - Care,Residential Care
Cambridgeshire County Council,03-Dec-21,51301685612,"1,765.42",The Gables (LD),CARE ESTABLISHMENT,LD - East Locality - Cost of Care,LD - East Cambs - Care,Residential Care
Cambridgeshire County Council,03-Dec-21,51301685612,"1,765.42",The Gables (LD),CARE ESTABLISHMENT,LD - East Locality - Cost of Care,LD - East Cambs - Care,Residential Care
Cambridgeshire County Council,03-Dec-21,51301685679,"1,784.00",HUNTINGDONSHIRE DISTRICT COUNCIL,OTHER PUBLIC BODIES,Corporate Offices,FM Amundsen Annexe,Business rates
Cambridgeshire County Council,03-Dec-21,51301685512,"1,784.16",VOYAGE,CARE ESTABLISHMENT,LD - South Locality - Cost of Care,LD - South Cambs - Care,Supported Living
Cambridgeshire County Council,03-Dec-21,51301685312,"1,800.00",PRG T/A PANORAMIC ASSOCIATES LIMITED,TRADE SUPPLIER,SEND Specialist Services,Statutory Assessment Team - South,Professional Fees and Hired Services
Cambridgeshire County Council,03-Dec-21,51301685666,"1,846.00",HUNTINGDONSHIRE DISTRICT COUNCIL,OTHER PUBLIC BODIES,Corporate Offices,St Ives Library,Business rates
Cambridgeshire County Council,03-Dec-21,51301685727,"1,848.00",SPARX CARS,TRADE SUPPLIER,Home to School Transport - Special,Home to School Transport Special - Post 16,Home to School - Contract
Cambridgeshire County Council,03-Dec-21,51301676986,"1,890.00",New Family Social,CHARITY,Regional Adoption Agency,Regional Adoption Agency,Staff Training & Development
Cambridgeshire County Council,03-Dec-21,51301685637,"1,896.00",FENLAND DISTRICT COUNCIL,OTHER PUBLIC BODIES,Corporate Offices,March Highways Depot,Business rates
Cambridgeshire County Council,03-Dec-21,51301685505,"1,918.82",AURORA ORCHARD MANOR,CARE ESTABLISHMENT,LD - Young Adults Team,LD - Young Adults - Special Needs,Supported Living
Cambridgeshire County Council,03-Dec-21,51301685505,"1,918.82",AURORA ORCHARD MANOR,CARE ESTABLISHMENT,LD - Young Adults Team,LD - Young Adults - Special Needs,Supported Living
Cambridgeshire County Council,03-Dec-21,51301685505,"1,918.82",AURORA ORCHARD MANOR,CARE ESTABLISHMENT,LD - Young Adults Team,LD - Young Adults - Special Needs,Supported Living
Cambridgeshire County Council,03-Dec-21,51301685505,"1,918.82",AURORA ORCHARD MANOR,CARE ESTABLISHMENT,LD - Young Adults Team,LD - Young Adults - Special Needs,Supported Living
Cambridgeshire County Council,03-Dec-21,51301685505,"1,918.82",AURORA ORCHARD MANOR,CARE ESTABLISHMENT,LD - Young Adults Team,LD - Young Adults - Special Needs,Supported Living
Cambridgeshire County Council,03-Dec-21,51301685505,"1,918.82",AURORA ORCHARD MANOR,CARE ESTABLISHMENT,LD - Young Adults Team,LD - Young Adults - Special Needs,Supported Living
Cambridgeshire County Council,03-Dec-21,51301685505,"1,918.82",AURORA ORCHARD MANOR,CARE ESTABLISHMENT,LD - Young Adults Team,LD - Young Adults - Special Needs,Supported Living
Cambridgeshire County Council,03-Dec-21,51301685505,"1,918.82",AURORA ORCHARD MANOR,CARE ESTABLISHMENT,LD - Young Adults Team,LD - Young Adults - Special Needs,Supported Living
Cambridgeshire County Council,03-Dec-21,51301685505,"1,918.82",AURORA ORCHARD MANOR,CARE ESTABLISHMENT,LD - Young Adults Team,LD - Young Adults - Special Needs,Supported Living
Cambridgeshire County Council,03-Dec-21,51301685505,"1,918.82",AURORA ORCHARD MANOR,CARE ESTABLISHMENT,LD - Young Adults Team,LD - Young Adults - Special Needs,Supported Living
Cambridgeshire County Council,03-Dec-21,51301685505,"1,918.82",AURORA ORCHARD MANOR,CARE ESTABLISHMENT,LD - Young Adults Team,LD - Young Adults - Special Needs,Supported Living
Cambridgeshire County Council,03-Dec-21,51301685505,"1,918.82",AURORA ORCHARD MANOR,CARE ESTABLISHMENT,LD - Young Adults Team,LD - Young Adults - Special Needs,Supported Living
Cambridgeshire County Council,03-Dec-21,51301685505,"1,918.82",AURORA ORCHARD MANOR,CARE ESTABLISHMENT,LD - Young Adults Team,LD - Young Adults - Special Needs,Supported Living
Cambridgeshire County Council,03-Dec-21,51301685505,"1,918.82",AURORA ORCHARD MANOR,CARE ESTABLISHMENT,LD - Young Adults Team,LD - Young Adults - Special Needs,Supported Living
Cambridgeshire County Council,03-Dec-21,51301685505,"1,918.82",AURORA ORCHARD MANOR,CARE ESTABLISHMENT,LD - Young Adults Team,LD - Young Adults - Special Needs,Supported Living
Cambridgeshire County Council,03-Dec-21,51301685661,"1,996.00",HUNTINGDONSHIRE DISTRICT COUNCIL,OTHER PUBLIC BODIES,Corporate Offices,Lawrence Court,Business rates
Cambridgeshire County Council,03-Dec-21,51301685682,"2,008.00",HUNTINGDONSHIRE DISTRICT COUNCIL,OTHER PUBLIC BODIES,Corporate Offices,Ramsey Library,Business rates
Cambridgeshire County Council,03-Dec-21,51301685336,"2,047.14",EATON SOCON PRESCHOOL,NURSERY,SEND High Needs Top Up,SEND Specialist Services-High needs top-up-Early Years,Independent School Placements
Cambridgeshire County Council,03-Dec-21,51301685514,"2,121.39",ALDERTON HOUSE,CARE ESTABLISHMENT,LD - Young Adults Team,LD - Young Adults - Care,Short Term Other
Cambridgeshire County Council,03-Dec-21,51301685710,"2,137.20",NEWTAX LTD,TRADE SUPPLIER,Home to School Transport - Special,Home to School Transport Special - Special School,Home to School - Contract
Cambridgeshire County Council,03-Dec-21,51301684985,"2,143.20",GD GREEN,SOLETRADER,County Farms,County Farms,County Farms Maintenance unplanned
Cambridgeshire County Council,03-Dec-21,51301685659,"2,171.00",HUNTINGDONSHIRE DISTRICT COUNCIL,OTHER PUBLIC BODIES,Corporate Offices,St Neots Library,Business rates
Cambridgeshire County Council,03-Dec-21,51301685477,"2,278.40",Signet Apartments Ltd,COMPANY,OPMH - City & South,Older People Mental Health City & South,Other Care Provide Payments and Contributions
Cambridgeshire County Council,03-Dec-21,51301672049,"2,304.00",Panoramic Associates,COMPANY,PH COMF,PH - Contain Outbreak Management Fund,Agency Staff
Cambridgeshire County Council,03-Dec-21,51301672629,"2,344.17",COLOURBOX MONTESSORI SCHOOL,NURSERY,SEND High Needs Top Up,SEND Specialist Services-High needs top-up-Early Years,Independent School Placements
Cambridgeshire County Council,03-Dec-21,51301678527,"2,376.00",EXACTRAK LTD DIVISION OF ITW LTD,COMPANY,Winter Maintenance,Central Winter Maintenance,Vehicle Running Costs
Cambridgeshire County Council,03-Dec-21,51301685720,"2,402.40",Nationwide Travel Solutions Ltd,COMPANY,Home to School Transport - Mainstream,Home to School Transport Mainstream - Secondary,Home to School - Contract
Cambridgeshire County Council,03-Dec-21,51301685377,"2,413.85",The Benjamin Foundation,CARE ESTABLISHMENT,LAC Placements,Placements - supported accommodation,Agency Placements - In County
Cambridgeshire County Council,03-Dec-21,51301677355,"2,500.00",The Centre for FASD Limited,TRADE SUPPLIER,Regional Adoption Agency,Adoption Support Fund,Professional Fees and Hired Services
Cambridgeshire County Council,03-Dec-21,51301685712,"2,521.20",ACME TRANSPORT SERVICES,TRADE SUPPLIER,Home to School Transport - Special,Home to School Transport Special - Special School,Home to School - Contract
Cambridgeshire County Council,03-Dec-21,51301685514,"2,593.76",ALDERTON HOUSE,CARE ESTABLISHMENT,LD - Young Adults Team,LD - Young Adults - Care,Short Term Other
Cambridgeshire County Council,03-Dec-21,51301685514,"2,593.76",ALDERTON HOUSE,CARE ESTABLISHMENT,LD - Young Adults Team,LD - Young Adults - Care,Short Term Other
Cambridgeshire County Council,03-Dec-21,51301685514,"2,593.76",ALDERTON HOUSE,CARE ESTABLISHMENT,LD - Young Adults Team,LD - Young Adults - Care,Short Term Other
Cambridgeshire County Council,03-Dec-21,51301685514,"2,593.76",ALDERTON HOUSE,CARE ESTABLISHMENT,LD - Young Adults Team,LD - Young Adults - Care,Short Term Other
Cambridgeshire County Council,03-Dec-21,51301685514,"2,593.76",ALDERTON HOUSE,CARE ESTABLISHMENT,LD - Young Adults Team,LD - Young Adults - Care,Short Term Other
Cambridgeshire County Council,03-Dec-21,51301685514,"2,593.76",ALDERTON HOUSE,CARE ESTABLISHMENT,LD - Young Adults Team,LD - Young Adults - Care,Short Term Other
Cambridgeshire County Council,03-Dec-21,51301685514,"2,593.76",ALDERTON HOUSE,CARE ESTABLISHMENT,LD - Young Adults Team,LD - Young Adults - Care,Short Term Other
Cambridgeshire County Council,03-Dec-21,51301685514,"2,593.76",ALDERTON HOUSE,CARE ESTABLISHMENT,LD - Young Adults Team,LD - Young Adults - Care,Short Term Other
Cambridgeshire County Council,03-Dec-21,51301685726,"2,640.00",SPARX CARS,TRADE SUPPLIER,Home to School Transport - Mainstream,Home to School Transport Mainstream - Secondary,Home to School - Contract
Cambridgeshire County Council,03-Dec-21,51301685600,"2,644.85",Redacted Personal Data,INDIVIDUAL,LD - Young Adults Team,LD - Young Adults - Special Needs,Direct Payments
Cambridgeshire County Council,03-Dec-21,51301675375,"2,807.83",Low Carbon Contracts Company Ltd,COMPANY,County Farms,"Triangle Solar Farm, Soham",Electricity
Cambridgeshire County Council,03-Dec-21,51301685335,"2,809.80",EATON SOCON PRESCHOOL,NURSERY,SEND High Needs Top Up,SEND Specialist Services-High needs top-up-Early Years,Independent School Placements
Cambridgeshire County Council,03-Dec-21,51301672504,"2,858.80",COMPASS MINERALS UK LIMITED,TRADE SUPPLIER,Winter Maintenance,North Winter,Salt for Highways
Cambridgeshire County Council,03-Dec-21,51301685310,"2,872.98",Priory Marine Ltd,COMPANY,Grafham Water,Grafham Water Centre,Educational Materials
Cambridgeshire County Council,03-Dec-21,51301685641,"2,893.00",FENLAND DISTRICT COUNCIL,OTHER PUBLIC BODIES,Corporate Offices,Wisbech Library,Business rates
Cambridgeshire County Council,03-Dec-21,51301685701,"2,928.00",ASH SCHOOL TRANSPORT,TRADE SUPPLIER,Home to School Transport - Special,Home to School Transport Special - Out of County,Home to School - Contract
Cambridgeshire County Council,03-Dec-21,51301685729,"2,973.60",TK Transport Solutions LTD,COMPANY,Home to School Transport - Mainstream,Home to School Transport Mainstream - Primary,Home to School - Contract
Cambridgeshire County Council,03-Dec-21,51301685711,"2,996.78",ACME TRANSPORT SERVICES,TRADE SUPPLIER,Home to School Transport - Special,Home to School Transport Special - Secondary,Home to School - Contract
Cambridgeshire County Council,03-Dec-21,51301678552,"2,998.80",TRANSITION CARE PETERBOROUGH LTD,CARE ESTABLISHMENT,LAC Placements,Placements - supported accommodation,Agency Placements - In County
Cambridgeshire County Council,03-Dec-21,51301685618,"3,027.20",PARK HOUSE NURSING HOME,CARE ESTABLISHMENT,OPMH - Hunts & Fens,Older People Mental Health Hunts,Nursing Care
Cambridgeshire County Council,03-Dec-21,51301674904,"3,089.70",CROSS KEYS HOMES LIMITED,CARE ESTABLISHMENT,Emergency Duty Team,Emergency Duty  Team,Mobile Phones
Cambridgeshire County Council,03-Dec-21,51301685692,"3,098.00",HUNTINGDONSHIRE DISTRICT COUNCIL,OTHER PUBLIC BODIES,Corporate Offices,Vantage House,Business rates
Cambridgeshire County Council,03-Dec-21,51301685730,"3,364.20",TK Transport Solutions LTD,COMPANY,Home to School Transport - Special,Home to School Transport Special - Special School,Home to School - Contract
Cambridgeshire County Council,03-Dec-21,51301685394,"3,407.14",LITTLE ACORNS FOSTERING LTD,CARE ESTABLISHMENT,LAC Placements,Placements - independent fostering,Agency Placements - Out of  County
Cambridgeshire County Council,03-Dec-21,51301685403,"3,407.14",LITTLE ACORNS FOSTERING LTD,CARE ESTABLISHMENT,LAC Placements,Placements - independent fostering,Agency Placements - Out of  County
Cambridgeshire County Council,03-Dec-21,51301685397,"3,407.14",LITTLE ACORNS FOSTERING LTD,CARE ESTABLISHMENT,LAC Placements,Placements - independent fostering,Agency Placements - Out of  County
Cambridgeshire County Council,03-Dec-21,51301685380,"3,407.14",LITTLE ACORNS FOSTERING LTD,CARE ESTABLISHMENT,LAC Placements,Placements - independent fostering,Agency Placements - Out of  County
Cambridgeshire County Council,03-Dec-21,51301685645,"3,482.00",FENLAND DISTRICT COUNCIL,OTHER PUBLIC BODIES,Commercial Activity,Cromwell Leisure Park,Business rates
Cambridgeshire County Council,03-Dec-21,51301685698,"3,497.76",F & S TAXIS,TRADE SUPPLIER,Home to School Transport - Special,Home to School Transport Special - Post 16,Home to School - Contract
Cambridgeshire County Council,03-Dec-21,51301685514,"3,535.64",ALDERTON HOUSE,CARE ESTABLISHMENT,LD - Young Adults Team,LD - Young Adults - Care,Short Term Other
Cambridgeshire County Council,03-Dec-21,51301685681,"3,661.00",HUNTINGDONSHIRE DISTRICT COUNCIL,OTHER PUBLIC BODIES,Corporate Offices,Speke House,Business rates
Cambridgeshire County Council,03-Dec-21,51301685391,"3,672.86",LITTLE ACORNS FOSTERING LTD,CARE ESTABLISHMENT,LAC Placements,Placements - independent fostering,Agency Placements - In County
Cambridgeshire County Council,03-Dec-21,51301685386,"3,672.86",LITTLE ACORNS FOSTERING LTD,CARE ESTABLISHMENT,LAC Placements,Placements - independent fostering,Agency Placements - Out of  County
Cambridgeshire County Council,03-Dec-21,51301685383,"3,672.86",LITTLE ACORNS FOSTERING LTD,CARE ESTABLISHMENT,LAC Placements,Placements - independent fostering,Agency Placements - Out of  County
Cambridgeshire County Council,03-Dec-21,51301685389,"3,672.86",LITTLE ACORNS FOSTERING LTD,CARE ESTABLISHMENT,LAC Placements,Placements - independent fostering,Agency Placements - Out of  County
Cambridgeshire County Council,03-Dec-21,51301685699,"3,756.00",ASH SCHOOL TRANSPORT,TRADE SUPPLIER,Home to School Transport - Special,Home to School Transport Special - Out of County,Home to School - Contract
Cambridgeshire County Council,03-Dec-21,51301685674,"3,763.00",HUNTINGDONSHIRE DISTRICT COUNCIL,OTHER PUBLIC BODIES,Corporate Offices,Huntingdon Highways Depot,Business rates
Cambridgeshire County Council,03-Dec-21,51301685400,"3,814.29",LITTLE ACORNS FOSTERING LTD,CARE ESTABLISHMENT,LAC Placements,Placements - independent fostering,Agency Placements - Out of  County
Cambridgeshire County Council,03-Dec-21,51301685672,"3,840.00",HUNTINGDONSHIRE DISTRICT COUNCIL,OTHER PUBLIC BODIES,Corporate Offices,Stanton House,Business rates
Cambridgeshire County Council,03-Dec-21,51301685708,"4,219.20",NASA CARS,TRADE SUPPLIER,Home to School Transport - Special,Home to School Transport Special - Post 16,Home to School - Contract
Cambridgeshire County Council,03-Dec-21,51301685367,"4,264.29",MOSAIC FOSTER CARE LTD,CARE ESTABLISHMENT,LAC Placements,Placements - independent fostering,Agency Placements - Out of  County
Cambridgeshire County Council,03-Dec-21,51301685722,"4,307.46",NEEDHAM CARS,TRADE SUPPLIER,Home to School Transport - Special,Home to School Transport Special - Post 16,Home to School - Contract
Cambridgeshire County Council,03-Dec-21,51301685728,"4,320.00",SPARX CARS,TRADE SUPPLIER,Home to School Transport - Special,Home to School Transport Special - Out of County,Home to School - Contract
Cambridgeshire County Council,03-Dec-21,51301683231,"4,495.54",NOTTINGHAM REHAB SUPPLIES LTD,TRADE SUPPLIER,Integrated Community Equipment Service,ICES (Pool),Care & Ed Partner Organisations
Cambridgeshire County Council,03-Dec-21,51301685745,"4,500.00",Beacon Law Solicitors Client Account,COMPANY,Insurance Fund,Liability,Insurance Claims Paid
Cambridgeshire County Council,03-Dec-21,51301685640,"4,531.00",FENLAND DISTRICT COUNCIL,OTHER PUBLIC BODIES,Corporate Offices,March Library,Business rates
Cambridgeshire County Council,03-Dec-21,51301685703,"4,588.20",ASH SCHOOL TRANSPORT,TRADE SUPPLIER,Home to School Transport - Mainstream,Home to School Transport Mainstream - Primary,Home to School - Contract
Cambridgeshire County Council,03-Dec-21,51301685678,"4,685.00",HUNTINGDONSHIRE DISTRICT COUNCIL,OTHER PUBLIC BODIES,Waste Disposal incl PFI,St.Neots HWRC,Business rates
Cambridgeshire County Council,03-Dec-21,51301685723,"4,732.56",NEEDHAM CARS,TRADE SUPPLIER,Home to School Transport - Special,Home to School Transport Special - Special School,Home to School - Contract
Cambridgeshire County Council,03-Dec-21,51301685743,"4,800.00",Enemy of Boredom,LOCAL CLUBS & GROUPS,SEND High Needs Top Up,"SEND Specialist Services,High Needs Top Up,Other institutions",Independent School Placements
Cambridgeshire County Council,03-Dec-21,51301685680,"4,941.00",HUNTINGDONSHIRE DISTRICT COUNCIL,OTHER PUBLIC BODIES,Corporate Offices,Contact Centre - Amundsen House,Business rates
Cambridgeshire County Council,03-Dec-21,51301685514,"4,949.90",ALDERTON HOUSE,CARE ESTABLISHMENT,LD - Young Adults Team,LD - Young Adults - Care,Short Term Other
Cambridgeshire County Council,03-Dec-21,51301685668,"4,966.00",HUNTINGDONSHIRE DISTRICT COUNCIL,OTHER PUBLIC BODIES,Corporate Offices,Buttsgrove,Business rates
Cambridgeshire County Council,03-Dec-21,51301685736,"5,031.00",4X LIMITED T/A STEVES TAXI & PRIVATE HIRE,TRADE SUPPLIER,Home to School Transport - Special,Home to School Transport Special - Out of County,Home to School - Contract
Cambridgeshire County Council,03-Dec-21,51301685512,"5,055.33",VOYAGE,CARE ESTABLISHMENT,LD - South Locality - Cost of Care,LD - South Cambs - Care,Supported Living
Cambridgeshire County Council,03-Dec-21,51301685644,"5,069.00",FENLAND DISTRICT COUNCIL,OTHER PUBLIC BODIES,Corporate Offices,Hereward Hall,Business rates
Cambridgeshire County Council,03-Dec-21,51301685665,"5,683.00",HUNTINGDONSHIRE DISTRICT COUNCIL,OTHER PUBLIC BODIES,Grafham Water,Grafham Water Centre,Business rates
Cambridgeshire County Council,03-Dec-21,51301685631,"6,042.00",FENLAND DISTRICT COUNCIL,OTHER PUBLIC BODIES,Corporate Offices,"Awdry House, Wisbech",Business rates
Cambridgeshire County Council,03-Dec-21,51301685374,"6,283.20",Grove Social Care Ltd,CARE ESTABLISHMENT,LAC Placements,Placements - supported accommodation,Agency Placements - In County
Cambridgeshire County Council,03-Dec-21,51301685476,"6,397.12",ASTALL PATHOLOGY SERVICES,COMPANY,Coroners,Coroners General,Professional Fees and Hired Services
Cambridgeshire County Council,03-Dec-21,51301685375,"6,721.20",Grove Social Care Ltd,CARE ESTABLISHMENT,LAC Placements,Placements - supported accommodation,Agency Placements - In County
Cambridgeshire County Council,03-Dec-21,51301685734,"6,839.04",4X LIMITED T/A STEVES TAXI & PRIVATE HIRE,TRADE SUPPLIER,Home to School Transport - Special,Home to School Transport Special - Secondary,Home to School - Contract
Cambridgeshire County Council,03-Dec-21,51301672488,"7,020.00",Xander Talent Limited,COMPANY,Enduring Transmission Grant,Enduring Transmission Grant,Professional Fees and Hired Services
Cambridgeshire County Council,03-Dec-21,51301674674,"7,643.39",Vuzion UK Ltd,COMPANY,ICT Service,ICT Service Technical Support,Computer software - purchase
Cambridgeshire County Council,03-Dec-21,51301685749,"7,722.25",LITTLE THETFORD ACORNS,NURSERY,Nursery Schools,Early Years - Funded 3s/4s,Sales - Publications
Cambridgeshire County Council,03-Dec-21,51301685731,"9,219.65",4X LIMITED T/A STEVES TAXI & PRIVATE HIRE,TRADE SUPPLIER,Home to School Transport - Mainstream,Home to School Transport Mainstream - Secondary,Home to School - Contract
Cambridgeshire County Council,03-Dec-21,51301685733,"9,869.71",4X LIMITED T/A STEVES TAXI & PRIVATE HIRE,TRADE SUPPLIER,Home to School Transport - Mainstream,Home to School Transport Mainstream - Primary,Home to School - Contract
Cambridgeshire County Council,03-Dec-21,51301685677,"10,701.00",HUNTINGDONSHIRE DISTRICT COUNCIL,OTHER PUBLIC BODIES,Corporate Offices,Huntingdon Library,Business rates
Cambridgeshire County Council,03-Dec-21,51301685675,"10,854.00",HUNTINGDONSHIRE DISTRICT COUNCIL,OTHER PUBLIC BODIES,Corporate Offices,Scott House,Business rates
Cambridgeshire County Council,03-Dec-21,51301685453,"11,476.29",PETERBOROUGH CITY COUNCIL,OTHER PUBLIC BODIES,Enduring Transmission Grant,Enduring Transmission Grant,Joint Partnership Funding
Cambridgeshire County Council,03-Dec-21,51301672327,"11,746.14",MOTT MACDONALD LTD,TRADE SUPPLIER,GCP - West of Cambridge Package,GCP - West of Cambridge Package,Construction - External Professional Fees
Cambridgeshire County Council,03-Dec-21,51301675591,"11,812.50",Pinnegar Hayward Design,COMPANY,Strategic Investments,Strategic Investments,Design
Cambridgeshire County Council,03-Dec-21,51301672965,"11,884.68",Team Q Maintenance Ltd,COMPANY,Corporate Offices,"Earith, Somersham and Warboys Children's Centre",Building Repair and Maintenance
Cambridgeshire County Council,03-Dec-21,51301674757,"14,250.00",W H FOWLER & SONS (COACHES) LTD,TRADE SUPPLIER,Enduring Transmission Grant,Enduring Transmission Grant,Professional Fees and Hired Services
Cambridgeshire County Council,03-Dec-21,51301685144,"15,123.31",PETERBOROUGH CITY COUNCIL,OTHER PUBLIC BODIES,Enduring Transmission Grant,Enduring Transmission Grant,Professional Fees and Hired Services
Cambridgeshire County Council,03-Dec-21,51301685707,"15,826.80",NASA CARS,TRADE SUPPLIER,Home to School Transport - Special,Home to School Transport Special - Special School,Home to School - Contract
Cambridgeshire County Council,03-Dec-21,51301672021,"16,800.00",ATKINS LTD,COMPANY,GCP - Science Park to Waterbeach (A10 North Study),GCP - Science Park to Waterbeach (A10 North Study),Construction - External Professional Fees
Cambridgeshire County Council,03-Dec-21,51301685113,"16,834.52",Acorn Care & Education Ltd,EDUCATION,SEN Placements,Placements - Education,Independent School Placements
Cambridgeshire County Council,03-Dec-21,51301685301,"16,840.00",Dean & Dean Construction Ltd,COMPANY,Highways Development Management,Section 278 Deposits,Developers Funds
Cambridgeshire County Council,03-Dec-21,51301685364,"17,100.00",MJ Children�s Services,CARE ESTABLISHMENT,LAC Placements,Placements - residential disability,Agency Placements - In County
Cambridgeshire County Council,03-Dec-21,51301685365,"17,807.14",NEW REFLEXIONS REFLEXION CARE GROUP,CARE ESTABLISHMENT,LAC Placements,Placements - residential homes,Agency Placements - Out of  County
Cambridgeshire County Council,03-Dec-21,51301662496,"18,624.00",Basemap Ltd,TRADE SUPPLIER,Travel Plan,Smart Journeys,Computer software - annual licence agreement
Cambridgeshire County Council,03-Dec-21,51301685612,"19,269.28",The Gables (LD),CARE ESTABLISHMENT,LD - East Locality - Cost of Care,LD - East Cambs - Care,Residential Care
Cambridgeshire County Council,03-Dec-21,51301685732,"30,420.00",4X LIMITED T/A STEVES TAXI & PRIVATE HIRE,TRADE SUPPLIER,Home to School Transport - Special,Home to School Transport Special - Special School,Home to School - Contract
Cambridgeshire County Council,03-Dec-21,51301675131,"42,372.00",TRIPLE P UK LTD,TRADE SUPPLIER,Early Help District Delivery - Head of Service South,Area Manager PPP East Cambs & Fenland,Professional Fees and Hired Services
Cambridgeshire County Council,03-Dec-21,51301672151,"144,898.55",Hutton Construction Ltd,COMPANY,Decarbonisation Fund,Hereward Hall Renewable Heating,"New Construction, Conversion and Renovation"
Cambridgeshire County Council,03-Dec-21,51301685008,"406,237.50",BOUYGUES EES FM UK LTD,COMPANY,Swaffham Prior Energy Project,Swaffham Prior Community Heat Network Ltd,Construction - External Professional Fees
Cambridgeshire County Council,03-Dec-21,51301683242,"514,486.32",NOTTINGHAM REHAB SUPPLIES LTD,TRADE SUPPLIER,Integrated Community Equipment Service,ICES (Pool),Care & Ed Partner Organisations
Cambridgeshire County Council,03-Dec-21,51301685327,"565,350.62",EQUITIX EDUCATION (CAMBRIDGESHIRE) LIMITED,EDUCATION,Buildings and Capital,BSF New Projects / Follow On Waves,Building Repair and Maintenance
Cambridgeshire County Council,03-Dec-21,51301685473,"1,031,723.43",MORGAN SINDALL CONSTRUCTION & INFRASTRUCTURE LTD,COMPANY,Wing Development,Wing Development,"New Construction, Conversion and Renovation"
Cambridgeshire County Council,06-Dec-21,51301617133,"-50,432.24",KISIMUL SCHOOL,CARE ESTABLISHMENT,SEN Placements,Placements - Education,Independent School Placements
Cambridgeshire County Council,06-Dec-21,51301624421,"-46,977.49",KISIMUL SCHOOL,CARE ESTABLISHMENT,SEN Placements,Placements - Education,Independent School Placements
Cambridgeshire County Council,06-Dec-21,51301593181,"-38,519.01",KISIMUL SCHOOL,CARE ESTABLISHMENT,SEND High Needs Top Up,SEND Specialist Services-High needs top-up-Post 16,Independent School Placements
Cambridgeshire County Council,06-Dec-21,51301617132,"-34,314.72",KISIMUL SCHOOL,CARE ESTABLISHMENT,SEN Placements,Placements - Education,Independent School Placements
Cambridgeshire County Council,06-Dec-21,51301613733,"-31,353.83",KISIMUL SCHOOL,CARE ESTABLISHMENT,SEN Placements,Placements - Education,Independent School Placements
Cambridgeshire County Council,06-Dec-21,51301593075,"-12,839.67",KISIMUL SCHOOL,CARE ESTABLISHMENT,SEND High Needs Top Up,SEND Specialist Services-High needs top-up-Post 16,Independent School Placements
Cambridgeshire County Council,06-Dec-21,51301593182,"-12,839.67",KISIMUL SCHOOL,CARE ESTABLISHMENT,SEND High Needs Top Up,SEND Specialist Services-High needs top-up-Post 16,Independent School Placements
Cambridgeshire County Council,06-Dec-21,51301593072,"-12,839.67",KISIMUL SCHOOL,CARE ESTABLISHMENT,SEND High Needs Top Up,SEND Specialist Services-High needs top-up-Post 16,Independent School Placements
Cambridgeshire County Council,06-Dec-21,51301593073,"-12,839.67",KISIMUL SCHOOL,CARE ESTABLISHMENT,SEND High Needs Top Up,SEND Specialist Services-High needs top-up-Post 16,Independent School Placements
Cambridgeshire County Council,06-Dec-21,51301593074,"-12,839.67",KISIMUL SCHOOL,CARE ESTABLISHMENT,SEND High Needs Top Up,SEND Specialist Services-High needs top-up-Post 16,Independent School Placements
Cambridgeshire County Council,06-Dec-21,51301686144,"-3,596.00",NEXUS FOSTERING LTD,CARE ESTABLISHMENT,LAC Placements,Placements - independent fostering,Agency Placements - Out of  County
Cambridgeshire County Council,06-Dec-21,51301685911,"-2,630.57",PCH Integration Services Ltd.,CARE ESTABLISHMENT,Unaccompanied Asylum Seeking Children,Unaccompanied Asylum Seeking Children <18,Asylum Seekers
Cambridgeshire County Council,06-Dec-21,51301685907,"-2,630.57",PCH Integration Services Ltd.,CARE ESTABLISHMENT,Unaccompanied Asylum Seeking Children,Unaccompanied Asylum Seeking Children <18,Asylum Seekers
Cambridgeshire County Council,06-Dec-21,51301685915,"-2,630.57",PCH Integration Services Ltd.,CARE ESTABLISHMENT,Unaccompanied Asylum Seeking Children,Unaccompanied Asylum Seeking Children <18,Asylum Seekers
Cambridgeshire County Council,06-Dec-21,51301685917,"-2,630.57",PCH Integration Services Ltd.,CARE ESTABLISHMENT,Unaccompanied Asylum Seeking Children,Unaccompanied Asylum Seeking Children <18,Asylum Seekers
Cambridgeshire County Council,06-Dec-21,51301685921,"-2,630.57",PCH Integration Services Ltd.,CARE ESTABLISHMENT,Unaccompanied Asylum Seeking Children,Unaccompanied Asylum Seeking Children <18,Asylum Seekers
Cambridgeshire County Council,06-Dec-21,51301685903,"-2,630.57",PCH Integration Services Ltd.,CARE ESTABLISHMENT,Unaccompanied Asylum Seeking Children,Unaccompanied Asylum Seeking Children <18,Asylum Seekers
Cambridgeshire County Council,06-Dec-21,51301685919,"-2,545.72",PCH Integration Services Ltd.,CARE ESTABLISHMENT,Unaccompanied Asylum Seeking Children,Unaccompanied Asylum Seeking Children <18,Asylum Seekers
Cambridgeshire County Council,06-Dec-21,51301685909,"-2,545.72",PCH Integration Services Ltd.,CARE ESTABLISHMENT,Unaccompanied Asylum Seeking Children,Unaccompanied Asylum Seeking Children <18,Asylum Seekers
Cambridgeshire County Council,06-Dec-21,51301685913,"-2,545.72",PCH Integration Services Ltd.,CARE ESTABLISHMENT,Unaccompanied Asylum Seeking Children,Unaccompanied Asylum Seeking Children <18,Asylum Seekers
Cambridgeshire County Council,06-Dec-21,51301685905,"-2,376.00",PCH Integration Services Ltd.,CARE ESTABLISHMENT,Unaccompanied Asylum Seeking Children,Unaccompanied Asylum Seeking Children <18,Asylum Seekers
Cambridgeshire County Council,06-Dec-21,51301685945,"-1,682.86",PSA Care LTD,COMPANY,Unaccompanied Asylum Seeking Children,Unaccompanied Asylum Seeking Children >18 Leaving Care,Living Spport Grants - Financial Assistance 18+
Cambridgeshire County Council,06-Dec-21,51301685943,"-1,628.57",PSA Care LTD,COMPANY,Unaccompanied Asylum Seeking Children,Unaccompanied Asylum Seeking Children >18 Leaving Care,Living Spport Grants - Financial Assistance 18+
Cambridgeshire County Council,06-Dec-21,51301685901,"-1,527.43",PCH Integration Services Ltd.,CARE ESTABLISHMENT,Unaccompanied Asylum Seeking Children,Unaccompanied Asylum Seeking Children <18,Asylum Seekers
Cambridgeshire County Council,06-Dec-21,51301643813,-661.20,KISIMUL SCHOOL,CARE ESTABLISHMENT,SEND High Needs Top Up,SEND Specialist Services-High needs top-up-Post 16,Independent School Placements
Cambridgeshire County Council,06-Dec-21,51301685960,514.29,Elite care,CARE ESTABLISHMENT,Unaccompanied Asylum Seeking Children,Unaccompanied Asylum Seeking Children >18 Leaving Care,Living Spport Grants - Financial Assistance 18+
Cambridgeshire County Council,06-Dec-21,51301685964,514.29,Elite care,CARE ESTABLISHMENT,Unaccompanied Asylum Seeking Children,Unaccompanied Asylum Seeking Children >18 Leaving Care,Living Spport Grants - Financial Assistance 18+
Cambridgeshire County Council,06-Dec-21,51301686999,519.76,Redacted Personal Data,FOSTER PARENT,Adoption Allowances,Adoption Allowances,Adoption Allowances
Cambridgeshire County Council,06-Dec-21,51301686589,520.00,Redacted Personal Data,FOSTER PARENT,Fostering,FCP allowances,Adoption Allowances
Cambridgeshire County Council,06-Dec-21,51301687046,520.00,Redacted Personal Data,INDIVIDUAL,Fostering,FCP allowances,Adoption Allowances
Cambridgeshire County Council,06-Dec-21,51301686653,520.00,Redacted Personal Data,INDIVIDUAL,Fostering,FCP allowances,Adoption Allowances
Cambridgeshire County Council,06-Dec-21,51301686783,520.00,Redacted Personal Data,FOSTER PARENT,Fostering,FCP allowances,Adoption Allowances
Cambridgeshire County Council,06-Dec-21,51301687013,520.00,Redacted Personal Data,FOSTER PARENT,Fostering,FCP allowances,Adoption Allowances
Cambridgeshire County Council,06-Dec-21,51301686556,520.00,Redacted Personal Data,FOSTER PARENT,Fostering,FCP allowances,Adoption Allowances
Cambridgeshire County Council,06-Dec-21,51301686776,520.00,Redacted Personal Data,FOSTER PARENT,Fostering,FCP allowances,Adoption Allowances
Cambridgeshire County Council,06-Dec-21,51301676984,520.00,ALL SAINTS HALL COTTENHAM,LOCAL CLUBS & GROUPS,"General Prevention, Traveller Health",Travellers Project,Casual hire of facilities
Cambridgeshire County Council,06-Dec-21,51301686978,536.70,Redacted Personal Data,FOSTER PARENT,Fostering,FCP allowances,Enhanced Payments
Cambridgeshire County Council,06-Dec-21,51301686663,540.00,Redacted Personal Data,FOSTER PARENT,Fostering,FCP allowances,Adoption Allowances
Cambridgeshire County Council,06-Dec-21,51301686662,540.00,Redacted Personal Data,FOSTER PARENT,Fostering,FCP allowances,Adoption Allowances
Cambridgeshire County Council,06-Dec-21,51301686686,540.00,Redacted Personal Data,PARENT/GUARDIAN,Fostering,FCP allowances,Adoption Allowances
Cambridgeshire County Council,06-Dec-21,51301686713,540.00,Redacted Personal Data,PARENT/GUARDIAN,Fostering,FCP allowances,Adoption Allowances
Cambridgeshire County Council,06-Dec-21,51301686690,540.00,Redacted Personal Data,FOSTER PARENT,Fostering,FCP allowances,Adoption Allowances
Cambridgeshire County Council,06-Dec-21,51301686693,540.00,Redacted Personal Data,FOSTER PARENT,Fostering,FCP allowances,Adoption Allowances
Cambridgeshire County Council,06-Dec-21,51301686860,540.00,Redacted Personal Data,FOSTER PARENT,Fostering,FCP allowances,Adoption Allowances
Cambridgeshire County Council,06-Dec-21,51301686859,540.00,Redacted Personal Data,FOSTER PARENT,Fostering,FCP allowances,Adoption Allowances
Cambridgeshire County Council,06-Dec-21,51301685962,544.29,Elite care,CARE ESTABLISHMENT,Unaccompanied Asylum Seeking Children,Unaccompanied Asylum Seeking Children >18 Leaving Care,Living Spport Grants - Financial Assistance 18+
Cambridgeshire County Council,06-Dec-21,51301672582,568.80,ESPO,TRADE SUPPLIER,IHPS - South Day Services,"Larkfield, Ely",Catering Equipment - Purchases
Cambridgeshire County Council,06-Dec-21,51301686727,571.50,Redacted Personal Data,FOSTER PARENT,Fostering,FCP allowances,Adoption Allowances
Cambridgeshire County Council,06-Dec-21,51301686767,586.66,Redacted Personal Data,FOSTER PARENT,Fostering,FCP allowances,Adoption Allowances
Cambridgeshire County Council,06-Dec-21,51301674856,588.00,Russells Vehicle Management Ltd,COMPANY,Flood Risk Management,Flood Risk Management Programme,Professional Fees and Hired Services
Cambridgeshire County Council,06-Dec-21,51301678528,591.60,ABLE training,EDUCATION,Fostering Quality Assurance,Foster  Care  NVQ  3   Training,Professional Fees and Hired Services
Cambridgeshire County Council,06-Dec-21,51301678529,591.60,ABLE training,EDUCATION,Fostering Quality Assurance,Foster  Care  NVQ  3   Training,Professional Fees and Hired Services
Cambridgeshire County Council,06-Dec-21,51301687134,600.00,Redacted Personal Data,INDIVIDUAL,Coroners,Coroners General,Court Costs
Cambridgeshire County Council,06-Dec-21,51301686853,600.00,Redacted Personal Data,FOSTER PARENT,Fostering,FCP allowances,Adoption Allowances
Cambridgeshire County Council,06-Dec-21,51301686667,600.00,Redacted Personal Data,PARENT/GUARDIAN,Fostering,FCP allowances,Adoption Allowances
Cambridgeshire County Council,06-Dec-21,51301687057,600.00,Redacted Personal Data,INDIVIDUAL,Fostering,FCP allowances,Adoption Allowances
Cambridgeshire County Council,06-Dec-21,51301686221,600.00,Redacted Personal Data,INDIVIDUAL,Fostering,FCP allowances,Adoption Allowances
Cambridgeshire County Council,06-Dec-21,51301686718,600.00,Redacted Personal Data,FOSTER PARENT,Fostering,FCP allowances,Adoption Allowances
Cambridgeshire County Council,06-Dec-21,51301686719,600.00,Redacted Personal Data,FOSTER PARENT,Fostering,FCP allowances,Adoption Allowances
Cambridgeshire County Council,06-Dec-21,51301686689,600.00,Redacted Personal Data,FOSTER PARENT,Fostering,FCP allowances,Adoption Allowances
Cambridgeshire County Council,06-Dec-21,51301686688,600.00,Redacted Personal Data,FOSTER PARENT,Fostering,FCP allowances,Adoption Allowances
Cambridgeshire County Council,06-Dec-21,51301686687,600.00,Redacted Personal Data,FOSTER PARENT,Fostering,FCP allowances,Adoption Allowances
Cambridgeshire County Council,06-Dec-21,51301686694,600.00,Redacted Personal Data,FOSTER PARENT,Fostering,FCP allowances,Adoption Allowances
Cambridgeshire County Council,06-Dec-21,51301686944,600.00,Redacted Personal Data,INDIVIDUAL,Fostering,FCP allowances,Adoption Allowances
Cambridgeshire County Council,06-Dec-21,51301686774,600.00,Redacted Personal Data,FOSTER PARENT,Fostering,FCP allowances,Adoption Allowances
Cambridgeshire County Council,06-Dec-21,51301686715,620.00,Redacted Personal Data,FOSTER PARENT,Fostering,FCP allowances,Adoption Allowances
Cambridgeshire County Council,06-Dec-21,51301686557,620.00,Redacted Personal Data,FOSTER PARENT,Fostering,FCP allowances,Adoption Allowances
Cambridgeshire County Council,06-Dec-21,51301686664,620.00,Redacted Personal Data,FOSTER PARENT,Fostering,FCP allowances,Adoption Allowances
Cambridgeshire County Council,06-Dec-21,51301687012,620.00,Redacted Personal Data,FOSTER PARENT,Fostering,FCP allowances,Adoption Allowances
Cambridgeshire County Council,06-Dec-21,51301687059,620.00,Redacted Personal Data,FOSTER PARENT,Fostering,FCP allowances,Adoption Allowances
Cambridgeshire County Council,06-Dec-21,51301685321,620.00,IMPERIAL COLLEGE PROJECTS LIMITED,TRADE SUPPLIER,Coroners,Coroners General,Testing
Cambridgeshire County Council,06-Dec-21,51301674653,624.00,Matchtech,COMPANY,PD - General,Major Infrastructure Delivery,Agency Staff
Cambridgeshire County Council,06-Dec-21,51301687061,630.00,Redacted Personal Data,FOSTER PARENT,Adoption Allowances,Adoption Allowances,Adoption Allowances
Cambridgeshire County Council,06-Dec-21,51301683479,635.17,WCL UK LTD,TRADE SUPPLIER,ICT Service,ICT Service Sales,Materials for resale
Cambridgeshire County Council,06-Dec-21,51301686085,647.06,LITTLE ACORNS DAY NURSERY,NURSERY,Nursery Schools,Early Years - Funded 3s/4s,Care & Ed Childcare Settings
Cambridgeshire County Council,06-Dec-21,51301686685,660.00,Redacted Personal Data,PARENT/GUARDIAN,Fostering,FCP allowances,Adoption Allowances
Cambridgeshire County Council,06-Dec-21,51301686666,660.00,Redacted Personal Data,PARENT/GUARDIAN,Fostering,FCP allowances,Adoption Allowances
Cambridgeshire County Council,06-Dec-21,51301686701,660.00,Redacted Personal Data,PARENT/GUARDIAN,Fostering,FCP allowances,Adoption Allowances
Cambridgeshire County Council,06-Dec-21,51301686773,660.00,Redacted Personal Data,FOSTER PARENT,Fostering,FCP allowances,Adoption Allowances
Cambridgeshire County Council,06-Dec-21,51301687015,660.00,Redacted Personal Data,INDIVIDUAL,Fostering,FCP allowances,Adoption Allowances
Cambridgeshire County Council,06-Dec-21,51301687043,668.94,Redacted Personal Data,PARENT/GUARDIAN,Adoption Allowances,Adoption Allowances,Adoption Allowances
Cambridgeshire County Council,06-Dec-21,51301686742,692.10,Redacted Personal Data,FOSTER PARENT,Adoption Allowances,Adoption Allowances,Adoption Allowances
Cambridgeshire County Council,06-Dec-21,51301686621,709.58,Redacted Personal Data,FOSTER PARENT,Fostering,FCP allowances,Enhanced Payments
Cambridgeshire County Council,06-Dec-21,51301686809,720.00,Redacted Personal Data,PARENT/GUARDIAN,Fostering,FCP allowances,Adoption Allowances
Cambridgeshire County Council,06-Dec-21,51301686829,720.00,Redacted Personal Data,FOSTER PARENT,Fostering,FCP allowances,Adoption Allowances
Cambridgeshire County Council,06-Dec-21,51301686702,720.00,Redacted Personal Data,PARENT/GUARDIAN,Fostering,FCP allowances,Adoption Allowances
Cambridgeshire County Council,06-Dec-21,51301686830,720.00,Redacted Personal Data,FOSTER PARENT,Fostering,FCP allowances,Adoption Allowances
Cambridgeshire County Council,06-Dec-21,51301686764,720.00,Redacted Personal Data,FOSTER PARENT,Fostering,FCP allowances,Adoption Allowances
Cambridgeshire County Council,06-Dec-21,51301686762,720.00,Redacted Personal Data,FOSTER PARENT,Fostering,FCP allowances,Adoption Allowances
Cambridgeshire County Council,06-Dec-21,51301686765,720.00,Redacted Personal Data,FOSTER PARENT,Fostering,FCP allowances,Adoption Allowances
Cambridgeshire County Council,06-Dec-21,51301686684,720.00,Redacted Personal Data,FOSTER PARENT,Fostering,FCP allowances,Adoption Allowances
Cambridgeshire County Council,06-Dec-21,51301686523,720.00,Redacted Personal Data,INDIVIDUAL,Fostering,FCP allowances,Adoption Allowances
Cambridgeshire County Council,06-Dec-21,51301686522,720.00,Redacted Personal Data,INDIVIDUAL,Fostering,FCP allowances,Adoption Allowances
Cambridgeshire County Council,06-Dec-21,51301686658,720.00,Redacted Personal Data,FOSTER PARENT,Fostering,FCP allowances,Adoption Allowances
Cambridgeshire County Council,06-Dec-21,51301686651,720.00,Redacted Personal Data,FOSTER PARENT,Fostering,FCP allowances,Adoption Allowances
Cambridgeshire County Council,06-Dec-21,51301686731,720.00,Redacted Personal Data,FOSTER PARENT,Fostering,FCP allowances,Adoption Allowances
Cambridgeshire County Council,06-Dec-21,51301686740,720.00,Redacted Personal Data,PARENT/GUARDIAN,Fostering,FCP allowances,Adoption Allowances
Cambridgeshire County Council,06-Dec-21,51301686795,720.00,Redacted Personal Data,INDIVIDUAL,Fostering,FCP allowances,Adoption Allowances
Cambridgeshire County Council,06-Dec-21,51301686801,720.00,Redacted Personal Data,INDIVIDUAL,Fostering,FCP allowances,Adoption Allowances
Cambridgeshire County Council,06-Dec-21,51301686733,720.00,Redacted Personal Data,FOSTER PARENT,Fostering,FCP allowances,Adoption Allowances
Cambridgeshire County Council,06-Dec-21,51301686734,720.00,Redacted Personal Data,FOSTER PARENT,Fostering,FCP allowances,Adoption Allowances
Cambridgeshire County Council,06-Dec-21,51301686745,720.00,Redacted Personal Data,FOSTER PARENT,Fostering,FCP allowances,Adoption Allowances
Cambridgeshire County Council,06-Dec-21,51301686823,720.00,Redacted Personal Data,FOSTER PARENT,Fostering,FCP allowances,Adoption Allowances
Cambridgeshire County Council,06-Dec-21,51301686855,720.00,Redacted Personal Data,FOSTER PARENT,Fostering,FCP allowances,Adoption Allowances
Cambridgeshire County Council,06-Dec-21,51301686646,739.94,Redacted Personal Data,FOSTER PARENT,Adoption Allowances,Adoption Allowances,Adoption Allowances
Cambridgeshire County Council,06-Dec-21,51301686423,750.00,Redacted Personal Data,INDIVIDUAL,Adoption Allowances,Adoption Allowances,Adoption Allowances
Cambridgeshire County Council,06-Dec-21,51301686424,750.00,Redacted Personal Data,INDIVIDUAL,Adoption Allowances,Adoption Allowances,Adoption Allowances
Cambridgeshire County Council,06-Dec-21,51301686935,759.56,Redacted Personal Data,FOSTER PARENT,Adoption Allowances,Adoption Allowances,Adoption Allowances
Cambridgeshire County Council,06-Dec-21,51301687033,775.38,Redacted Personal Data,FOSTER PARENT,Adoption Allowances,Adoption Allowances,Childcare Costs
Cambridgeshire County Council,06-Dec-21,51301675056,780.00,HUNTINGDON TOWN COUNCIL,OTHER PUBLIC BODIES,Lateral Flow Testing Grant,Lateral Flow Testing Grant,Casual hire of facilities
Cambridgeshire County Council,06-Dec-21,51301687060,781.00,Redacted Personal Data,FOSTER PARENT,Adoption Allowances,Adoption Allowances,Adoption Allowances
Cambridgeshire County Council,06-Dec-21,51301687080,800.00,Redacted Personal Data,PARENT/GUARDIAN,Adoption Allowances,Adoption Allowances,Adoption Allowances
Cambridgeshire County Council,06-Dec-21,51301687081,800.00,Redacted Personal Data,PARENT/GUARDIAN,Adoption Allowances,Adoption Allowances,Adoption Allowances
Cambridgeshire County Council,06-Dec-21,51301687079,800.00,Redacted Personal Data,PARENT/GUARDIAN,Adoption Allowances,Adoption Allowances,Adoption Allowances
Cambridgeshire County Council,06-Dec-21,51301672526,804.00,S. P. LANDSCAPES & TREE CONTRACTORS  LTD,COMPANY,Buildings and Capital,Grounds Management Service - Client,Tree Maintenance
Cambridgeshire County Council,06-Dec-21,51301675115,804.88,BAR HILL PARISH COUNCIL,OTHER PUBLIC BODIES,Highways Maintenance,Highways Maintenance - Works,Village Maintenance
Cambridgeshire County Council,06-Dec-21,51301686638,812.60,Redacted Personal Data,PARENT/GUARDIAN,Adoption Allowances,Adoption Allowances,Adoption Allowances
Cambridgeshire County Council,06-Dec-21,51301686674,817.70,Redacted Personal Data,FOSTER PARENT,Adoption Allowances,Adoption Allowances,Adoption Allowances
Cambridgeshire County Council,06-Dec-21,51301686789,820.00,Redacted Personal Data,FOSTER PARENT,Fostering,FCP allowances,Adoption Allowances
Cambridgeshire County Council,06-Dec-21,51301686808,820.00,Redacted Personal Data,PARENT/GUARDIAN,Fostering,FCP allowances,Adoption Allowances
Cambridgeshire County Council,06-Dec-21,51301686827,820.00,Redacted Personal Data,FOSTER PARENT,Fostering,FCP allowances,Adoption Allowances
Cambridgeshire County Council,06-Dec-21,51301686828,820.00,Redacted Personal Data,FOSTER PARENT,Fostering,FCP allowances,Adoption Allowances
Cambridgeshire County Council,06-Dec-21,51301686680,820.00,Redacted Personal Data,FOSTER PARENT,Fostering,FCP allowances,Adoption Allowances
Cambridgeshire County Council,06-Dec-21,51301686477,820.00,Redacted Personal Data,FOSTER PARENT,Fostering,FCP allowances,Adoption Allowances
Cambridgeshire County Council,06-Dec-21,51301686511,820.00,Redacted Personal Data,FOSTER PARENT,Fostering,FCP allowances,Adoption Allowances
Cambridgeshire County Council,06-Dec-21,51301686763,820.00,Redacted Personal Data,FOSTER PARENT,Fostering,FCP allowances,Adoption Allowances
Cambridgeshire County Council,06-Dec-21,51301686657,820.00,Redacted Personal Data,FOSTER PARENT,Fostering,FCP allowances,Adoption Allowances
Cambridgeshire County Council,06-Dec-21,51301686682,820.00,Redacted Personal Data,FOSTER PARENT,Fostering,FCP allowances,Adoption Allowances
Cambridgeshire County Council,06-Dec-21,51301686881,820.00,Redacted Personal Data,FOSTER PARENT,Fostering,FCP allowances,Adoption Allowances
Cambridgeshire County Council,06-Dec-21,51301686681,820.00,Redacted Personal Data,FOSTER PARENT,Fostering,FCP allowances,Adoption Allowances
Cambridgeshire County Council,06-Dec-21,51301686779,820.00,Redacted Personal Data,FOSTER PARENT,Fostering,FCP allowances,Adoption Allowances
Cambridgeshire County Council,06-Dec-21,51301686751,820.00,Redacted Personal Data,FOSTER PARENT,Fostering,FCP allowances,Adoption Allowances
Cambridgeshire County Council,06-Dec-21,51301686752,820.00,Redacted Personal Data,FOSTER PARENT,Fostering,FCP allowances,Adoption Allowances
Cambridgeshire County Council,06-Dec-21,51301686222,820.00,Redacted Personal Data,INDIVIDUAL,Fostering,FCP allowances,Adoption Allowances
Cambridgeshire County Council,06-Dec-21,51301686710,820.00,Redacted Personal Data,FOSTER PARENT,Fostering,FCP allowances,Adoption Allowances
Cambridgeshire County Council,06-Dec-21,51301686800,820.00,Redacted Personal Data,INDIVIDUAL,Fostering,FCP allowances,Adoption Allowances
Cambridgeshire County Council,06-Dec-21,51301686891,820.00,Redacted Personal Data,FOSTER PARENT,Fostering,FCP allowances,Adoption Allowances
Cambridgeshire County Council,06-Dec-21,51301686817,820.00,Redacted Personal Data,FOSTER PARENT,Fostering,FCP allowances,Adoption Allowances
Cambridgeshire County Council,06-Dec-21,51301686775,820.00,Redacted Personal Data,FOSTER PARENT,Fostering,FCP allowances,Adoption Allowances
Cambridgeshire County Council,06-Dec-21,51301686647,820.00,Redacted Personal Data,PARENT/GUARDIAN,Fostering,FCP allowances,Adoption Allowances
Cambridgeshire County Council,06-Dec-21,51301686877,820.00,Redacted Personal Data,FOSTER PARENT,Fostering,FCP allowances,Adoption Allowances
Cambridgeshire County Council,06-Dec-21,51301686876,820.00,Redacted Personal Data,FOSTER PARENT,Fostering,FCP allowances,Adoption Allowances
Cambridgeshire County Council,06-Dec-21,51301673630,822.70,Braunability UK Ltd,TRADE SUPPLIER,Home to School Transport - Special,Home to School Transport Special - Central Costs,Specialist Equipment For Service Delivery
Cambridgeshire County Council,06-Dec-21,51301672968,827.32,R McLester Builders Ltd,COMPANY,Histon Additional Places,Histon Additional Places,"New Construction, Conversion and Renovation"
Cambridgeshire County Council,06-Dec-21,51301686777,860.00,Redacted Personal Data,FOSTER PARENT,Fostering,FCP allowances,Adoption Allowances
Cambridgeshire County Council,06-Dec-21,51301686880,860.00,Redacted Personal Data,FOSTER PARENT,Fostering,FCP allowances,Adoption Allowances
Cambridgeshire County Council,06-Dec-21,51301686489,860.00,Redacted Personal Data,INDIVIDUAL,Fostering,FCP allowances,Adoption Allowances
Cambridgeshire County Council,06-Dec-21,51301686490,860.00,Redacted Personal Data,INDIVIDUAL,Fostering,FCP allowances,Adoption Allowances
Cambridgeshire County Council,06-Dec-21,51301686756,860.00,Redacted Personal Data,FOSTER PARENT,Fostering,FCP allowances,Adoption Allowances
Cambridgeshire County Council,06-Dec-21,51301686757,860.00,Redacted Personal Data,FOSTER PARENT,Fostering,FCP allowances,Adoption Allowances
Cambridgeshire County Council,06-Dec-21,51301686683,860.00,Redacted Personal Data,FOSTER PARENT,Fostering,FCP allowances,Adoption Allowances
Cambridgeshire County Council,06-Dec-21,51301686845,860.00,Redacted Personal Data,FOSTER PARENT,Fostering,FCP allowances,Adoption Allowances
Cambridgeshire County Council,06-Dec-21,51301686656,860.00,Redacted Personal Data,FOSTER PARENT,Fostering,FCP allowances,Adoption Allowances
Cambridgeshire County Council,06-Dec-21,51301686741,860.00,Redacted Personal Data,FOSTER PARENT,Fostering,FCP allowances,Adoption Allowances
Cambridgeshire County Council,06-Dec-21,51301686709,860.00,Redacted Personal Data,FOSTER PARENT,Fostering,FCP allowances,Adoption Allowances
Cambridgeshire County Council,06-Dec-21,51301686707,860.00,Redacted Personal Data,FOSTER PARENT,Fostering,FCP allowances,Adoption Allowances
Cambridgeshire County Council,06-Dec-21,51301686692,860.00,Redacted Personal Data,FOSTER PARENT,Fostering,FCP allowances,Adoption Allowances
Cambridgeshire County Council,06-Dec-21,51301686720,860.00,Redacted Personal Data,PARENT/GUARDIAN,Fostering,FCP allowances,Adoption Allowances
Cambridgeshire County Council,06-Dec-21,51301686721,860.00,Redacted Personal Data,PARENT/GUARDIAN,Fostering,FCP allowances,Adoption Allowances
Cambridgeshire County Council,06-Dec-21,51301686654,860.00,Redacted Personal Data,PARENT/GUARDIAN,Fostering,FCP allowances,Adoption Allowances
Cambridgeshire County Council,06-Dec-21,51301686759,860.00,Redacted Personal Data,FOSTER PARENT,Fostering,FCP allowances,Adoption Allowances
Cambridgeshire County Council,06-Dec-21,51301686672,860.00,Redacted Personal Data,FOSTER PARENT,Fostering,FCP allowances,Adoption Allowances
Cambridgeshire County Council,06-Dec-21,51301686788,860.00,Redacted Personal Data,FOSTER PARENT,Fostering,FCP allowances,Adoption Allowances
Cambridgeshire County Council,06-Dec-21,51301686717,860.00,Redacted Personal Data,FOSTER PARENT,Fostering,FCP allowances,Adoption Allowances
Cambridgeshire County Council,06-Dec-21,51301686816,860.00,Redacted Personal Data,FOSTER PARENT,Fostering,FCP allowances,Adoption Allowances
Cambridgeshire County Council,06-Dec-21,51301686785,860.00,Redacted Personal Data,FOSTER PARENT,Fostering,FCP allowances,Adoption Allowances
Cambridgeshire County Council,06-Dec-21,51301686784,860.00,Redacted Personal Data,FOSTER PARENT,Fostering,FCP allowances,Adoption Allowances
Cambridgeshire County Council,06-Dec-21,51301686787,860.00,Redacted Personal Data,FOSTER PARENT,Fostering,FCP allowances,Adoption Allowances
Cambridgeshire County Council,06-Dec-21,51301686790,860.00,Redacted Personal Data,PARENT/GUARDIAN,Fostering,FCP allowances,Adoption Allowances
Cambridgeshire County Council,06-Dec-21,51301686629,860.00,Redacted Personal Data,FOSTER PARENT,Fostering,FCP allowances,Adoption Allowances
Cambridgeshire County Council,06-Dec-21,51301686630,860.00,Redacted Personal Data,FOSTER PARENT,Fostering,FCP allowances,Adoption Allowances
Cambridgeshire County Council,06-Dec-21,51301686761,860.00,Redacted Personal Data,FOSTER PARENT,Fostering,FCP allowances,Adoption Allowances
Cambridgeshire County Council,06-Dec-21,51301686769,860.00,Redacted Personal Data,FOSTER PARENT,Fostering,FCP allowances,Adoption Allowances
Cambridgeshire County Council,06-Dec-21,51301686863,860.00,Redacted Personal Data,FOSTER PARENT,Fostering,FCP allowances,Adoption Allowances
Cambridgeshire County Council,06-Dec-21,51301686870,860.00,Redacted Personal Data,PARENT/GUARDIAN,Fostering,FCP allowances,Adoption Allowances
Cambridgeshire County Council,06-Dec-21,51301686738,860.00,Redacted Personal Data,FOSTER PARENT,Fostering,FCP allowances,Adoption Allowances
Cambridgeshire County Council,06-Dec-21,51301686857,860.00,Redacted Personal Data,FOSTER PARENT,Fostering,FCP allowances,Adoption Allowances
Cambridgeshire County Council,06-Dec-21,51301686748,860.00,Redacted Personal Data,FOSTER PARENT,Fostering,FCP allowances,Adoption Allowances
Cambridgeshire County Council,06-Dec-21,51301686747,860.00,Redacted Personal Data,FOSTER PARENT,Fostering,FCP allowances,Adoption Allowances
Cambridgeshire County Council,06-Dec-21,51301686726,860.00,Redacted Personal Data,FOSTER PARENT,Fostering,FCP allowances,Adoption Allowances
Cambridgeshire County Council,06-Dec-21,51301686728,860.00,Redacted Personal Data,FOSTER PARENT,Fostering,FCP allowances,Adoption Allowances
Cambridgeshire County Council,06-Dec-21,51301686805,860.00,Redacted Personal Data,FOSTER PARENT,Fostering,FCP allowances,Adoption Allowances
Cambridgeshire County Council,06-Dec-21,51301686806,860.00,Redacted Personal Data,FOSTER PARENT,Fostering,FCP allowances,Adoption Allowances
Cambridgeshire County Council,06-Dec-21,51301686576,860.00,Redacted Personal Data,PARENT/GUARDIAN,Fostering,FCP allowances,Adoption Allowances
Cambridgeshire County Council,06-Dec-21,51301686844,860.00,Redacted Personal Data,FOSTER PARENT,Fostering,FCP allowances,Adoption Allowances
Cambridgeshire County Council,06-Dec-21,51301686661,860.00,Redacted Personal Data,FOSTER PARENT,Fostering,FCP allowances,Adoption Allowances
Cambridgeshire County Council,06-Dec-21,51301686660,860.00,Redacted Personal Data,FOSTER PARENT,Fostering,FCP allowances,Adoption Allowances
Cambridgeshire County Council,06-Dec-21,51301687051,860.00,Redacted Personal Data,INDIVIDUAL,Fostering,FCP allowances,Adoption Allowances
Cambridgeshire County Council,06-Dec-21,51301687052,860.00,Redacted Personal Data,INDIVIDUAL,Fostering,FCP allowances,Adoption Allowances
Cambridgeshire County Council,06-Dec-21,51301686698,860.00,Redacted Personal Data,FOSTER PARENT,Fostering,FCP allowances,Adoption Allowances
Cambridgeshire County Council,06-Dec-21,51301686700,860.00,Redacted Personal Data,FOSTER PARENT,Fostering,FCP allowances,Adoption Allowances
Cambridgeshire County Council,06-Dec-21,51301686815,860.00,Redacted Personal Data,PARENT/GUARDIAN,Fostering,FCP allowances,Adoption Allowances
Cambridgeshire County Council,06-Dec-21,51301686669,860.00,Redacted Personal Data,FOSTER PARENT,Fostering,FCP allowances,Adoption Allowances
Cambridgeshire County Council,06-Dec-21,51301686668,860.00,Redacted Personal Data,FOSTER PARENT,Fostering,FCP allowances,Adoption Allowances
Cambridgeshire County Council,06-Dec-21,51301686822,860.00,Redacted Personal Data,FOSTER PARENT,Fostering,FCP allowances,Adoption Allowances
Cambridgeshire County Council,06-Dec-21,51301686820,860.00,Redacted Personal Data,FOSTER PARENT,Fostering,FCP allowances,Adoption Allowances
Cambridgeshire County Council,06-Dec-21,51301686649,860.00,Redacted Personal Data,PARENT/GUARDIAN,Fostering,FCP allowances,Adoption Allowances
Cambridgeshire County Council,06-Dec-21,51301686650,860.00,Redacted Personal Data,PARENT/GUARDIAN,Fostering,FCP allowances,Adoption Allowances
Cambridgeshire County Council,06-Dec-21,51301686990,860.00,Redacted Personal Data,PARENT/GUARDIAN,Fostering,FCP allowances,Adoption Allowances
Cambridgeshire County Council,06-Dec-21,51301686989,860.00,Redacted Personal Data,PARENT/GUARDIAN,Fostering,FCP allowances,Adoption Allowances
Cambridgeshire County Council,06-Dec-21,51301686991,860.00,Redacted Personal Data,PARENT/GUARDIAN,Fostering,FCP allowances,Adoption Allowances
Cambridgeshire County Council,06-Dec-21,51301686874,860.00,Redacted Personal Data,PARENT/GUARDIAN,Fostering,FCP allowances,Adoption Allowances
Cambridgeshire County Council,06-Dec-21,51301686750,860.00,Redacted Personal Data,FOSTER PARENT,Fostering,FCP allowances,Adoption Allowances
Cambridgeshire County Council,06-Dec-21,51301686749,860.00,Redacted Personal Data,FOSTER PARENT,Fostering,FCP allowances,Adoption Allowances
Cambridgeshire County Council,06-Dec-21,51301687007,860.00,Redacted Personal Data,FOSTER PARENT,Fostering,FCP allowances,Adoption Allowances
Cambridgeshire County Council,06-Dec-21,51301686856,860.00,Redacted Personal Data,FOSTER PARENT,Fostering,FCP allowances,Adoption Allowances
Cambridgeshire County Council,06-Dec-21,51301686875,860.00,Redacted Personal Data,FOSTER PARENT,Fostering,FCP allowances,Adoption Allowances
Cambridgeshire County Council,06-Dec-21,51301686673,860.00,Redacted Personal Data,FOSTER PARENT,Unaccompanied Asylum Seeking Children,Unaccompanied Asylum Seeking Children <18,Adoption Allowances
Cambridgeshire County Council,06-Dec-21,51301686181,914.96,Redacted Personal Data,FOSTER PARENT,Adoption Allowances,Adoption Allowances,Adoption Allowances
Cambridgeshire County Council,06-Dec-21,51301674764,921.03,ENTERPRISE FLEX-E-RENT,TRADE SUPPLIER,Corporate Offices,Pool Cars,Leased Vehicle Costs
Cambridgeshire County Council,06-Dec-21,51301686831,946.12,Redacted Personal Data,FOSTER PARENT,Fostering,FCP allowances,Enhanced Payments
Cambridgeshire County Council,06-Dec-21,51301686634,946.12,Redacted Personal Data,FOSTER PARENT,Fostering,FCP allowances,Enhanced Payments
Cambridgeshire County Council,06-Dec-21,51301686223,946.12,Redacted Personal Data,FOSTER PARENT,Fostering,FCP allowances,Enhanced Payments
Cambridgeshire County Council,06-Dec-21,51301686110,960.00,WHEATFIELDS PRIMARY SCHOOL,EDUCATION,Early Years,DFE EY Professional Development Fund 2019-22,Care & Ed Childcare Settings
Cambridgeshire County Council,06-Dec-21,51301686111,960.00,WHEATFIELDS PRIMARY SCHOOL,EDUCATION,Early Years,DFE EY Professional Development Fund 2019-22,Care & Ed Childcare Settings
Cambridgeshire County Council,06-Dec-21,51301674935,969.87,THE STUKELEYS PARISH COUNCIL,OTHER PUBLIC BODIES,Highways Maintenance,Highways Maintenance - Works,Village Maintenance
Cambridgeshire County Council,06-Dec-21,51301687158,972.50,Dr Joan Moore,TRADE SUPPLIER,Regional Adoption Agency,Adoption Support Fund,Professional Fees and Hired Services
Cambridgeshire County Council,06-Dec-21,51301687138,"1,003.04",Pathfinder Legal Services Limited,TRADE SUPPLIER,School Organisation and Planning,PPOS - Admissions Service,External Legal Fees
Cambridgeshire County Council,06-Dec-21,51301687078,"1,003.76",Redacted Personal Data,INDIVIDUAL,Adoption Allowances,Adoption Allowances,Adoption Allowances
Cambridgeshire County Council,06-Dec-21,51301672471,"1,010.88",POSTURITE (UK) LTD,TRADE SUPPLIER,SEND Specialist Services,Statutory Assessment Team - North,Staff health & welfare Costs
Cambridgeshire County Council,06-Dec-21,51301686087,"1,015.97",MOTHER GOOSE CORNER NURSERY,NURSERY,Nursery Schools,Early Years - Funded 3s/4s,Care & Ed Childcare Settings
Cambridgeshire County Council,06-Dec-21,51301675044,"1,050.00",Psychology Direct Ltd,EDUCATION,SEND Specialist Services - Education Psychology,SEND Specialist Services - Education Psychology,Professional Fees and Hired Services
Cambridgeshire County Council,06-Dec-21,51301672979,"1,056.00",WATERMAN ASPEN LTD,TRADE SUPPLIER,PD - General,Major Infrastructure Delivery,Agency Staff
Cambridgeshire County Council,06-Dec-21,51301686911,"1,078.76",Redacted Personal Data,FOSTER PARENT,Adoption Allowances,Adoption Allowances,Adoption Allowances
Cambridgeshire County Council,06-Dec-21,51301687121,"1,080.79",WISBECH COMMUNITY DEVELOPMENT TRUST (THE OASIS CENTRE),TRUST (OTHER),Corporate Offices,Oasis Centre,Service Charges
Cambridgeshire County Council,06-Dec-21,51301686929,"1,132.18",Redacted Personal Data,FOSTER PARENT,Adoption Allowances,Adoption Allowances,Adoption Allowances
Cambridgeshire County Council,06-Dec-21,51301686083,"1,161.00",DOMINO NURSERY,NURSERY,Nursery Schools,Early Years - Funded 3s/4s,Care & Ed Childcare Settings
Cambridgeshire County Council,06-Dec-21,51301686443,"1,170.00",Redacted Personal Data,INDIVIDUAL,Adoption Allowances,Adoption Allowances,Adoption Allowances
Cambridgeshire County Council,06-Dec-21,51301684549,"1,206.72",RANDSTAD EDUCATION LIMITED,EDUCATION,Schools - Secondaries,Pilgrim Pru,Agency Staff
Cambridgeshire County Council,06-Dec-21,51301672972,"1,209.60",WATERMAN ASPEN LTD,TRADE SUPPLIER,PD - General,Major Infrastructure Delivery,Agency Staff
Cambridgeshire County Council,06-Dec-21,51301686095,"1,268.19",AFA Fostering,CARE ESTABLISHMENT,LAC Placements,Placements - independent fostering,Agency Placements - Out of  County
Cambridgeshire County Council,06-Dec-21,51301677407,"1,333.33",CAMBIAN WHINFELL SCHOOL,EDUCATION,SEN Placements,Placements - Education,Independent School Placements
Cambridgeshire County Council,06-Dec-21,51301686069,"1,382.40",FRESH START IN EDUCATION,CARE ESTABLISHMENT,Cambridgeshire Alternative Education Service (SchFin),CAES - Salaries,Professional Fees and Hired Services
Cambridgeshire County Council,06-Dec-21,51301686071,"1,382.40",FRESH START IN EDUCATION,CARE ESTABLISHMENT,Cambridgeshire Alternative Education Service (SchFin),CAES - Salaries,Professional Fees and Hired Services
Cambridgeshire County Council,06-Dec-21,51301675587,"1,404.90",DITTON LODGE COMMUNITY NURSERY,EDUCATION,SEND High Needs Top Up,SEND Specialist Services-High needs top-up-Early Years,Independent School Placements
Cambridgeshire County Council,06-Dec-21,51301686086,"1,411.20",MELBOURN PLAYGROUP AND OUT OF SCHOOL CLUB,NURSERY,Nursery Schools,Early Years - Funded 3s/4s,Care & Ed Childcare Settings
Cambridgeshire County Council,06-Dec-21,51301672581,"1,414.84",TIDEY ELECTRICAL LTD,TRADE SUPPLIER,Connecting Cambridgeshire,Connecting Cambridgeshire,Professional Fees and Hired Services
Cambridgeshire County Council,06-Dec-21,51301672973,"1,440.00",WATERMAN ASPEN LTD,TRADE SUPPLIER,PD - General,Major Infrastructure Delivery,Agency Staff
Cambridgeshire County Council,06-Dec-21,51301673746,"1,451.23",MRC MODULAR LTD,SOLETRADER,Temporary Accommodation,Temporary Accommodation,Mobile - Buildings
Cambridgeshire County Council,06-Dec-21,51301687093,"1,468.40",Redacted Personal Data,INDIVIDUAL,Children's Disability Direct Payments,CSC Direct Payments,Direct Payments
Cambridgeshire County Council,06-Dec-21,51301685902,"1,527.43",PCH Integration Services Ltd.,CARE ESTABLISHMENT,Unaccompanied Asylum Seeking Children,Unaccompanied Asylum Seeking Children <18,Asylum Seekers
Cambridgeshire County Council,06-Dec-21,51301685806,"1,566.00",Step Ahead Services Ltd,COMPANY,Unaccompanied Asylum Seeking Children,Unaccompanied Asylum Seeking Children >18 Leaving Care,Living Spport Grants - Financial Assistance 18+
Cambridgeshire County Council,06-Dec-21,51301685944,"1,628.57",PSA Care LTD,COMPANY,Unaccompanied Asylum Seeking Children,Unaccompanied Asylum Seeking Children >18 Leaving Care,Living Spport Grants - Financial Assistance 18+
Cambridgeshire County Council,06-Dec-21,51301685949,"1,628.57",PSA Care LTD,COMPANY,Unaccompanied Asylum Seeking Children,Unaccompanied Asylum Seeking Children >18 Leaving Care,Living Spport Grants - Financial Assistance 18+
Cambridgeshire County Council,06-Dec-21,51301686105,"1,650.00",BUTTONS & BOWS PRE-SCHOOL,NURSERY,EY - Workforce Development,Qualifications,Care & Ed Childcare Settings
Cambridgeshire County Council,06-Dec-21,51301686108,"1,650.00",UPWOOD SMALL TO TALL,NURSERY,EY - Workforce Development,Qualifications,Care & Ed Childcare Settings
Cambridgeshire County Council,06-Dec-21,51301686107,"1,650.00",MALTINGS DAY NURSERY,NURSERY,EY - Workforce Development,Qualifications,Care & Ed Childcare Settings
Cambridgeshire County Council,06-Dec-21,51301686103,"1,650.00",DITTON LODGE COMMUNITY NURSERY,EDUCATION,EY - Workforce Development,Qualifications,Care & Ed Childcare Settings
Cambridgeshire County Council,06-Dec-21,51301686104,"1,650.00",HAPPY BUNNIES,NURSERY,EY - Workforce Development,Qualifications,Care & Ed Childcare Settings
Cambridgeshire County Council,06-Dec-21,51301686109,"1,650.00",QUEENS COLLEGE NURSERY,NURSERY,EY - Workforce Development,Qualifications,Care & Ed Childcare Settings
Cambridgeshire County Council,06-Dec-21,51301686106,"1,650.00",CHILDREN'S MONTESSORI NURSERY,NURSERY,EY - Workforce Development,Qualifications,Care & Ed Childcare Settings
Cambridgeshire County Council,06-Dec-21,51301687113,"1,680.00",VM Enabling Transport Ltd,COMPANY,GCP - Cambridge South East (A1307),GCP - Cambridge South East (A1307),Construction - External Professional Fees
Cambridgeshire County Council,06-Dec-21,51301685946,"1,682.86",PSA Care LTD,COMPANY,Unaccompanied Asylum Seeking Children,Unaccompanied Asylum Seeking Children >18 Leaving Care,Living Spport Grants - Financial Assistance 18+
Cambridgeshire County Council,06-Dec-21,51301685951,"1,682.86",PSA Care LTD,COMPANY,Unaccompanied Asylum Seeking Children,Unaccompanied Asylum Seeking Children >18 Leaving Care,Living Spport Grants - Financial Assistance 18+
Cambridgeshire County Council,06-Dec-21,51301685948,"1,682.86",PSA Care LTD,COMPANY,Unaccompanied Asylum Seeking Children,Unaccompanied Asylum Seeking Children >18 Leaving Care,Living Spport Grants - Financial Assistance 18+
Cambridgeshire County Council,06-Dec-21,51301685942,"1,682.86",PSA Care LTD,COMPANY,Unaccompanied Asylum Seeking Children,Unaccompanied Asylum Seeking Children >18 Leaving Care,Living Spport Grants - Financial Assistance 18+
Cambridgeshire County Council,06-Dec-21,51301685968,"1,722.85",KEY2 FUTURES LTD,TRADE SUPPLIER,Unaccompanied Asylum Seeking Children,Unaccompanied Asylum Seeking Children >18 Leaving Care,Living Spport Grants - Financial Assistance 18+
Cambridgeshire County Council,06-Dec-21,51301686000,"1,722.85",KEY2 FUTURES LTD,TRADE SUPPLIER,Unaccompanied Asylum Seeking Children,Unaccompanied Asylum Seeking Children >18 Leaving Care,Living Spport Grants - Financial Assistance 18+
Cambridgeshire County Council,06-Dec-21,51301685985,"1,722.85",KEY2 FUTURES LTD,TRADE SUPPLIER,Unaccompanied Asylum Seeking Children,Unaccompanied Asylum Seeking Children >18 Leaving Care,Living Spport Grants - Financial Assistance 18+
Cambridgeshire County Council,06-Dec-21,51301685981,"1,722.85",KEY2 FUTURES LTD,TRADE SUPPLIER,Unaccompanied Asylum Seeking Children,Unaccompanied Asylum Seeking Children >18 Leaving Care,Living Spport Grants - Financial Assistance 18+
Cambridgeshire County Council,06-Dec-21,51301685998,"1,722.85",KEY2 FUTURES LTD,TRADE SUPPLIER,Unaccompanied Asylum Seeking Children,Unaccompanied Asylum Seeking Children >18 Leaving Care,Living Spport Grants - Financial Assistance 18+
Cambridgeshire County Council,06-Dec-21,51301685983,"1,722.85",KEY2 FUTURES LTD,TRADE SUPPLIER,Unaccompanied Asylum Seeking Children,Unaccompanied Asylum Seeking Children >18 Leaving Care,Living Spport Grants - Financial Assistance 18+
Cambridgeshire County Council,06-Dec-21,51301685989,"1,722.85",KEY2 FUTURES LTD,TRADE SUPPLIER,Unaccompanied Asylum Seeking Children,Unaccompanied Asylum Seeking Children >18 Leaving Care,Living Spport Grants - Financial Assistance 18+
Cambridgeshire County Council,06-Dec-21,51301686025,"1,722.85",KEY2 FUTURES LTD,TRADE SUPPLIER,Unaccompanied Asylum Seeking Children,Unaccompanied Asylum Seeking Children >18 Leaving Care,Living Spport Grants - Financial Assistance 18+
Cambridgeshire County Council,06-Dec-21,51301685966,"1,722.85",KEY2 FUTURES LTD,TRADE SUPPLIER,Unaccompanied Asylum Seeking Children,Unaccompanied Asylum Seeking Children >18 Leaving Care,Living Spport Grants - Financial Assistance 18+
Cambridgeshire County Council,06-Dec-21,51301686027,"1,722.85",KEY2 FUTURES LTD,TRADE SUPPLIER,Unaccompanied Asylum Seeking Children,Unaccompanied Asylum Seeking Children >18 Leaving Care,Living Spport Grants - Financial Assistance 18+
Cambridgeshire County Council,06-Dec-21,51301685977,"1,722.85",KEY2 FUTURES LTD,TRADE SUPPLIER,Unaccompanied Asylum Seeking Children,Unaccompanied Asylum Seeking Children >18 Leaving Care,Living Spport Grants - Financial Assistance 18+
Cambridgeshire County Council,06-Dec-21,51301686006,"1,722.85",KEY2 FUTURES LTD,TRADE SUPPLIER,Unaccompanied Asylum Seeking Children,Unaccompanied Asylum Seeking Children >18 Leaving Care,Living Spport Grants - Financial Assistance 18+
Cambridgeshire County Council,06-Dec-21,51301686021,"1,722.85",KEY2 FUTURES LTD,TRADE SUPPLIER,Unaccompanied Asylum Seeking Children,Unaccompanied Asylum Seeking Children >18 Leaving Care,Living Spport Grants - Financial Assistance 18+
Cambridgeshire County Council,06-Dec-21,51301686004,"1,722.85",KEY2 FUTURES LTD,TRADE SUPPLIER,Unaccompanied Asylum Seeking Children,Unaccompanied Asylum Seeking Children >18 Leaving Care,Living Spport Grants - Financial Assistance 18+
Cambridgeshire County Council,06-Dec-21,51301686029,"1,722.85",KEY2 FUTURES LTD,TRADE SUPPLIER,Unaccompanied Asylum Seeking Children,Unaccompanied Asylum Seeking Children >18 Leaving Care,Living Spport Grants - Financial Assistance 18+
Cambridgeshire County Council,06-Dec-21,51301686031,"1,722.85",KEY2 FUTURES LTD,TRADE SUPPLIER,Unaccompanied Asylum Seeking Children,Unaccompanied Asylum Seeking Children >18 Leaving Care,Living Spport Grants - Financial Assistance 18+
Cambridgeshire County Council,06-Dec-21,51301686011,"1,722.85",KEY2 FUTURES LTD,TRADE SUPPLIER,Unaccompanied Asylum Seeking Children,Unaccompanied Asylum Seeking Children >18 Leaving Care,Living Spport Grants - Financial Assistance 18+
Cambridgeshire County Council,06-Dec-21,51301685987,"1,722.85",KEY2 FUTURES LTD,TRADE SUPPLIER,Unaccompanied Asylum Seeking Children,Unaccompanied Asylum Seeking Children >18 Leaving Care,Living Spport Grants - Financial Assistance 18+
Cambridgeshire County Council,06-Dec-21,51301686002,"1,722.85",KEY2 FUTURES LTD,TRADE SUPPLIER,Unaccompanied Asylum Seeking Children,Unaccompanied Asylum Seeking Children >18 Leaving Care,Living Spport Grants - Financial Assistance 18+
Cambridgeshire County Council,06-Dec-21,51301686019,"1,722.85",KEY2 FUTURES LTD,TRADE SUPPLIER,Unaccompanied Asylum Seeking Children,Unaccompanied Asylum Seeking Children >18 Leaving Care,Living Spport Grants - Financial Assistance 18+
Cambridgeshire County Council,06-Dec-21,51301686023,"1,722.85",KEY2 FUTURES LTD,TRADE SUPPLIER,Unaccompanied Asylum Seeking Children,Unaccompanied Asylum Seeking Children >18 Leaving Care,Living Spport Grants - Financial Assistance 18+
Cambridgeshire County Council,06-Dec-21,51301685994,"1,722.85",KEY2 FUTURES LTD,TRADE SUPPLIER,Unaccompanied Asylum Seeking Children,Unaccompanied Asylum Seeking Children >18 Leaving Care,Living Spport Grants - Financial Assistance 18+
Cambridgeshire County Council,06-Dec-21,51301685979,"1,722.85",KEY2 FUTURES LTD,TRADE SUPPLIER,Unaccompanied Asylum Seeking Children,Unaccompanied Asylum Seeking Children >18 Leaving Care,Living Spport Grants - Financial Assistance 18+
Cambridgeshire County Council,06-Dec-21,51301685991,"1,722.85",KEY2 FUTURES LTD,TRADE SUPPLIER,Unaccompanied Asylum Seeking Children,Unaccompanied Asylum Seeking Children >18 Leaving Care,Living Spport Grants - Financial Assistance 18+
Cambridgeshire County Council,06-Dec-21,51301686009,"1,722.96",KEY2 FUTURES LTD,TRADE SUPPLIER,Unaccompanied Asylum Seeking Children,Unaccompanied Asylum Seeking Children >18 Leaving Care,Living Spport Grants - Financial Assistance 18+
Cambridgeshire County Council,06-Dec-21,51301685992,"1,722.96",KEY2 FUTURES LTD,TRADE SUPPLIER,Unaccompanied Asylum Seeking Children,Unaccompanied Asylum Seeking Children >18 Leaving Care,Living Spport Grants - Financial Assistance 18+
Cambridgeshire County Council,06-Dec-21,51301687112,"1,757.06",VOYAGE (LICHFIELD),CARE ESTABLISHMENT,LD - South Locality - Cost of Care,LD - South Cambs - Care,Service User Transport
Cambridgeshire County Council,06-Dec-21,51301672974,"1,774.08",WATERMAN ASPEN LTD,TRADE SUPPLIER,PD - General,Major Infrastructure Delivery,Agency Staff
Cambridgeshire County Council,06-Dec-21,51301672625,"1,800.00",FOURFIELDS COMMUNITY PRIMARY SCHOOL,EDUCATION,SIS Head of Service,SIS Staff,Professional Fees and Hired Services
Cambridgeshire County Council,06-Dec-21,51301675412,"1,800.00",ROLANDO UGOLINI,TRADE SUPPLIER,GCP - Smart Cambridge,GCP - Smart Cambridge,Professional Fees and Hired Services
Cambridgeshire County Council,06-Dec-21,51301673747,"1,814.04",MRC MODULAR LTD,SOLETRADER,Temporary Accommodation,Temporary Accommodation,Mobile - Buildings
Cambridgeshire County Council,06-Dec-21,51301672969,"1,920.00",WATERMAN ASPEN LTD,TRADE SUPPLIER,Highways Development Management,Highways Development Management,Professional Fees and Hired Services
Cambridgeshire County Council,06-Dec-21,51301686008,"1,995.43",KEY2 FUTURES LTD,TRADE SUPPLIER,Unaccompanied Asylum Seeking Children,Unaccompanied Asylum Seeking Children >18 Leaving Care,Living Spport Grants - Financial Assistance 18+
Cambridgeshire County Council,06-Dec-21,51301687159,"2,000.00",Redacted Personal Data,INDIVIDUAL,Children's Disability Direct Payments,CSC Direct Payments,Direct Payments
Cambridgeshire County Council,06-Dec-21,51301683391,"2,107.31",G & S HUTCHINSON LTD,COMPANY,"School Condition, Maintenance & Suitability","School Condition, Maintenance & Suitability","New Construction, Conversion and Renovation"
Cambridgeshire County Council,06-Dec-21,51301685928,"2,121.43",PCH Integration Services Ltd.,CARE ESTABLISHMENT,Unaccompanied Asylum Seeking Children,Unaccompanied Asylum Seeking Children <18,Asylum Seekers
Cambridgeshire County Council,06-Dec-21,51301685938,"2,121.43",PCH Integration Services Ltd.,CARE ESTABLISHMENT,Unaccompanied Asylum Seeking Children,Unaccompanied Asylum Seeking Children <18,Asylum Seekers
Cambridgeshire County Council,06-Dec-21,51301685934,"2,121.43",PCH Integration Services Ltd.,CARE ESTABLISHMENT,Unaccompanied Asylum Seeking Children,Unaccompanied Asylum Seeking Children <18,Asylum Seekers
Cambridgeshire County Council,06-Dec-21,51301685896,"2,121.43",PCH Integration Services Ltd.,CARE ESTABLISHMENT,Unaccompanied Asylum Seeking Children,Unaccompanied Asylum Seeking Children <18,Asylum Seekers
Cambridgeshire County Council,06-Dec-21,51301685940,"2,121.43",PCH Integration Services Ltd.,CARE ESTABLISHMENT,Unaccompanied Asylum Seeking Children,Unaccompanied Asylum Seeking Children <18,Asylum Seekers
Cambridgeshire County Council,06-Dec-21,51301685936,"2,121.43",PCH Integration Services Ltd.,CARE ESTABLISHMENT,Unaccompanied Asylum Seeking Children,Unaccompanied Asylum Seeking Children <18,Asylum Seekers
Cambridgeshire County Council,06-Dec-21,51301685924,"2,121.43",PCH Integration Services Ltd.,CARE ESTABLISHMENT,Unaccompanied Asylum Seeking Children,Unaccompanied Asylum Seeking Children <18,Asylum Seekers
Cambridgeshire County Council,06-Dec-21,51301685898,"2,121.43",PCH Integration Services Ltd.,CARE ESTABLISHMENT,Unaccompanied Asylum Seeking Children,Unaccompanied Asylum Seeking Children <18,Asylum Seekers
Cambridgeshire County Council,06-Dec-21,51301685900,"2,121.43",PCH Integration Services Ltd.,CARE ESTABLISHMENT,Unaccompanied Asylum Seeking Children,Unaccompanied Asylum Seeking Children <18,Asylum Seekers
Cambridgeshire County Council,06-Dec-21,51301685926,"2,121.43",PCH Integration Services Ltd.,CARE ESTABLISHMENT,Unaccompanied Asylum Seeking Children,Unaccompanied Asylum Seeking Children <18,Asylum Seekers
Cambridgeshire County Council,06-Dec-21,51301685932,"2,121.43",PCH Integration Services Ltd.,CARE ESTABLISHMENT,Unaccompanied Asylum Seeking Children,Unaccompanied Asylum Seeking Children <18,Asylum Seekers
Cambridgeshire County Council,06-Dec-21,51301685930,"2,121.43",PCH Integration Services Ltd.,CARE ESTABLISHMENT,Unaccompanied Asylum Seeking Children,Unaccompanied Asylum Seeking Children <18,Asylum Seekers
Cambridgeshire County Council,06-Dec-21,51301677354,"2,150.00",The Centre for FASD Limited,TRADE SUPPLIER,Regional Adoption Agency,Adoption Support Fund,Professional Fees and Hired Services
Cambridgeshire County Council,06-Dec-21,51301673614,"2,160.00",COUNTRY GROUNDS MAINTENANCE LTD,COMPANY,Buildings and Capital,Grounds Management Service - Client,Tree Maintenance
Cambridgeshire County Council,06-Dec-21,51301675376,"2,172.34",Low Carbon Contracts Company Ltd,COMPANY,County Farms,"Triangle Solar Farm, Soham",Electricity
Cambridgeshire County Council,06-Dec-21,51301687186,"2,222.53",GPDQ Limited,COMPANY,PH Public Health Directorate,Public Health - COVID-19,Professional Fees and Hired Services
Cambridgeshire County Council,06-Dec-21,51301674713,"2,225.38",THE RECRUITMENT AGENCY LIMITED,TRADE SUPPLIER,Grafham Water,Grafham Water Centre,Agency Staff
Cambridgeshire County Council,06-Dec-21,51301674583,"2,258.52",LINTON CATHODEON COMMUNITY TRUST,CHARITY,Corporate Offices,Linton Library,Service Charges
Cambridgeshire County Council,06-Dec-21,51301685954,"2,357.14",BACA,CHARITY,Unaccompanied Asylum Seeking Children,Unaccompanied Asylum Seeking Children <18,Asylum Seekers
Cambridgeshire County Council,06-Dec-21,51301675377,"2,360.38",Low Carbon Contracts Company Ltd,COMPANY,County Farms,"Triangle Solar Farm, Soham",Electricity
Cambridgeshire County Council,06-Dec-21,51301685906,"2,376.00",PCH Integration Services Ltd.,CARE ESTABLISHMENT,Unaccompanied Asylum Seeking Children,Unaccompanied Asylum Seeking Children <18,Asylum Seekers
Cambridgeshire County Council,06-Dec-21,51301686015,"2,442.85",KEY2 FUTURES LTD,TRADE SUPPLIER,Unaccompanied Asylum Seeking Children,Unaccompanied Asylum Seeking Children <18,Asylum Seekers
Cambridgeshire County Council,06-Dec-21,51301686013,"2,442.85",KEY2 FUTURES LTD,TRADE SUPPLIER,Unaccompanied Asylum Seeking Children,Unaccompanied Asylum Seeking Children <18,Asylum Seekers
Cambridgeshire County Council,06-Dec-21,51301675203,"2,467.20",Venue Audio Visual,COMPANY,Democratic Services and Member Services,Democratic and Member Services,Equipment and Tools
Cambridgeshire County Council,06-Dec-21,51301685788,"2,484.00",ALAN FLETCHER MEDICAL REPORTS LTD,OTHER PUBLIC BODIES,Coroners,Coroners General,Court Costs
Cambridgeshire County Council,06-Dec-21,51301685910,"2,545.72",PCH Integration Services Ltd.,CARE ESTABLISHMENT,Unaccompanied Asylum Seeking Children,Unaccompanied Asylum Seeking Children <18,Asylum Seekers
Cambridgeshire County Council,06-Dec-21,51301685920,"2,545.72",PCH Integration Services Ltd.,CARE ESTABLISHMENT,Unaccompanied Asylum Seeking Children,Unaccompanied Asylum Seeking Children <18,Asylum Seekers
Cambridgeshire County Council,06-Dec-21,51301685914,"2,545.72",PCH Integration Services Ltd.,CARE ESTABLISHMENT,Unaccompanied Asylum Seeking Children,Unaccompanied Asylum Seeking Children <18,Asylum Seekers
Cambridgeshire County Council,06-Dec-21,51301685958,"2,550.85",Crown Social Care Ltd,CARE ESTABLISHMENT,Unaccompanied Asylum Seeking Children,Unaccompanied Asylum Seeking Children >18 Leaving Care,Living Spport Grants - Financial Assistance 18+
Cambridgeshire County Council,06-Dec-21,51301685893,"2,572.37",NEXUS FOSTERING LTD,CARE ESTABLISHMENT,LAC Placements,Placements - independent fostering,Agency Placements - In County
Cambridgeshire County Council,06-Dec-21,51301672966,"2,603.52",WSP UK LTD T/A WSP INTEGRATED BUILDING SERVICES,TRADE SUPPLIER,MID - A14,MID - A14,Construction - External Professional Fees
Cambridgeshire County Council,06-Dec-21,51301685912,"2,630.57",PCH Integration Services Ltd.,CARE ESTABLISHMENT,Unaccompanied Asylum Seeking Children,Unaccompanied Asylum Seeking Children <18,Asylum Seekers
Cambridgeshire County Council,06-Dec-21,51301685916,"2,630.57",PCH Integration Services Ltd.,CARE ESTABLISHMENT,Unaccompanied Asylum Seeking Children,Unaccompanied Asylum Seeking Children <18,Asylum Seekers
Cambridgeshire County Council,06-Dec-21,51301685908,"2,630.57",PCH Integration Services Ltd.,CARE ESTABLISHMENT,Unaccompanied Asylum Seeking Children,Unaccompanied Asylum Seeking Children <18,Asylum Seekers
Cambridgeshire County Council,06-Dec-21,51301685904,"2,630.57",PCH Integration Services Ltd.,CARE ESTABLISHMENT,Unaccompanied Asylum Seeking Children,Unaccompanied Asylum Seeking Children <18,Asylum Seekers
Cambridgeshire County Council,06-Dec-21,51301685922,"2,630.57",PCH Integration Services Ltd.,CARE ESTABLISHMENT,Unaccompanied Asylum Seeking Children,Unaccompanied Asylum Seeking Children <18,Asylum Seekers
Cambridgeshire County Council,06-Dec-21,51301685918,"2,630.57",PCH Integration Services Ltd.,CARE ESTABLISHMENT,Unaccompanied Asylum Seeking Children,Unaccompanied Asylum Seeking Children <18,Asylum Seekers
Cambridgeshire County Council,06-Dec-21,51301685835,"2,702.70",THE ADOLESCENT & CHILDRENS TRUST (TACT) UK LTD,TRUST (OTHER),LAC Placements,Placements - independent fostering,Agency Placements - In County
Cambridgeshire County Council,06-Dec-21,51301685836,"2,702.70",THE ADOLESCENT & CHILDRENS TRUST (TACT) UK LTD,TRUST (OTHER),LAC Placements,Placements - independent fostering,Agency Placements - In County
Cambridgeshire County Council,06-Dec-21,51301685842,"2,702.70",THE ADOLESCENT & CHILDRENS TRUST (TACT) UK LTD,TRUST (OTHER),LAC Placements,Placements - independent fostering,Agency Placements - In County
Cambridgeshire County Council,06-Dec-21,51301685841,"2,702.70",THE ADOLESCENT & CHILDRENS TRUST (TACT) UK LTD,TRUST (OTHER),LAC Placements,Placements - independent fostering,Agency Placements - In County
Cambridgeshire County Council,06-Dec-21,51301686017,"2,715.43",KEY2 FUTURES LTD,TRADE SUPPLIER,Unaccompanied Asylum Seeking Children,Unaccompanied Asylum Seeking Children <18,Asylum Seekers
